Workbook

Sheet Project Details
H7: Junction Turning Count
C9: Project Number | F9: 4780-LON
C10: Project Name | F10: Chiswick & Turnham Green area
C11: Client | F11: LB of Ealing
C13: Sites: | F13: 1 & 26
C14: Survey Date: | F14: 2021-04-29
C15: Survey Time: | F15: 07:00-19:00
C17: AM Weather: | F17: Dry
C18: PM Weather: | F18: Dry
C20: Observations: | F20: No incidents or observations during the survey period.
B24: Tracsis will retain all personal data relating to this project, including all video images, for a period of three months after receipt of this report and all other data files for one year.
B25: If you would like a copy of the personal data or wish for us to retain for a longer period, please do not hesitate to contact us.

Sheet Dashboard
AL1: 0 | BB1: 1 | BC1: 1
AK2: ='Project Details'!F9&" "&'Project Details'!F10 -> 4780-LON Chiswick & Turnham Green area | AN2: 0
AK3: Junction Turning Count
AH4: ='Project Details'!F14 -> 2021-04-29
Q7: Arm | V7: Location | AA7: Observations
Q9: A | R9: South Parade (E) | X9: 51.49535
Q10: B | R10: Fisher's Lane | X10: -0.26041
Q11: C | R11: South Parade (W)
Q18: Total Number of Vehicles per Interval
Y28: O-D Movement Matrix | AH28: Road Names
AF30: G
Q31: Percentage of Classed Vehicles
AC33: A | AD33: B | AE33: C
F34: D | G34: E | H34: F | I34: G | AB34: A | AC34: 11 | AD34: 247 | AE34: 4565
Y35: E | AB35: B | AC35: 207 | AD35: 1 | AE35: 231
Y36: F | AB36: C | AC36: 3614 | AD36: 234 | AE36: 20
Y37: G
B38: D
B39: E
B40: F
B41: G

Sheet Data (hidden)
A1: site | B1: x,y | C1: lat,lon | N1: time periods | S1: Class | T1: Colour | Y1: Counts for overview Flow diagram, origin and destination ( sheet2) | Z1: Site 1 | AA1: 0 | AB1: 0 | AC1: 0 | AD1: 0 | AE1: 0 | AF1: 0 | AG1: 0 | AH1: 0 | AS1: 07:00:00 | AT1: 07:00:00 | AU1: 1 | AV1: 1 | AW1: 1 | AY1: 1 | AZ1: 2 | BB1: 1 | BC1: 1 | BD1: ALL | BE1: counts for arm flow diagram, arm X- arm Y | BF1: A_A | BG1: A_B | BH1: A_C | BI1: B_A | BJ1: B_B | BK1: B_C | BL1: C_A | BM1: C_B | BN1: C_C
A2: Site 1 | B2: 309.62865493260324,721.4417701996863 | C2: 51.494259,-0.267497 | D2: A,49.513988458,Acton Lane (NE),288.26475,319.253210625 | E2: B,161.965714433,Acton Lane (S),251.510994375,409.335945 | F2: C,288.121860248,Bollo Lane,185.0542630460168,339.58851513598165 | N2: 07:00-19:00 | V2: Towards is first column | Z2: Site 2 | AA2: 0 | AB2: 0 | AC2: 0 | AD2: 0 | AE2: 0 | AF2: 0 | AG2: 0 | AH2: 0 | AI2: 0 | AJ2: 0 | AS2: 07:15:00 | AT2: 07:15:00 | AU2: 1 | AV2: 48 | AX2: Car | AY2: 1 | AZ2: 1 | BD2: A | BF2: 11 | BG2: 247 | BH2: 4565 | BI2: 207 | BJ2: 1 | BK2: 231 | BL2: 3614 | BM2: 234 | BN2: 20 | BO2: 0 | BP2: 0 | BQ2: 0 | BR2: 0 | BS2: 0 | BT2: 0 | BU2: 0 | BV2: 0 | BW2: 0 | BX2: 0 | BY2: 0 | BZ2: 0 | CA2: 0 | CB2: 0 | CC2: 0 | CD2: 0 | CE2: 0 | CF2: 0 | CG2: 0 | CH2: 0 | CI2: 0 | CJ2: 0 | CK2: 0 | CL2: 0 | CM2: 0 | CN2: 0 | CO2: 0 | CP2: 0 | CQ2: 0 | CR2: 0 | CS2: 0 | CT2: 0 | CU2: 0 | CV2: 0 | CW2: 0 | CX2: 0 | CY2: 0 | CZ2: 0 | DA2: 0 | DB2: 0 | DC2: 0 | DD2: 0 | DE2: 0 | DF2: 0 | DG2: 0 | DH2: 0 | DI2: 0 | DJ2: 0 | DK2: 0 | DL2: 0 | DM2: 0 | DN2: 0 | DO2: 0 | DP2: 0 | DQ2: 0 | DR2: 0 | DS2: 0 | DT2: 0 | DU2: 0 | DV2: 0 | DW2: 0 | DX2: 0 | DY2: 0 | DZ2: 0 | EA2: 0 | EB2: 0 | EC2: 0 | ED2: 0 | EE2: 0
A3: Site 26 | B3: 970.3713450673968,558.5582297965884 | C3: 51.495347,-0.260408 | D3: A,80.537677792,South Parade (E),438.883081875,287.544088125 | E3: B,183.503531645,Fisher's Lane,356.72762812499997,368.97888 | F3: C,280.491477012,South Parade (W),296.19203062500003,281.05813125000003 | N3: 15 | S3: CAR | V3: Away is second column | AS3: 07:30:00 | AT3: 07:30:00 | AX3: LGV | AY3: 1 | AZ3: 1 | BD3: B
N4: '4780-LON | V4: For each arm | AS4: 07:45:00 | AT4: 07:45:00 | AX4: OGV1 | AY4: 1 | AZ4: 1.5 | BD4: C
N5: Chiswick & Turnham Green area | S5: LGV | AS5: 08:00:00 | AT5: 08:00:00 | AX5: OGV2 | AY5: 1 | AZ5: 2.3
N6: 29/04/2021 | AS6: 08:15:00 | AT6: 08:15:00 | AX6: PSV | AY6: 1 | AZ6: 2
N7: 600 | O7: <--overview map size | S7: OGV1 | AS7: 08:30:00 | AT7: 08:30:00 | AX7: MC | AY7: 1 | AZ7: 0.4
N8: TRUE | AS8: 08:45:00 | AT8: 08:45:00 | AX8: PC | AY8: 1 | AZ8: 0.2
S9: OGV2 | AS9: 09:00:00 | AT9: 09:00:00 | AY9: 1 | AZ9: 2
AS10: 09:15:00 | AT10: 09:15:00 | AY10: 1
S11: PSV | AS11: 09:30:00 | AT11: 09:30:00 | AY11: 1
AS12: 09:45:00 | AT12: 09:45:00 | AY12: 1
S13: MCL | AS13: 10:00:00 | AT13: 10:00:00 | AY13: 1
AS14: 10:15:00 | AT14: 10:15:00 | AY14: 1
S15: PCL | AS15: 10:30:00 | AT15: 10:30:00 | AY15: 1
AS16: 10:45:00 | AT16: 10:45:00 | AY16: 1
S17: OGV | AS17: 11:00:00 | AT17: 11:00:00
AS18: 11:15:00 | AT18: 11:15:00
S19: MGV2 | AS19: 11:30:00 | AT19: 11:30:00
AS20: 11:45:00 | AT20: 11:45:00
S21: PC | AS21: 12:00:00 | AT21: 12:00:00
AS22: 12:15:00 | AT22: 12:15:00
S23: BUS | AS23: 12:30:00 | AT23: 12:30:00
AS24: 12:45:00 | AT24: 12:45:00
S25: MC | AS25: 13:00:00 | AT25: 13:00:00
AS26: 13:15:00 | AT26: 13:15:00
S27: HGV | AS27: 13:30:00 | AT27: 13:30:00
AS28: 13:45:00 | AT28: 13:45:00
S29: MGV | AS29: 14:00:00 | AT29: 14:00:00
AS30: 14:15:00 | AT30: 14:15:00
S31: LTAX | AS31: 14:30:00 | AT31: 14:30:00
AS32: 14:45:00 | AT32: 14:45:00
S33: CVN | AS33: 15:00:00 | AT33: 15:00:00
AS34: 15:15:00 | AT34: 15:15:00
S35: AGR | AS35: 15:30:00 | AT35: 15:30:00
AS36: 15:45:00 | AT36: 15:45:00
S37: OTH | AS37: 16:00:00 | AT37: 16:00:00
AS38: 16:15:00 | AT38: 16:15:00
S39: PCLRed | AS39: 16:30:00 | AT39: 16:30:00
AS40: 16:45:00 | AT40: 16:45:00
S41: R3 | AS41: 17:00:00 | AT41: 17:00:00
AS42: 17:15:00 | AT42: 17:15:00
S43: R4 | AS43: 17:30:00 | AT43: 17:30:00
AS44: 17:45:00 | AT44: 17:45:00
S45: A5 | AS45: 18:00:00 | AT45: 18:00:00
AS46: 18:15:00 | AT46: 18:15:00
S47: A6 | AS47: 18:30:00 | AT47: 18:30:00
AS48: 18:45:00 | AT48: 18:45:00
S49: PED | AS49: 19:00:00 | AT49: 19:00:00
S51: WCH
S53: MOB
S55: EQU
S57: PWC
S59: PWD
S61: PUSH
S63: ALLPED
S65: PCLBlue
Z80: a | AA80: v | AB80: b | AC80: n | AD80: m | AE80: m, | AF80: , | AG80: ,. | AH80: . | AI80: .
V81: 07:00:00 | W81: 07:15:00
V82: 07:15:00 | W82: 07:30:00
V83: 07:30:00 | W83: 07:45:00
V84: 07:45:00 | W84: 08:00:00
V85: 08:00:00 | W85: 08:15:00
V86: 08:15:00 | W86: 08:30:00
V87: 08:30:00 | W87: 08:45:00
V88: 08:45:00 | W88: 09:00:00
V89: 09:00:00 | W89: 09:15:00
V90: 09:15:00 | W90: 09:30:00
V91: 09:30:00 | W91: 09:45:00
V92: 09:45:00 | W92: 10:00:00
V93: 10:00:00 | W93: 10:15:00
V94: 10:15:00 | W94: 10:30:00
V95: 10:30:00 | W95: 10:45:00
V96: 10:45:00 | W96: 11:00:00
V97: 11:00:00 | W97: 11:15:00
V98: 11:15:00 | W98: 11:30:00
V99: 11:30:00 | W99: 11:45:00 | AA99: 07:00:00 | AB99: 07:15:00 | AC99: 07:30:00 | AD99: 07:45:00 | AE99: 08:00:00 | AF99: 08:15:00 | AG99: 08:30:00 | AH99: 08:45:00 | AI99: 09:00:00 | AJ99: 09:15:00 | AK99: 09:30:00 | AL99: 09:45:00 | AM99: 10:00:00 | AN99: 10:15:00 | AO99: 10:30:00 | AP99: 10:45:00 | AQ99: 11:00:00 | AR99: 11:15:00 | AS99: 11:30:00 | AT99: 11:45:00 | AU99: 12:00:00 | AV99: 12:15:00 | AW99: 12:30:00 | AX99: 12:45:00 | AY99: 13:00:00 | AZ99: 13:15:00 | BA99: 13:30:00 | BB99: 13:45:00 | BC99: 14:00:00 | BD99: 14:15:00 | BE99: 14:30:00 | BF99: 14:45:00 | BG99: 15:00:00 | BH99: 15:15:00 | BI99: 15:30:00 | BJ99: 15:45:00 | BK99: 16:00:00 | BL99: 16:15:00 | BM99: 16:30:00 | BN99: 16:45:00 | BO99: 17:00:00 | BP99: 17:15:00 | BQ99: 17:30:00 | BR99: 17:45:00 | BS99: 18:00:00 | BT99: 18:15:00 | BU99: 18:30:00 | BV99: 18:45:00
A100: ALL | B100: Site 1,309.62865493260324,721.4417701996863,A,1.375,3.75,B,-6.499999999068677,21.875,C,-18.999999999068677,8.5 | C100: Site 26,970.3713450673968,558.5582297965884,A,28.25,-1.125,B,11.75,14.375,C,-0.4999999990686774,-2.124999998137355 | V100: 11:45:00 | W100: 12:00:00 | Y100: Counts for graph on dashboard, volume counts | Z100: Car | AA100: 97 | AB100: 93 | AC100: 104 | AD100: 129 | AE100: 130 | AF100: 137 | AG100: 144 | AH100: 125 | AI100: 134 | AJ100: 120 | AK100: 112 | AL100: 112 | AM100: 100 | AN100: 111 | AO100: 104 | AP100: 104 | AQ100: 100 | AR100: 103 | AS100: 101 | AT100: 115 | AU100: 89 | AV100: 88 | AW100: 116 | AX100: 140 | AY100: 124 | AZ100: 131 | BA100: 106 | BB100: 110 | BC100: 133 | BD100: 130 | BE100: 127 | BF100: 164 | BG100: 125 | BH100: 126 | BI100: 155 | BJ100: 136 | BK100: 145 | BL100: 143 | BM100: 182 | BN100: 137 | BO100: 169 | BP100: 184 | BQ100: 171 | BR100: 154 | BS100: 160 | BT100: 134 | BU100: 163 | BV100: 189
V101: 12:00:00 | W101: 12:15:00 | Z101: LGV | AA101: 19 | AB101: 31 | AC101: 33 | AD101: 20 | AE101: 24 | AF101: 27 | AG101: 21 | AH101: 24 | AI101: 18 | AJ101: 15 | AK101: 28 | AL101: 36 | AM101: 32 | AN101: 23 | AO101: 23 | AP101: 29 | AQ101: 35 | AR101: 25 | AS101: 21 | AT101: 27 | AU101: 25 | AV101: 36 | AW101: 34 | AX101: 18 | AY101: 31 | AZ101: 33 | BA101: 35 | BB101: 27 | BC101: 29 | BD101: 21 | BE101: 27 | BF101: 24 | BG101: 32 | BH101: 23 | BI101: 24 | BJ101: 25 | BK101: 35 | BL101: 19 | BM101: 31 | BN101: 25 | BO101: 22 | BP101: 24 | BQ101: 17 | BR101: 23 | BS101: 17 | BT101: 10 | BU101: 11 | BV101: 12
V102: 12:15:00 | W102: 12:30:00 | Z102: OGV1 | AA102: 5 | AB102: 4 | AC102: 4 | AD102: 2 | AE102: 1 | AF102: 1 | AG102: 1 | AH102: 4 | AI102: 2 | AJ102: 2 | AK102: 2 | AL102: 3 | AM102: 3 | AN102: 2 | AO102: 2 | AP102: 2 | AQ102: 6 | AR102: 0 | AS102: 1 | AT102: 4 | AU102: 3 | AV102: 2 | AW102: 2 | AX102: 2 | AY102: 4 | AZ102: 3 | BA102: 1 | BB102: 2 | BC102: 3 | BD102: 1 | BE102: 5 | BF102: 5 | BG102: 4 | BH102: 0 | BI102: 2 | BJ102: 2 | BK102: 3 | BL102: 1 | BM102: 4 | BN102: 1 | BO102: 0 | BP102: 0 | BQ102: 1 | BR102: 0 | BS102: 1 | BT102: 1 | BU102: 1 | BV102: 0
V103: 12:30:00 | W103: 12:45:00 | Z103: OGV2 | AA103: 0 | AB103: 0 | AC103: 1 | AD103: 1 | AE103: 0 | AF103: 0 | AG103: 0 | AH103: 1 | AI103: 0 | AJ103: 0 | AK103: 0 | AL103: 0 | AM103: 0 | AN103: 0 | AO103: 0 | AP103: 0 | AQ103: 0 | AR103: 0 | AS103: 0 | AT103: 0 | AU103: 0 | AV103: 0 | AW103: 0 | AX103: 0 | AY103: 0 | AZ103: 0 | BA103: 0 | BB103: 1 | BC103: 1 | BD103: 0 | BE103: 0 | BF103: 0 | BG103: 1 | BH103: 0 | BI103: 0 | BJ103: 0 | BK103: 0 | BL103: 0 | BM103: 0 | BN103: 0 | BO103: 0 | BP103: 0 | BQ103: 0 | BR103: 0 | BS103: 0 | BT103: 0 | BU103: 0 | BV103: 0
V104: 12:45:00 | W104: 13:00:00 | Z104: PSV | AA104: 14 | AB104: 8 | AC104: 13 | AD104: 14 | AE104: 8 | AF104: 7 | AG104: 7 | AH104: 9 | AI104: 7 | AJ104: 7 | AK104: 7 | AL104: 7 | AM104: 9 | AN104: 7 | AO104: 8 | AP104: 7 | AQ104: 10 | AR104: 7 | AS104: 6 | AT104: 6 | AU104: 7 | AV104: 7 | AW104: 7 | AX104: 8 | AY104: 6 | AZ104: 10 | BA104: 7 | BB104: 8 | BC104: 6 | BD104: 8 | BE104: 9 | BF104: 8 | BG104: 8 | BH104: 5 | BI104: 8 | BJ104: 4 | BK104: 2 | BL104: 6 | BM104: 6 | BN104: 10 | BO104: 7 | BP104: 7 | BQ104: 7 | BR104: 8 | BS104: 11 | BT104: 9 | BU104: 7 | BV104: 8
V105: 13:00:00 | W105: 13:15:00 | Z105: MC | AA105: 1 | AB105: 3 | AC105: 3 | AD105: 2 | AE105: 5 | AF105: 8 | AG105: 1 | AH105: 3 | AI105: 1 | AJ105: 8 | AK105: 7 | AL105: 9 | AM105: 6 | AN105: 6 | AO105: 9 | AP105: 7 | AQ105: 10 | AR105: 13 | AS105: 15 | AT105: 13 | AU105: 12 | AV105: 6 | AW105: 20 | AX105: 12 | AY105: 15 | AZ105: 17 | BA105: 21 | BB105: 13 | BC105: 20 | BD105: 15 | BE105: 11 | BF105: 14 | BG105: 7 | BH105: 8 | BI105: 10 | BJ105: 14 | BK105: 12 | BL105: 3 | BM105: 9 | BN105: 11 | BO105: 11 | BP105: 16 | BQ105: 13 | BR105: 18 | BS105: 14 | BT105: 15 | BU105: 16 | BV105: 29
V106: 13:15:00 | W106: 13:30:00 | Z106: PC | AA106: 7 | AB106: 11 | AC106: 21 | AD106: 20 | AE106: 20 | AF106: 12 | AG106: 26 | AH106: 20 | AI106: 18 | AJ106: 15 | AK106: 18 | AL106: 9 | AM106: 7 | AN106: 10 | AO106: 10 | AP106: 13 | AQ106: 10 | AR106: 13 | AS106: 3 | AT106: 16 | AU106: 10 | AV106: 9 | AW106: 11 | AX106: 17 | AY106: 9 | AZ106: 16 | BA106: 11 | BB106: 9 | BC106: 15 | BD106: 9 | BE106: 9 | BF106: 17 | BG106: 13 | BH106: 8 | BI106: 23 | BJ106: 17 | BK106: 17 | BL106: 18 | BM106: 18 | BN106: 20 | BO106: 21 | BP106: 24 | BQ106: 20 | BR106: 26 | BS106: 17 | BT106: 27 | BU106: 14 | BV106: 24
V107: 13:30:00 | W107: 13:45:00
V108: 13:45:00 | W108: 14:00:00
V109: 14:00:00 | W109: 14:15:00
V110: 14:15:00 | W110: 14:30:00
V111: 14:30:00 | W111: 14:45:00
V112: 14:45:00 | W112: 15:00:00
V113: 15:00:00 | W113: 15:15:00
V114: 15:15:00 | W114: 15:30:00
V115: 15:30:00 | W115: 15:45:00
V116: 15:45:00 | W116: 16:00:00
V117: 16:00:00 | W117: 16:15:00
V118: 16:15:00 | W118: 16:30:00
V119: 16:30:00 | W119: 16:45:00
V120: 16:45:00 | W120: 17:00:00 | Y120: Counts for pie chart | Z120: Car | AA120: 0.6797371303
V121: 17:00:00 | W121: 17:15:00 | Z121: LGV | AA121: 0.1315443593
V122: 17:15:00 | W122: 17:30:00 | Z122: OGV1 | AA122: 0.01150054765
V123: 17:30:00 | W123: 17:45:00 | Z123: OGV2 | AA123: 0.0006571741512
V124: 17:45:00 | W124: 18:00:00 | Z124: PSV | AA124: 0.04074479737
V125: 18:00:00 | W125: 18:15:00 | Z125: MC | AA125: 0.0560788609
V126: 18:15:00 | W126: 18:30:00 | Z126: PC | AA126: 0.07973713034
V127: 18:30:00 | W127: 18:45:00
V128: 18:45:00 | W128: 19:00:00
Z140: 07:00:00 | AA140: 07:15:00 | AB140: 07:30:00 | AC140: 07:45:00 | AD140: 08:00:00 | AE140: 08:15:00 | AF140: 08:30:00 | AG140: 08:45:00 | AH140: 09:00:00 | AI140: 09:15:00 | AJ140: 09:30:00 | AK140: 09:45:00 | AL140: 10:00:00 | AM140: 10:15:00 | AN140: 10:30:00 | AO140: 10:45:00 | AP140: 11:00:00 | AQ140: 11:15:00 | AR140: 11:30:00 | AS140: 11:45:00 | AT140: 12:00:00 | AU140: 12:15:00 | AV140: 12:30:00 | AW140: 12:45:00 | AX140: 13:00:00 | AY140: 13:15:00 | AZ140: 13:30:00 | BA140: 13:45:00 | BB140: 14:00:00 | BC140: 14:15:00 | BD140: 14:30:00 | BE140: 14:45:00 | BF140: 15:00:00 | BG140: 15:15:00 | BH140: 15:30:00 | BI140: 15:45:00 | BJ140: 16:00:00 | BK140: 16:15:00 | BL140: 16:30:00 | BM140: 16:45:00 | BN140: 17:00:00 | BO140: 17:15:00 | BP140: 17:30:00 | BQ140: 17:45:00 | BR140: 18:00:00 | BS140: 18:15:00 | BT140: 18:30:00 | BU140: 18:45:00
Y141: 0 | Z141: 143 | AA141: 150 | AB141: 179 | AC141: 188 | AD141: 188 | AE141: 192 | AF141: 200 | AG141: 186 | AH141: 180 | AI141: 167 | AJ141: 174 | AK141: 176 | AL141: 157 | AM141: 159 | AN141: 156 | AO141: 162 | AP141: 171 | AQ141: 161 | AR141: 147 | AS141: 181 | AT141: 146 | AU141: 148 | AV141: 190 | AW141: 197 | AX141: 189 | AY141: 210 | AZ141: 181 | BA141: 170 | BB141: 207 | BC141: 184 | BD141: 188 | BE141: 232 | BF141: 190 | BG141: 170 | BH141: 222 | BI141: 198 | BJ141: 214 | BK141: 190 | BL141: 250 | BM141: 204 | BN141: 230 | BO141: 255 | BP141: 229 | BQ141: 229 | BR141: 220 | BS141: 196 | BT141: 212 | BU141: 262 | BV141: 0 | BW141: 0 | BX141: 0 | BY141: 0 | BZ141: 0 | CA141: 0 | CB141: 0 | CC141: 0 | CD141: 0 | CE141: 0 | CF141: 0 | CG141: 0 | CH141: 0 | CI141: 0 | CJ141: 0 | CK141: 0 | CL141: 0 | CM141: 0 | CN141: 0 | CO141: 0 | CP141: 0 | CQ141: 0 | CR141: 0 | CS141: 0 | CT141: 0 | CU141: 0 | CV141: 0 | CW141: 0 | CX141: 0 | CY141: 0 | CZ141: 0 | DA141: 0 | DB141: 0 | DC141: 0 | DD141: 0 | DE141: 0 | DF141: 0 | DG141: 0 | DH141: 0 | DI141: 0 | DJ141: 0 | DK141: 0 | DL141: 0 | DM141: 0 | DN141: 0 | DO141: 0 | DP141: 0 | DQ141: 0 | DR141: 0 | DS141: 0 | DT141: 0 | DU141: 0 | DV141: 0 | DW141: 0 | DX141: 0 | DY141: 0 | DZ141: 0 | EA141: 0 | EB141: 0 | EC141: 0 | ED141: 0 | EE141: 0 | EF141: 0 | EG141: 0 | EH141: 0 | EI141: 0 | EJ141: 0 | EK141: 0 | EL141: 0 | EM141: 0 | EN141: 0 | EO141: 0 | EP141: 0 | EQ141: 0 | ER141: 0 | ES141: 0 | ET141: 0 | EU141: 0 | EV141: 0 | EW141: 0 | EX141: 0 | EY141: 0 | EZ141: 0 | FA141: 0 | FB141: 0 | FC141: 0 | FD141: 0 | FE141: 0 | FF141: 0 | FG141: 0 | FH141: 0 | FI141: 0 | FJ141: 0 | FK141: 0 | FL141: 0 | FM141: 0
AS177: =AS176+"00:15:00" -> 0.01041666667
AS178: 0.02083333333
AS179: 0.03125
AS180: 0.04166666667
AS181: 0.05208333333
AS182: 0.0625
AS183: 0.07291666667
AS184: 0.08333333333
AS185: 0.09375
AS186: 0.1041666667
AS187: 0.1145833333
AS188: 0.125
AS189: 0.1354166667
AS190: 0.1458333333
AS191: 0.15625
AS192: 0.1666666667
AS193: 0.1770833333
AS194: 0.1875
AS195: 0.1979166667
AS196: 0.2083333333
AS197: 0.21875
AS198: 0.2291666667
AS199: 0.2395833333
AS200: 0.25
AS201: 0.2604166667
AS202: 0.2708333333
AS203: 0.28125
AS204: 07:00:00
AS205: 07:15:00
AS206: 07:30:00
AS207: 07:45:00
AS208: 08:00:00
AS209: =AS208+"00:15:00" -> 08:15:00
AS210: 08:30:00
AS211: 08:45:00
AS212: 09:00:00
AS213: 09:15:00
AS214: 09:30:00
AS215: 09:45:00
AS216: 10:00:00
AS217: 10:15:00
AS218: 10:30:00
AS219: 10:45:00
AS220: 11:00:00
AS221: 11:15:00
AS222: 11:30:00
AS223: 11:45:00
AS224: 12:00:00
AS225: 12:15:00
AS226: 12:30:00
AS227: 12:45:00
AS228: 13:00:00
AS229: 13:15:00
AS230: 13:30:00
AS231: 13:45:00
AS232: 14:00:00
AS233: 14:15:00
AS234: 14:30:00
AS235: 14:45:00
AS236: 15:00:00
AS237: 15:15:00
AS238: 15:30:00
AS239: 15:45:00
AS240: 16:00:00
AS241: =AS240+"00:15:00" -> 16:15:00
AS242: 16:30:00
AS243: 16:45:00
AS244: 17:00:00
AS245: 17:15:00
AS246: 17:30:00
AS247: 17:45:00
AS248: 18:00:00
AS249: 18:15:00
AS250: 18:30:00
AS251: 18:45:00
AS252: 19:00:00
AS253: 19:15:00
AS254: 19:30:00
AS255: 19:45:00
AS256: 20:00:00
AS257: 20:15:00
AS258: 20:30:00
AS259: 20:45:00
AS260: 21:00:00
AS261: 21:15:00
AS262: 21:30:00
AS263: 21:45:00
AS264: 22:00:00
AS265: 22:15:00
AS266: 22:30:00
AS267: 22:45:00
AS268: 23:00:00
... 50 more rows

Sheet Maps (hidden)
A2: Site 1 | F2: ALL | M2: No relevant observations | AM2: 25
A3: Site 26 | M3: No relevant observations

Sheet Site 1
AC1: ='Project Details'!F9&" "&'Project Details'!F10 -> 4780-LON Chiswick & Turnham Green area
AC2: Junction Turning Count
Z3: ='Project Details'!F14 -> 2021-04-29
AC5: Site 1 - Acton Lane (NE) / Acton Lane (S) / Bollo Lane
A8: Origin : | B8: Arm A | C8: Acton Lane (NE)
B9: Destination : | D9: Arm A | E9: Acton Lane (NE) | I9: Total | K9: Destination : | M9: Arm B | N9: Acton Lane (S) | R9: Total | T9: Destination : | V9: Arm C | W9: Bollo Lane | AA9: Total | AC9: Arm Totals
B10: Car | C10: LGV | D10: OGV1 | E10: OGV2 | F10: PSV | G10: MC | H10: PC | K10: =$B$10 -> Car | L10: =$C$10 -> LGV | M10: =$D$10 -> OGV1 | N10: =$E$10 -> OGV2 | O10: =$F$10 -> PSV | P10: =$G$10 -> MC | Q10: =$H$10 -> PC | T10: =$B$10 -> Car | U10: =$C$10 -> LGV | V10: =$D$10 -> OGV1 | W10: =$E$10 -> OGV2 | X10: =$F$10 -> PSV | Y10: =$G$10 -> MC | Z10: =$H$10 -> PC
A12: 07:00:00 | B12: 0 | C12: 0 | D12: 0 | E12: 0 | F12: 0 | G12: 0 | H12: 0 | I12: =SUM(B12:H12) -> 0 | K12: 58 | L12: 5 | M12: 1 | N12: 0 | O12: 1 | P12: 1 | Q12: 6 | R12: =SUM(K12:Q12) -> 72 | T12: 2 | U12: 1 | V12: 0 | W12: 0 | X12: 0 | Y12: 0 | Z12: 0 | AA12: =SUM(T12:Z12) -> 3 | AC12: =SUM(I12+R12+AA12) -> 75
A13: 07:15:00 | B13: 0 | C13: 0 | D13: 0 | E13: 0 | F13: 0 | G13: 0 | H13: 0 | I13: 0 | K13: 73 | L13: 11 | M13: 1 | N13: 0 | O13: 1 | P13: 0 | Q13: 4 | R13: 90 | T13: 2 | U13: 0 | V13: 0 | W13: 0 | X13: 0 | Y13: 0 | Z13: 1 | AA13: 3 | AC13: =SUM(I13+R13+AA13) -> 93
A14: 07:30:00 | B14: 0 | C14: 0 | D14: 0 | E14: 0 | F14: 0 | G14: 0 | H14: 0 | I14: 0 | K14: 84 | L14: 11 | M14: 0 | N14: 0 | O14: 1 | P14: 0 | Q14: 10 | R14: 106 | T14: 3 | U14: 4 | V14: 1 | W14: 0 | X14: 0 | Y14: 2 | Z14: 0 | AA14: 10 | AC14: =SUM(I14+R14+AA14) -> 116
A15: 07:45:00 | B15: 0 | C15: 0 | D15: 0 | E15: 0 | F15: 0 | G15: 0 | H15: 0 | I15: 0 | K15: 112 | L15: 10 | M15: 2 | N15: 0 | O15: 3 | P15: 2 | Q15: 2 | R15: 131 | T15: 8 | U15: 0 | V15: 0 | W15: 0 | X15: 0 | Y15: 0 | Z15: 0 | AA15: 8 | AC15: =SUM(I15+R15+AA15) -> 139
A16: 1 Hr | B16: =SUM(B12:B15) -> 0 | C16: 0 | D16: 0 | E16: 0 | F16: 0 | G16: 0 | H16: 0 | I16: 0 | K16: =SUM(K12:K15) -> 327 | L16: 37 | M16: 4 | N16: 0 | O16: 6 | P16: 3 | Q16: 22 | R16: 399 | T16: =SUM(T12:T15) -> 15 | U16: 5 | V16: 1 | W16: 0 | X16: 0 | Y16: 2 | Z16: 1 | AA16: 24 | AC16: =SUM(AC12:AC15) -> 423
A17: 08:00:00 | B17: 1 | C17: 0 | D17: 0 | E17: 0 | F17: 0 | G17: 0 | H17: 0 | I17: =SUM(B17:H17) -> 1 | K17: 98 | L17: 16 | M17: 1 | N17: 0 | O17: 1 | P17: 1 | Q17: 8 | R17: =SUM(K17:Q17) -> 125 | T17: 7 | U17: 2 | V17: 0 | W17: 0 | X17: 0 | Y17: 1 | Z17: 0 | AA17: =SUM(T17:Z17) -> 10 | AC17: =SUM(I17+R17+AA17) -> 136
A18: 08:15:00 | B18: 0 | C18: 0 | D18: 0 | E18: 0 | F18: 0 | G18: 0 | H18: 0 | I18: 0 | K18: 116 | L18: 9 | M18: 1 | N18: 0 | O18: 0 | P18: 3 | Q18: 6 | R18: 135 | T18: 1 | U18: 1 | V18: 0 | W18: 0 | X18: 0 | Y18: 1 | Z18: 1 | AA18: 4 | AC18: =SUM(I18+R18+AA18) -> 139
A19: 08:30:00 | B19: 0 | C19: 0 | D19: 0 | E19: 0 | F19: 0 | G19: 0 | H19: 0 | I19: 0 | K19: 109 | L19: 9 | M19: 3 | N19: 1 | O19: 0 | P19: 1 | Q19: 4 | R19: 127 | T19: 5 | U19: 3 | V19: 0 | W19: 0 | X19: 0 | Y19: 0 | Z19: 0 | AA19: 8 | AC19: =SUM(I19+R19+AA19) -> 135
A20: 08:45:00 | B20: 0 | C20: 0 | D20: 0 | E20: 0 | F20: 0 | G20: 0 | H20: 0 | I20: 0 | K20: 112 | L20: 8 | M20: 3 | N20: 0 | O20: 0 | P20: 5 | Q20: 8 | R20: 136 | T20: 7 | U20: 0 | V20: 0 | W20: 0 | X20: 0 | Y20: 0 | Z20: 1 | AA20: 8 | AC20: =SUM(I20+R20+AA20) -> 144
A21: 1 Hr | B21: =SUM(B17:B20) -> 1 | C21: 0 | D21: 0 | E21: 0 | F21: 0 | G21: 0 | H21: 0 | I21: 1 | K21: =SUM(K17:K20) -> 435 | L21: 42 | M21: 8 | N21: 1 | O21: 1 | P21: 10 | Q21: 26 | R21: 523 | T21: =SUM(T17:T20) -> 20 | U21: 6 | V21: 0 | W21: 0 | X21: 0 | Y21: 2 | Z21: 2 | AA21: 30 | AC21: =SUM(AC17:AC20) -> 554
A22: 09:00:00 | B22: 0 | C22: 0 | D22: 0 | E22: 0 | F22: 0 | G22: 0 | H22: 0 | I22: =SUM(B22:H22) -> 0 | K22: 90 | L22: 11 | M22: 1 | N22: 0 | O22: 2 | P22: 1 | Q22: 3 | R22: =SUM(K22:Q22) -> 108 | T22: 8 | U22: 0 | V22: 1 | W22: 0 | X22: 0 | Y22: 0 | Z22: 2 | AA22: =SUM(T22:Z22) -> 11 | AC22: =SUM(I22+R22+AA22) -> 119
A23: 09:15:00 | B23: 0 | C23: 0 | D23: 0 | E23: 0 | F23: 0 | G23: 0 | H23: 0 | I23: 0 | K23: 83 | L23: 14 | M23: 5 | N23: 0 | O23: 0 | P23: 1 | Q23: 4 | R23: 107 | T23: 4 | U23: 1 | V23: 0 | W23: 0 | X23: 0 | Y23: 1 | Z23: 1 | AA23: 7 | AC23: =SUM(I23+R23+AA23) -> 114
A24: 09:30:00 | B24: 0 | C24: 0 | D24: 0 | E24: 0 | F24: 0 | G24: 0 | H24: 0 | I24: 0 | K24: 91 | L24: 17 | M24: 2 | N24: 0 | O24: 0 | P24: 0 | Q24: 3 | R24: 113 | T24: 6 | U24: 2 | V24: 1 | W24: 0 | X24: 0 | Y24: 1 | Z24: 0 | AA24: 10 | AC24: =SUM(I24+R24+AA24) -> 123
A25: 09:45:00 | B25: 0 | C25: 1 | D25: 0 | E25: 0 | F25: 0 | G25: 0 | H25: 0 | I25: 1 | K25: 80 | L25: 9 | M25: 4 | N25: 0 | O25: 0 | P25: 1 | Q25: 10 | R25: 104 | T25: 7 | U25: 1 | V25: 0 | W25: 0 | X25: 1 | Y25: 0 | Z25: 0 | AA25: 9 | AC25: =SUM(I25+R25+AA25) -> 114
A26: 1 Hr | B26: =SUM(B22:B25) -> 0 | C26: 1 | D26: 0 | E26: 0 | F26: 0 | G26: 0 | H26: 0 | I26: 1 | K26: =SUM(K22:K25) -> 344 | L26: 51 | M26: 12 | N26: 0 | O26: 2 | P26: 3 | Q26: 20 | R26: 432 | T26: =SUM(T22:T25) -> 25 | U26: 4 | V26: 2 | W26: 0 | X26: 1 | Y26: 2 | Z26: 3 | AA26: 37 | AC26: =SUM(AC22:AC25) -> 470
A27: 10:00:00 | B27: 0 | C27: 0 | D27: 0 | E27: 0 | F27: 0 | G27: 0 | H27: 0 | I27: =SUM(B27:H27) -> 0 | K27: 85 | L27: 20 | M27: 0 | N27: 0 | O27: 0 | P27: 2 | Q27: 0 | R27: =SUM(K27:Q27) -> 107 | T27: 6 | U27: 2 | V27: 0 | W27: 0 | X27: 0 | Y27: 1 | Z27: 0 | AA27: =SUM(T27:Z27) -> 9 | AC27: =SUM(I27+R27+AA27) -> 116
A28: 10:15:00 | B28: 0 | C28: 0 | D28: 0 | E28: 0 | F28: 0 | G28: 0 | H28: 0 | I28: 0 | K28: 68 | L28: 12 | M28: 1 | N28: 0 | O28: 0 | P28: 2 | Q28: 2 | R28: 85 | T28: 8 | U28: 2 | V28: 0 | W28: 0 | X28: 0 | Y28: 0 | Z28: 0 | AA28: 10 | AC28: =SUM(I28+R28+AA28) -> 95
A29: 10:30:00 | B29: 0 | C29: 0 | D29: 0 | E29: 0 | F29: 0 | G29: 0 | H29: 0 | I29: 0 | K29: 75 | L29: 21 | M29: 2 | N29: 0 | O29: 0 | P29: 2 | Q29: 1 | R29: 101 | T29: 7 | U29: 2 | V29: 0 | W29: 0 | X29: 0 | Y29: 1 | Z29: 1 | AA29: 11 | AC29: =SUM(I29+R29+AA29) -> 112
A30: 10:45:00 | B30: 0 | C30: 0 | D30: 0 | E30: 0 | F30: 0 | G30: 0 | H30: 0 | I30: 0 | K30: 85 | L30: 14 | M30: 1 | N30: 0 | O30: 0 | P30: 2 | Q30: 3 | R30: 105 | T30: 8 | U30: 4 | V30: 1 | W30: 0 | X30: 0 | Y30: 0 | Z30: 2 | AA30: 15 | AC30: =SUM(I30+R30+AA30) -> 120
A31: 1 Hr | B31: =SUM(B27:B30) -> 0 | C31: 0 | D31: 0 | E31: 0 | F31: 0 | G31: 0 | H31: 0 | I31: 0 | K31: =SUM(K27:K30) -> 313 | L31: 67 | M31: 4 | N31: 0 | O31: 0 | P31: 8 | Q31: 6 | R31: 398 | T31: =SUM(T27:T30) -> 29 | U31: 10 | V31: 1 | W31: 0 | X31: 0 | Y31: 2 | Z31: 3 | AA31: 45 | AC31: =SUM(AC27:AC30) -> 443
A32: 11:00:00 | B32: 1 | C32: 0 | D32: 0 | E32: 0 | F32: 0 | G32: 0 | H32: 0 | I32: =SUM(B32:H32) -> 1 | K32: 77 | L32: 18 | M32: 4 | N32: 1 | O32: 0 | P32: 7 | Q32: 3 | R32: =SUM(K32:Q32) -> 110 | T32: 7 | U32: 3 | V32: 0 | W32: 0 | X32: 0 | Y32: 1 | Z32: 1 | AA32: =SUM(T32:Z32) -> 12 | AC32: =SUM(I32+R32+AA32) -> 123
A33: 11:15:00 | B33: 0 | C33: 0 | D33: 0 | E33: 0 | F33: 0 | G33: 0 | H33: 0 | I33: 0 | K33: 69 | L33: 17 | M33: 1 | N33: 0 | O33: 1 | P33: 6 | Q33: 9 | R33: 103 | T33: 7 | U33: 0 | V33: 0 | W33: 0 | X33: 0 | Y33: 0 | Z33: 0 | AA33: 7 | AC33: =SUM(I33+R33+AA33) -> 110
A34: 11:30:00 | B34: 0 | C34: 0 | D34: 0 | E34: 0 | F34: 0 | G34: 0 | H34: 0 | I34: 0 | K34: 80 | L34: 22 | M34: 0 | N34: 0 | O34: 0 | P34: 6 | Q34: 2 | R34: 110 | T34: 6 | U34: 1 | V34: 0 | W34: 0 | X34: 0 | Y34: 0 | Z34: 1 | AA34: 8 | AC34: =SUM(I34+R34+AA34) -> 118
A35: 11:45:00 | B35: 1 | C35: 0 | D35: 0 | E35: 0 | F35: 0 | G35: 0 | H35: 0 | I35: 1 | K35: 93 | L35: 18 | M35: 4 | N35: 0 | O35: 0 | P35: 5 | Q35: 1 | R35: 121 | T35: 7 | U35: 0 | V35: 1 | W35: 0 | X35: 0 | Y35: 0 | Z35: 0 | AA35: 8 | AC35: =SUM(I35+R35+AA35) -> 130
A36: 1 Hr | B36: =SUM(B32:B35) -> 2 | C36: 0 | D36: 0 | E36: 0 | F36: 0 | G36: 0 | H36: 0 | I36: 2 | K36: =SUM(K32:K35) -> 319 | L36: 75 | M36: 9 | N36: 1 | O36: 1 | P36: 24 | Q36: 15 | R36: 444 | T36: =SUM(T32:T35) -> 27 | U36: 4 | V36: 1 | W36: 0 | X36: 0 | Y36: 1 | Z36: 2 | AA36: 35 | AC36: =SUM(AC32:AC35) -> 481
A37: 12:00:00 | B37: 0 | C37: 0 | D37: 0 | E37: 0 | F37: 0 | G37: 0 | H37: 0 | I37: =SUM(B37:H37) -> 0 | K37: 84 | L37: 13 | M37: 3 | N37: 0 | O37: 1 | P37: 8 | Q37: 4 | R37: =SUM(K37:Q37) -> 113 | T37: 6 | U37: 3 | V37: 0 | W37: 0 | X37: 0 | Y37: 1 | Z37: 1 | AA37: =SUM(T37:Z37) -> 11 | AC37: =SUM(I37+R37+AA37) -> 124
A38: 12:15:00 | B38: 0 | C38: 0 | D38: 0 | E38: 0 | F38: 0 | G38: 0 | H38: 0 | I38: 0 | K38: 78 | L38: 23 | M38: 3 | N38: 0 | O38: 1 | P38: 2 | Q38: 8 | R38: 115 | T38: 11 | U38: 0 | V38: 0 | W38: 0 | X38: 0 | Y38: 1 | Z38: 0 | AA38: 12 | AC38: =SUM(I38+R38+AA38) -> 127
A39: 12:30:00 | B39: 0 | C39: 0 | D39: 0 | E39: 0 | F39: 0 | G39: 0 | H39: 0 | I39: 0 | K39: 72 | L39: 16 | M39: 2 | N39: 0 | O39: 0 | P39: 5 | Q39: 2 | R39: 97 | T39: 1 | U39: 1 | V39: 1 | W39: 0 | X39: 0 | Y39: 1 | Z39: 0 | AA39: 4 | AC39: =SUM(I39+R39+AA39) -> 101
A40: 12:45:00 | B40: 0 | C40: 0 | D40: 0 | E40: 0 | F40: 0 | G40: 0 | H40: 0 | I40: 0 | K40: 97 | L40: 16 | M40: 2 | N40: 0 | O40: 0 | P40: 5 | Q40: 1 | R40: 121 | T40: 5 | U40: 4 | V40: 1 | W40: 0 | X40: 0 | Y40: 1 | Z40: 1 | AA40: 12 | AC40: =SUM(I40+R40+AA40) -> 133
A41: 1 Hr | B41: =SUM(B37:B40) -> 0 | C41: 0 | D41: 0 | E41: 0 | F41: 0 | G41: 0 | H41: 0 | I41: 0 | K41: =SUM(K37:K40) -> 331 | L41: 68 | M41: 10 | N41: 0 | O41: 2 | P41: 20 | Q41: 15 | R41: 446 | T41: =SUM(T37:T40) -> 23 | U41: 8 | V41: 2 | W41: 0 | X41: 0 | Y41: 4 | Z41: 2 | AA41: 39 | AC41: =SUM(AC37:AC40) -> 485
A42: 13:00:00 | B42: 0 | C42: 0 | D42: 0 | E42: 0 | F42: 0 | G42: 0 | H42: 0 | I42: =SUM(B42:H42) -> 0 | K42: 93 | L42: 14 | M42: 4 | N42: 0 | O42: 1 | P42: 3 | Q42: 2 | R42: =SUM(K42:Q42) -> 117 | T42: 5 | U42: 1 | V42: 0 | W42: 0 | X42: 0 | Y42: 2 | Z42: 0 | AA42: =SUM(T42:Z42) -> 8 | AC42: =SUM(I42+R42+AA42) -> 125
A43: 13:15:00 | B43: 0 | C43: 0 | D43: 0 | E43: 0 | F43: 0 | G43: 0 | H43: 0 | I43: 0 | K43: 89 | L43: 21 | M43: 1 | N43: 0 | O43: 0 | P43: 10 | Q43: 4 | R43: 125 | T43: 10 | U43: 1 | V43: 1 | W43: 0 | X43: 0 | Y43: 0 | Z43: 0 | AA43: 12 | AC43: =SUM(I43+R43+AA43) -> 137
A44: 13:30:00 | B44: 0 | C44: 0 | D44: 0 | E44: 0 | F44: 0 | G44: 0 | H44: 0 | I44: 0 | K44: 105 | L44: 24 | M44: 2 | N44: 0 | O44: 0 | P44: 3 | Q44: 0 | R44: 134 | T44: 6 | U44: 1 | V44: 1 | W44: 0 | X44: 0 | Y44: 2 | Z44: 1 | AA44: 11 | AC44: =SUM(I44+R44+AA44) -> 145
A45: 13:45:00 | B45: 0 | C45: 0 | D45: 0 | E45: 0 | F45: 0 | G45: 0 | H45: 0 | I45: 0 | K45: 96 | L45: 22 | M45: 0 | N45: 1 | O45: 1 | P45: 4 | Q45: 1 | R45: 125 | T45: 5 | U45: 0 | V45: 1 | W45: 0 | X45: 0 | Y45: 1 | Z45: 1 | AA45: 8 | AC45: =SUM(I45+R45+AA45) -> 133
A46: 1 Hr | B46: =SUM(B42:B45) -> 0 | C46: 0 | D46: 0 | E46: 0 | F46: 0 | G46: 0 | H46: 0 | I46: 0 | K46: =SUM(K42:K45) -> 383 | L46: 81 | M46: 7 | N46: 1 | O46: 2 | P46: 20 | Q46: 7 | R46: 501 | T46: =SUM(T42:T45) -> 26 | U46: 3 | V46: 3 | W46: 0 | X46: 0 | Y46: 5 | Z46: 2 | AA46: 39 | AC46: =SUM(AC42:AC45) -> 540
A47: 14:00:00 | B47: 0 | C47: 0 | D47: 0 | E47: 0 | F47: 0 | G47: 0 | H47: 0 | I47: =SUM(B47:H47) -> 0 | K47: 94 | L47: 28 | M47: 2 | N47: 2 | O47: 1 | P47: 8 | Q47: 3 | R47: =SUM(K47:Q47) -> 138 | T47: 4 | U47: 1 | V47: 1 | W47: 0 | X47: 0 | Y47: 6 | Z47: 0 | AA47: =SUM(T47:Z47) -> 12 | AC47: =SUM(I47+R47+AA47) -> 150
A48: 14:15:00 | B48: 0 | C48: 0 | D48: 0 | E48: 0 | F48: 0 | G48: 0 | H48: 0 | I48: 0 | K48: 95 | L48: 16 | M48: 2 | N48: 0 | O48: 0 | P48: 6 | Q48: 3 | R48: 122 | T48: 9 | U48: 1 | V48: 1 | W48: 0 | X48: 0 | Y48: 1 | Z48: 0 | AA48: 12 | AC48: =SUM(I48+R48+AA48) -> 134
A49: 14:30:00 | B49: 0 | C49: 0 | D49: 0 | E49: 0 | F49: 0 | G49: 0 | H49: 0 | I49: 0 | K49: 101 | L49: 28 | M49: 2 | N49: 0 | O49: 1 | P49: 4 | Q49: 3 | R49: 139 | T49: 4 | U49: 1 | V49: 1 | W49: 0 | X49: 0 | Y49: 0 | Z49: 0 | AA49: 6 | AC49: =SUM(I49+R49+AA49) -> 145
A50: 14:45:00 | B50: 1 | C50: 0 | D50: 0 | E50: 0 | F50: 0 | G50: 0 | H50: 0 | I50: 1 | K50: 120 | L50: 27 | M50: 5 | N50: 0 | O50: 1 | P50: 4 | Q50: 6 | R50: 163 | T50: 3 | U50: 2 | V50: 0 | W50: 0 | X50: 0 | Y50: 1 | Z50: 0 | AA50: 6 | AC50: =SUM(I50+R50+AA50) -> 170
A51: 1 Hr | B51: =SUM(B47:B50) -> 1 | C51: 0 | D51: 0 | E51: 0 | F51: 0 | G51: 0 | H51: 0 | I51: 1 | K51: =SUM(K47:K50) -> 410 | L51: 99 | M51: 11 | N51: 2 | O51: 3 | P51: 22 | Q51: 15 | R51: 562 | T51: =SUM(T47:T50) -> 20 | U51: 5 | V51: 3 | W51: 0 | X51: 0 | Y51: 8 | Z51: 0 | AA51: 36 | AC51: =SUM(AC47:AC50) -> 599
A52: 15:00:00 | B52: 2 | C52: 0 | D52: 0 | E52: 0 | F52: 0 | G52: 0 | H52: 0 | I52: =SUM(B52:H52) -> 2 | K52: 121 | L52: 27 | M52: 2 | N52: 0 | O52: 0 | P52: 5 | Q52: 3 | R52: =SUM(K52:Q52) -> 158 | T52: 9 | U52: 0 | V52: 1 | W52: 0 | X52: 0 | Y52: 4 | Z52: 0 | AA52: =SUM(T52:Z52) -> 14 | AC52: =SUM(I52+R52+AA52) -> 174
A53: 15:15:00 | B53: 0 | C53: 0 | D53: 0 | E53: 0 | F53: 0 | G53: 0 | H53: 0 | I53: 0 | K53: 108 | L53: 17 | M53: 1 | N53: 1 | O53: 0 | P53: 5 | Q53: 2 | R53: 134 | T53: 1 | U53: 2 | V53: 0 | W53: 0 | X53: 0 | Y53: 0 | Z53: 1 | AA53: 4 | AC53: =SUM(I53+R53+AA53) -> 138
A54: 15:30:00 | B54: 0 | C54: 0 | D54: 0 | E54: 0 | F54: 0 | G54: 0 | H54: 0 | I54: 0 | K54: 108 | L54: 23 | M54: 2 | N54: 0 | O54: 1 | P54: 2 | Q54: 3 | R54: 139 | T54: 6 | U54: 2 | V54: 0 | W54: 0 | X54: 0 | Y54: 2 | Z54: 0 | AA54: 10 | AC54: =SUM(I54+R54+AA54) -> 149
A55: 15:45:00 | B55: 0 | C55: 0 | D55: 0 | E55: 0 | F55: 0 | G55: 0 | H55: 0 | I55: 0 | K55: 105 | L55: 32 | M55: 4 | N55: 0 | O55: 4 | P55: 7 | Q55: 2 | R55: 154 | T55: 6 | U55: 1 | V55: 0 | W55: 0 | X55: 0 | Y55: 0 | Z55: 1 | AA55: 8 | AC55: =SUM(I55+R55+AA55) -> 162
A56: 1 Hr | B56: =SUM(B52:B55) -> 2 | C56: 0 | D56: 0 | E56: 0 | F56: 0 | G56: 0 | H56: 0 | I56: 2 | K56: =SUM(K52:K55) -> 442 | L56: 99 | M56: 9 | N56: 1 | O56: 5 | P56: 19 | Q56: 10 | R56: 585 | T56: =SUM(T52:T55) -> 22 | U56: 5 | V56: 1 | W56: 0 | X56: 0 | Y56: 6 | Z56: 2 | AA56: 36 | AC56: =SUM(AC52:AC55) -> 623
A57: 16:00:00 | B57: 0 | C57: 0 | D57: 0 | E57: 0 | F57: 0 | G57: 0 | H57: 0 | I57: =SUM(B57:H57) -> 0 | K57: 126 | L57: 29 | M57: 3 | N57: 0 | O57: 0 | P57: 3 | Q57: 0 | R57: =SUM(K57:Q57) -> 161 | T57: 1 | U57: 1 | V57: 0 | W57: 0 | X57: 0 | Y57: 2 | Z57: 0 | AA57: =SUM(T57:Z57) -> 4 | AC57: =SUM(I57+R57+AA57) -> 165
A58: 16:15:00 | B58: 0 | C58: 0 | D58: 0 | E58: 0 | F58: 0 | G58: 0 | H58: 0 | I58: 0 | K58: 132 | L58: 32 | M58: 2 | N58: 0 | O58: 1 | P58: 2 | Q58: 8 | R58: 177 | T58: 5 | U58: 1 | V58: 0 | W58: 0 | X58: 0 | Y58: 0 | Z58: 0 | AA58: 6 | AC58: =SUM(I58+R58+AA58) -> 183
A59: 16:30:00 | B59: 0 | C59: 0 | D59: 0 | E59: 0 | F59: 0 | G59: 0 | H59: 0 | I59: 0 | K59: 110 | L59: 28 | M59: 3 | N59: 0 | O59: 0 | P59: 5 | Q59: 4 | R59: 150 | T59: 5 | U59: 4 | V59: 0 | W59: 0 | X59: 0 | Y59: 1 | Z59: 0 | AA59: 10 | AC59: =SUM(I59+R59+AA59) -> 160
A60: 16:45:00 | B60: 1 | C60: 0 | D60: 0 | E60: 0 | F60: 0 | G60: 0 | H60: 0 | I60: 1 | K60: 104 | L60: 29 | M60: 3 | N60: 0 | O60: 1 | P60: 7 | Q60: 5 | R60: 149 | T60: 7 | U60: 1 | V60: 0 | W60: 0 | X60: 0 | Y60: 0 | Z60: 1 | AA60: 9 | AC60: =SUM(I60+R60+AA60) -> 159
A61: 1 Hr | B61: =SUM(B57:B60) -> 1 | C61: 0 | D61: 0 | E61: 0 | F61: 0 | G61: 0 | H61: 0 | I61: 1 | K61: =SUM(K57:K60) -> 472 | L61: 118 | M61: 11 | N61: 0 | O61: 2 | P61: 17 | Q61: 17 | R61: 637 | T61: =SUM(T57:T60) -> 18 | U61: 7 | V61: 0 | W61: 0 | X61: 0 | Y61: 3 | Z61: 1 | AA61: 29 | AC61: =SUM(AC57:AC60) -> 667
A62: 17:00:00 | B62: 0 | C62: 0 | D62: 0 | E62: 0 | F62: 0 | G62: 0 | H62: 0 | I62: =SUM(B62:H62) -> 0 | K62: 117 | L62: 26 | M62: 0 | N62: 0 | O62: 1 | P62: 5 | Q62: 6 | R62: =SUM(K62:Q62) -> 155 | T62: 6 | U62: 0 | V62: 0 | W62: 0 | X62: 0 | Y62: 0 | Z62: 0 | AA62: =SUM(T62:Z62) -> 6 | AC62: =SUM(I62+R62+AA62) -> 161
A63: 17:15:00 | B63: 0 | C63: 0 | D63: 0 | E63: 0 | F63: 0 | G63: 0 | H63: 0 | I63: 0 | K63: 119 | L63: 19 | M63: 0 | N63: 0 | O63: 0 | P63: 7 | Q63: 7 | R63: 152 | T63: 6 | U63: 1 | V63: 0 | W63: 0 | X63: 0 | Y63: 1 | Z63: 1 | AA63: 9 | AC63: =SUM(I63+R63+AA63) -> 161
A64: 17:30:00 | B64: 0 | C64: 0 | D64: 0 | E64: 0 | F64: 0 | G64: 0 | H64: 0 | I64: 0 | K64: 116 | L64: 14 | M64: 0 | N64: 0 | O64: 1 | P64: 9 | Q64: 6 | R64: 146 | T64: 3 | U64: 0 | V64: 0 | W64: 0 | X64: 0 | Y64: 0 | Z64: 1 | AA64: 4 | AC64: =SUM(I64+R64+AA64) -> 150
A65: 17:45:00 | B65: 0 | C65: 0 | D65: 0 | E65: 0 | F65: 0 | G65: 0 | H65: 0 | I65: 0 | K65: 115 | L65: 13 | M65: 1 | N65: 0 | O65: 1 | P65: 8 | Q65: 3 | R65: 141 | T65: 4 | U65: 0 | V65: 0 | W65: 0 | X65: 0 | Y65: 0 | Z65: 0 | AA65: 4 | AC65: =SUM(I65+R65+AA65) -> 145
A66: 1 Hr | B66: =SUM(B62:B65) -> 0 | C66: 0 | D66: 0 | E66: 0 | F66: 0 | G66: 0 | H66: 0 | I66: 0 | K66: =SUM(K62:K65) -> 467 | L66: 72 | M66: 1 | N66: 0 | O66: 3 | P66: 29 | Q66: 22 | R66: 594 | T66: =SUM(T62:T65) -> 19 | U66: 1 | V66: 0 | W66: 0 | X66: 0 | Y66: 1 | Z66: 2 | AA66: 23 | AC66: =SUM(AC62:AC65) -> 617
A67: 18:00:00 | B67: 0 | C67: 0 | D67: 0 | E67: 0 | F67: 0 | G67: 0 | H67: 0 | I67: =SUM(B67:H67) -> 0 | K67: 84 | L67: 14 | M67: 1 | N67: 0 | O67: 0 | P67: 6 | Q67: 2 | R67: =SUM(K67:Q67) -> 107 | T67: 0 | U67: 0 | V67: 0 | W67: 0 | X67: 0 | Y67: 2 | Z67: 1 | AA67: =SUM(T67:Z67) -> 3 | AC67: =SUM(I67+R67+AA67) -> 110
A68: 18:15:00 | B68: 0 | C68: 0 | D68: 0 | E68: 0 | F68: 0 | G68: 0 | H68: 0 | I68: 0 | K68: 103 | L68: 12 | M68: 2 | N68: 0 | O68: 1 | P68: 3 | Q68: 3 | R68: 124 | T68: 3 | U68: 0 | V68: 0 | W68: 0 | X68: 0 | Y68: 3 | Z68: 0 | AA68: 6 | AC68: =SUM(I68+R68+AA68) -> 130
A69: 18:30:00 | B69: 0 | C69: 0 | D69: 0 | E69: 0 | F69: 0 | G69: 0 | H69: 0 | I69: 0 | K69: 138 | L69: 13 | M69: 0 | N69: 0 | O69: 1 | P69: 10 | Q69: 4 | R69: 166 | T69: 2 | U69: 0 | V69: 0 | W69: 0 | X69: 0 | Y69: 2 | Z69: 0 | AA69: 4 | AC69: =SUM(I69+R69+AA69) -> 170
A70: 18:45:00 | B70: 0 | C70: 0 | D70: 0 | E70: 0 | F70: 0 | G70: 0 | H70: 0 | I70: 0 | K70: 149 | L70: 14 | M70: 1 | N70: 0 | O70: 0 | P70: 7 | Q70: 4 | R70: 175 | T70: 8 | U70: 2 | V70: 0 | W70: 0 | X70: 0 | Y70: 5 | Z70: 0 | AA70: 15 | AC70: =SUM(I70+R70+AA70) -> 190
A71: 1 Hr | B71: =SUM(B67:B70) -> 0 | C71: 0 | D71: 0 | E71: 0 | F71: 0 | G71: 0 | H71: 0 | I71: 0 | K71: =SUM(K67:K70) -> 474 | L71: 53 | M71: 4 | N71: 0 | O71: 2 | P71: 26 | Q71: 13 | R71: 572 | T71: =SUM(T67:T70) -> 13 | U71: 2 | V71: 0 | W71: 0 | X71: 0 | Y71: 12 | Z71: 1 | AA71: 28 | AC71: =SUM(AC67:AC70) -> 600
A73: Total | B73: =SUM(B71+B66+B61+B56+B51+B46+B41+B36+B31+B26+B21+B16) -> 7 | C73: 1 | D73: 0 | E73: 0 | F73: 0 | G73: 0 | H73: 0 | I73: 8 | K73: =SUM(K71+K66+K61+K56+K51+K46+K41+K36+K31+K26+K21+K16) -> 4717 | L73: 862 | M73: 90 | N73: 6 | O73: 29 | P73: 201 | Q73: 188 | R73: 6093 | T73: =SUM(T71+T66+T61+T56+T51+T46+T41+T36+T31+T26+T21+T16) -> 257 | U73: 60 | V73: 14 | W73: 0 | X73: 1 | Y73: 48 | Z73: 21 | AA73: 401 | AC73: =SUM(AC71+AC66+AC61+AC56+AC51+AC46+AC41+AC36+AC31+AC26+AC21+AC16) -> 6502
A75: Origin : | B75: Arm B | C75: Acton Lane (S)
B76: Destination : | D76: Arm A | E76: Acton Lane (NE) | I76: Total | K76: Destination : | M76: Arm B | N76: Acton Lane (S) | R76: Total | T76: Destination : | V76: Arm C | W76: Bollo Lane | AA76: Total | AC76: Arm Totals
B77: =$B$10 -> Car | C77: =$C$10 -> LGV | D77: =$D$10 -> OGV1 | E77: =$E$10 -> OGV2 | F77: =$F$10 -> PSV | G77: =$G$10 -> MC | H77: =$H$10 -> PC | K77: =$B$10 -> Car | L77: =$C$10 -> LGV | M77: =$D$10 -> OGV1 | N77: =$E$10 -> OGV2 | O77: =$F$10 -> PSV | P77: =$G$10 -> MC | Q77: =$H$10 -> PC | T77: =$B$10 -> Car | U77: =$C$10 -> LGV | V77: =$D$10 -> OGV1 | W77: =$E$10 -> OGV2 | X77: =$F$10 -> PSV | Y77: =$G$10 -> MC | Z77: =$H$10 -> PC
A79: 07:00:00 | B79: 66 | C79: 22 | D79: 2 | E79: 0 | F79: 0 | G79: 1 | H79: 5 | I79: =SUM(B79:H79) -> 96 | K79: 0 | L79: 0 | M79: 0 | N79: 0 | O79: 0 | P79: 0 | Q79: 0 | R79: =SUM(K79:Q79) -> 0 | T79: 13 | U79: 5 | V79: 2 | W79: 0 | X79: 1 | Y79: 2 | Z79: 0 | AA79: =SUM(T79:Z79) -> 23 | AC79: =SUM(I79+R79+AA79) -> 119
A80: 07:15:00 | B80: 74 | C80: 34 | D80: 3 | E80: 0 | F80: 0 | G80: 0 | H80: 5 | I80: 116 | K80: 0 | L80: 0 | M80: 0 | N80: 0 | O80: 0 | P80: 0 | Q80: 0 | R80: 0 | T80: 20 | U80: 3 | V80: 2 | W80: 0 | X80: 0 | Y80: 0 | Z80: 3 | AA80: 28 | AC80: =SUM(I80+R80+AA80) -> 144
A81: 07:30:00 | B81: 71 | C81: 31 | D81: 3 | E81: 1 | F81: 2 | G81: 0 | H81: 3 | I81: 111 | K81: 0 | L81: 0 | M81: 0 | N81: 0 | O81: 0 | P81: 0 | Q81: 0 | R81: 0 | T81: 14 | U81: 5 | V81: 0 | W81: 0 | X81: 0 | Y81: 0 | Z81: 1 | AA81: 20 | AC81: =SUM(I81+R81+AA81) -> 131
A82: 07:45:00 | B82: 72 | C82: 30 | D82: 7 | E82: 1 | F82: 1 | G82: 4 | H82: 2 | I82: 117 | K82: 0 | L82: 0 | M82: 0 | N82: 0 | O82: 0 | P82: 0 | Q82: 0 | R82: 0 | T82: 13 | U82: 6 | V82: 1 | W82: 0 | X82: 1 | Y82: 2 | Z82: 1 | AA82: 24 | AC82: =SUM(I82+R82+AA82) -> 141
A83: 1 Hr | B83: =SUM(B79:B82) -> 283 | C83: 117 | D83: 15 | E83: 2 | F83: 3 | G83: 5 | H83: 15 | I83: 440 | K83: =SUM(K79:K82) -> 0 | L83: 0 | M83: 0 | N83: 0 | O83: 0 | P83: 0 | Q83: 0 | R83: 0 | T83: =SUM(T79:T82) -> 60 | U83: 19 | V83: 5 | W83: 0 | X83: 2 | Y83: 4 | Z83: 5 | AA83: 95 | AC83: =SUM(AC79:AC82) -> 535
A84: 08:00:00 | B84: 80 | C84: 31 | D84: 4 | E84: 0 | F84: 0 | G84: 1 | H84: 1 | I84: =SUM(B84:H84) -> 117 | K84: 0 | L84: 0 | M84: 0 | N84: 0 | O84: 0 | P84: 0 | Q84: 0 | R84: =SUM(K84:Q84) -> 0 | T84: 25 | U84: 7 | V84: 2 | W84: 0 | X84: 0 | Y84: 1 | Z84: 1 | AA84: =SUM(T84:Z84) -> 36 | AC84: =SUM(I84+R84+AA84) -> 153
A85: 08:15:00 | B85: 87 | C85: 19 | D85: 1 | E85: 0 | F85: 0 | G85: 3 | H85: 4 | I85: 114 | K85: 0 | L85: 0 | M85: 0 | N85: 0 | O85: 0 | P85: 0 | Q85: 0 | R85: 0 | T85: 29 | U85: 4 | V85: 0 | W85: 0 | X85: 0 | Y85: 0 | Z85: 1 | AA85: 34 | AC85: =SUM(I85+R85+AA85) -> 148
A86: 08:30:00 | B86: 87 | C86: 11 | D86: 3 | E86: 0 | F86: 0 | G86: 0 | H86: 10 | I86: 111 | K86: 0 | L86: 0 | M86: 0 | N86: 0 | O86: 0 | P86: 0 | Q86: 0 | R86: 0 | T86: 24 | U86: 2 | V86: 2 | W86: 0 | X86: 0 | Y86: 1 | Z86: 5 | AA86: 34 | AC86: =SUM(I86+R86+AA86) -> 145
A87: 08:45:00 | B87: 84 | C87: 20 | D87: 1 | E87: 1 | F87: 0 | G87: 1 | H87: 5 | I87: 112 | K87: 0 | L87: 0 | M87: 0 | N87: 0 | O87: 0 | P87: 0 | Q87: 0 | R87: 0 | T87: 33 | U87: 6 | V87: 2 | W87: 0 | X87: 0 | Y87: 3 | Z87: 4 | AA87: 48 | AC87: =SUM(I87+R87+AA87) -> 160
A88: 1 Hr | B88: =SUM(B84:B87) -> 338 | C88: 81 | D88: 9 | E88: 1 | F88: 0 | G88: 5 | H88: 20 | I88: 454 | K88: =SUM(K84:K87) -> 0 | L88: 0 | M88: 0 | N88: 0 | O88: 0 | P88: 0 | Q88: 0 | R88: 0 | T88: =SUM(T84:T87) -> 111 | U88: 19 | V88: 6 | W88: 0 | X88: 0 | Y88: 5 | Z88: 11 | AA88: 152 | AC88: =SUM(AC84:AC87) -> 606
A89: 09:00:00 | B89: 81 | C89: 19 | D89: 2 | E89: 0 | F89: 1 | G89: 2 | H89: 2 | I89: =SUM(B89:H89) -> 107 | K89: 0 | L89: 0 | M89: 0 | N89: 0 | O89: 0 | P89: 0 | Q89: 0 | R89: =SUM(K89:Q89) -> 0 | T89: 29 | U89: 5 | V89: 0 | W89: 1 | X89: 0 | Y89: 2 | Z89: 6 | AA89: =SUM(T89:Z89) -> 43 | AC89: =SUM(I89+R89+AA89) -> 150
A90: 09:15:00 | B90: 80 | C90: 11 | D90: 1 | E90: 0 | F90: 0 | G90: 0 | H90: 4 | I90: 96 | K90: 1 | L90: 0 | M90: 0 | N90: 0 | O90: 0 | P90: 0 | Q90: 0 | R90: 1 | T90: 23 | U90: 11 | V90: 2 | W90: 0 | X90: 0 | Y90: 2 | Z90: 5 | AA90: 43 | AC90: =SUM(I90+R90+AA90) -> 140
A91: 09:30:00 | B91: 71 | C91: 12 | D91: 1 | E91: 0 | F91: 0 | G91: 2 | H91: 6 | I91: 92 | K91: 0 | L91: 0 | M91: 0 | N91: 0 | O91: 0 | P91: 0 | Q91: 0 | R91: 0 | T91: 24 | U91: 8 | V91: 0 | W91: 0 | X91: 0 | Y91: 4 | Z91: 1 | AA91: 37 | AC91: =SUM(I91+R91+AA91) -> 129
A92: 09:45:00 | B92: 77 | C92: 28 | D92: 4 | E92: 0 | F92: 0 | G92: 2 | H92: 2 | I92: 113 | K92: 0 | L92: 0 | M92: 0 | N92: 0 | O92: 0 | P92: 0 | Q92: 0 | R92: 0 | T92: 16 | U92: 6 | V92: 0 | W92: 0 | X92: 0 | Y92: 3 | Z92: 4 | AA92: 29 | AC92: =SUM(I92+R92+AA92) -> 142
A93: 1 Hr | B93: =SUM(B89:B92) -> 309 | C93: 70 | D93: 8 | E93: 0 | F93: 1 | G93: 6 | H93: 14 | I93: 408 | K93: =SUM(K89:K92) -> 1 | L93: 0 | M93: 0 | N93: 0 | O93: 0 | P93: 0 | Q93: 0 | R93: 1 | T93: =SUM(T89:T92) -> 92 | U93: 30 | V93: 2 | W93: 1 | X93: 0 | Y93: 11 | Z93: 16 | AA93: 152 | AC93: =SUM(AC89:AC92) -> 561
A94: 10:00:00 | B94: 77 | C94: 11 | D94: 1 | E94: 0 | F94: 0 | G94: 4 | H94: 1 | I94: =SUM(B94:H94) -> 94 | K94: 0 | L94: 0 | M94: 0 | N94: 0 | O94: 0 | P94: 0 | Q94: 0 | R94: =SUM(K94:Q94) -> 0 | T94: 23 | U94: 4 | V94: 2 | W94: 0 | X94: 0 | Y94: 2 | Z94: 3 | AA94: =SUM(T94:Z94) -> 34 | AC94: =SUM(I94+R94+AA94) -> 128
A95: 10:15:00 | B95: 68 | C95: 20 | D95: 3 | E95: 0 | F95: 0 | G95: 4 | H95: 0 | I95: 95 | K95: 0 | L95: 0 | M95: 0 | N95: 0 | O95: 0 | P95: 0 | Q95: 0 | R95: 0 | T95: 16 | U95: 5 | V95: 0 | W95: 0 | X95: 0 | Y95: 4 | Z95: 1 | AA95: 26 | AC95: =SUM(I95+R95+AA95) -> 121
A96: 10:30:00 | B96: 79 | C96: 18 | D96: 6 | E96: 0 | F96: 0 | G96: 2 | H96: 3 | I96: 108 | K96: 0 | L96: 0 | M96: 0 | N96: 0 | O96: 0 | P96: 0 | Q96: 1 | R96: 1 | T96: 21 | U96: 9 | V96: 3 | W96: 0 | X96: 0 | Y96: 0 | Z96: 2 | AA96: 35 | AC96: =SUM(I96+R96+AA96) -> 144
A97: 10:45:00 | B97: 76 | C97: 14 | D97: 2 | E97: 0 | F97: 0 | G97: 2 | H97: 2 | I97: 96 | K97: 0 | L97: 0 | M97: 0 | N97: 0 | O97: 0 | P97: 0 | Q97: 0 | R97: 0 | T97: 26 | U97: 6 | V97: 1 | W97: 0 | X97: 0 | Y97: 2 | Z97: 0 | AA97: 35 | AC97: =SUM(I97+R97+AA97) -> 131
A98: 1 Hr | B98: =SUM(B94:B97) -> 300 | C98: 63 | D98: 12 | E98: 0 | F98: 0 | G98: 12 | H98: 6 | I98: 393 | K98: =SUM(K94:K97) -> 0 | L98: 0 | M98: 0 | N98: 0 | O98: 0 | P98: 0 | Q98: 1 | R98: 1 | T98: =SUM(T94:T97) -> 86 | U98: 24 | V98: 6 | W98: 0 | X98: 0 | Y98: 8 | Z98: 6 | AA98: 130 | AC98: =SUM(AC94:AC97) -> 524
A99: 11:00:00 | B99: 63 | C99: 23 | D99: 3 | E99: 0 | F99: 0 | G99: 3 | H99: 2 | I99: =SUM(B99:H99) -> 94 | K99: 0 | L99: 0 | M99: 0 | N99: 0 | O99: 0 | P99: 0 | Q99: 0 | R99: =SUM(K99:Q99) -> 0 | T99: 22 | U99: 9 | V99: 1 | W99: 0 | X99: 0 | Y99: 2 | Z99: 2 | AA99: =SUM(T99:Z99) -> 36 | AC99: =SUM(I99+R99+AA99) -> 130
A100: 11:15:00 | B100: 60 | C100: 12 | D100: 1 | E100: 0 | F100: 0 | G100: 4 | H100: 3 | I100: 80 | K100: 0 | L100: 0 | M100: 0 | N100: 0 | O100: 0 | P100: 0 | Q100: 0 | R100: 0 | T100: 29 | U100: 5 | V100: 0 | W100: 0 | X100: 0 | Y100: 2 | Z100: 2 | AA100: 38 | AC100: =SUM(I100+R100+AA100) -> 118
A101: 11:30:00 | B101: 61 | C101: 10 | D101: 2 | E101: 0 | F101: 0 | G101: 4 | H101: 0 | I101: 77 | K101: 0 | L101: 0 | M101: 0 | N101: 0 | O101: 0 | P101: 0 | Q101: 0 | R101: 0 | T101: 26 | U101: 10 | V101: 1 | W101: 0 | X101: 0 | Y101: 1 | Z101: 4 | AA101: 42 | AC101: =SUM(I101+R101+AA101) -> 119
A102: 11:45:00 | B102: 64 | C102: 17 | D102: 1 | E102: 0 | F102: 0 | G102: 4 | H102: 3 | I102: 89 | K102: 0 | L102: 0 | M102: 0 | N102: 0 | O102: 0 | P102: 0 | Q102: 0 | R102: 0 | T102: 20 | U102: 8 | V102: 0 | W102: 0 | X102: 0 | Y102: 5 | Z102: 1 | AA102: 34 | AC102: =SUM(I102+R102+AA102) -> 123
A103: 1 Hr | B103: =SUM(B99:B102) -> 248 | C103: 62 | D103: 7 | E103: 0 | F103: 0 | G103: 15 | H103: 8 | I103: 340 | K103: =SUM(K99:K102) -> 0 | L103: 0 | M103: 0 | N103: 0 | O103: 0 | P103: 0 | Q103: 0 | R103: 0 | T103: =SUM(T99:T102) -> 97 | U103: 32 | V103: 2 | W103: 0 | X103: 0 | Y103: 10 | Z103: 9 | AA103: 150 | AC103: =SUM(AC99:AC102) -> 490
A104: 12:00:00 | B104: 59 | C104: 10 | D104: 2 | E104: 0 | F104: 0 | G104: 2 | H104: 4 | I104: =SUM(B104:H104) -> 77 | K104: 1 | L104: 0 | M104: 0 | N104: 0 | O104: 0 | P104: 0 | Q104: 0 | R104: =SUM(K104:Q104) -> 1 | T104: 31 | U104: 10 | V104: 0 | W104: 0 | X104: 0 | Y104: 2 | Z104: 2 | AA104: =SUM(T104:Z104) -> 45 | AC104: =SUM(I104+R104+AA104) -> 123
A105: 12:15:00 | B105: 54 | C105: 13 | D105: 0 | E105: 0 | F105: 0 | G105: 5 | H105: 3 | I105: 75 | K105: 0 | L105: 0 | M105: 0 | N105: 0 | O105: 0 | P105: 0 | Q105: 0 | R105: 0 | T105: 33 | U105: 16 | V105: 4 | W105: 0 | X105: 0 | Y105: 5 | Z105: 1 | AA105: 59 | AC105: =SUM(I105+R105+AA105) -> 134
A106: 12:30:00 | B106: 58 | C106: 16 | D106: 0 | E106: 0 | F106: 0 | G106: 8 | H106: 3 | I106: 85 | K106: 0 | L106: 0 | M106: 0 | N106: 0 | O106: 0 | P106: 0 | Q106: 0 | R106: 0 | T106: 26 | U106: 10 | V106: 1 | W106: 0 | X106: 1 | Y106: 4 | Z106: 1 | AA106: 43 | AC106: =SUM(I106+R106+AA106) -> 128
A107: 12:45:00 | B107: 66 | C107: 18 | D107: 2 | E107: 0 | F107: 0 | G107: 6 | H107: 3 | I107: 95 | K107: 0 | L107: 0 | M107: 0 | N107: 0 | O107: 0 | P107: 0 | Q107: 0 | R107: 0 | T107: 27 | U107: 12 | V107: 3 | W107: 0 | X107: 0 | Y107: 6 | Z107: 6 | AA107: 54 | AC107: =SUM(I107+R107+AA107) -> 149
A108: 1 Hr | B108: =SUM(B104:B107) -> 237 | C108: 57 | D108: 4 | E108: 0 | F108: 0 | G108: 21 | H108: 13 | I108: 332 | K108: =SUM(K104:K107) -> 1 | L108: 0 | M108: 0 | N108: 0 | O108: 0 | P108: 0 | Q108: 0 | R108: 1 | T108: =SUM(T104:T107) -> 117 | U108: 48 | V108: 8 | W108: 0 | X108: 1 | Y108: 17 | Z108: 10 | AA108: 201 | AC108: =SUM(AC104:AC107) -> 534
A109: 13:00:00 | B109: 69 | C109: 17 | D109: 2 | E109: 0 | F109: 0 | G109: 8 | H109: 1 | I109: =SUM(B109:H109) -> 97 | K109: 2 | L109: 1 | M109: 0 | N109: 0 | O109: 0 | P109: 0 | Q109: 0 | R109: =SUM(K109:Q109) -> 3 | T109: 22 | U109: 6 | V109: 2 | W109: 0 | X109: 0 | Y109: 4 | Z109: 6 | AA109: =SUM(T109:Z109) -> 40 | AC109: =SUM(I109+R109+AA109) -> 140
A110: 13:15:00 | B110: 70 | C110: 8 | D110: 2 | E110: 1 | F110: 0 | G110: 1 | H110: 3 | I110: 85 | K110: 1 | L110: 0 | M110: 0 | N110: 0 | O110: 0 | P110: 0 | Q110: 0 | R110: 1 | T110: 30 | U110: 9 | V110: 1 | W110: 0 | X110: 0 | Y110: 4 | Z110: 1 | AA110: 45 | AC110: =SUM(I110+R110+AA110) -> 131
A111: 13:30:00 | B111: 58 | C111: 13 | D111: 1 | E111: 0 | F111: 0 | G111: 2 | H111: 3 | I111: 77 | K111: 1 | L111: 0 | M111: 0 | N111: 0 | O111: 0 | P111: 0 | Q111: 0 | R111: 1 | T111: 29 | U111: 8 | V111: 0 | W111: 1 | X111: 0 | Y111: 2 | Z111: 1 | AA111: 41 | AC111: =SUM(I111+R111+AA111) -> 119
A112: 13:45:00 | B112: 57 | C112: 15 | D112: 3 | E112: 0 | F112: 0 | G112: 1 | H112: 2 | I112: 78 | K112: 0 | L112: 0 | M112: 0 | N112: 0 | O112: 0 | P112: 0 | Q112: 0 | R112: 0 | T112: 27 | U112: 6 | V112: 0 | W112: 0 | X112: 0 | Y112: 3 | Z112: 6 | AA112: 42 | AC112: =SUM(I112+R112+AA112) -> 120
A113: 1 Hr | B113: =SUM(B109:B112) -> 254 | C113: 53 | D113: 8 | E113: 1 | F113: 0 | G113: 12 | H113: 9 | I113: 337 | K113: =SUM(K109:K112) -> 4 | L113: 1 | M113: 0 | N113: 0 | O113: 0 | P113: 0 | Q113: 0 | R113: 5 | T113: =SUM(T109:T112) -> 108 | U113: 29 | V113: 3 | W113: 1 | X113: 0 | Y113: 13 | Z113: 14 | AA113: 168 | AC113: =SUM(AC109:AC112) -> 510
A114: 14:00:00 | B114: 79 | C114: 8 | D114: 2 | E114: 1 | F114: 0 | G114: 2 | H114: 2 | I114: =SUM(B114:H114) -> 94 | K114: 0 | L114: 0 | M114: 0 | N114: 0 | O114: 0 | P114: 0 | Q114: 0 | R114: =SUM(K114:Q114) -> 0 | T114: 30 | U114: 7 | V114: 0 | W114: 0 | X114: 0 | Y114: 6 | Z114: 5 | AA114: =SUM(T114:Z114) -> 48 | AC114: =SUM(I114+R114+AA114) -> 142
A115: 14:15:00 | B115: 83 | C115: 15 | D115: 2 | E115: 0 | F115: 0 | G115: 0 | H115: 4 | I115: 104 | K115: 0 | L115: 0 | M115: 0 | N115: 0 | O115: 0 | P115: 0 | Q115: 0 | R115: 0 | T115: 30 | U115: 8 | V115: 0 | W115: 0 | X115: 1 | Y115: 7 | Z115: 1 | AA115: 47 | AC115: =SUM(I115+R115+AA115) -> 151
A116: 14:30:00 | B116: 51 | C116: 11 | D116: 3 | E116: 0 | F116: 0 | G116: 2 | H116: 1 | I116: 68 | K116: 0 | L116: 0 | M116: 0 | N116: 0 | O116: 0 | P116: 0 | Q116: 0 | R116: 0 | T116: 35 | U116: 4 | V116: 2 | W116: 0 | X116: 0 | Y116: 2 | Z116: 3 | AA116: 46 | AC116: =SUM(I116+R116+AA116) -> 114
A117: 14:45:00 | B117: 56 | C117: 8 | D117: 4 | E117: 0 | F117: 0 | G117: 6 | H117: 7 | I117: 81 | K117: 0 | L117: 0 | M117: 0 | N117: 0 | O117: 0 | P117: 1 | Q117: 0 | R117: 1 | T117: 23 | U117: 3 | V117: 0 | W117: 0 | X117: 0 | Y117: 2 | Z117: 2 | AA117: 30 | AC117: =SUM(I117+R117+AA117) -> 112
A118: 1 Hr | B118: =SUM(B114:B117) -> 269 | C118: 42 | D118: 11 | E118: 1 | F118: 0 | G118: 10 | H118: 14 | I118: 347 | K118: =SUM(K114:K117) -> 0 | L118: 0 | M118: 0 | N118: 0 | O118: 0 | P118: 1 | Q118: 0 | R118: 1 | T118: =SUM(T114:T117) -> 118 | U118: 22 | V118: 2 | W118: 0 | X118: 1 | Y118: 17 | Z118: 11 | AA118: 171 | AC118: =SUM(AC114:AC117) -> 519
A119: 15:00:00 | B119: 62 | C119: 8 | D119: 1 | E119: 0 | F119: 0 | G119: 5 | H119: 0 | I119: =SUM(B119:H119) -> 76 | K119: 0 | L119: 0 | M119: 0 | N119: 0 | O119: 0 | P119: 0 | Q119: 0 | R119: =SUM(K119:Q119) -> 0 | T119: 25 | U119: 3 | V119: 0 | W119: 0 | X119: 0 | Y119: 4 | Z119: 2 | AA119: =SUM(T119:Z119) -> 34 | AC119: =SUM(I119+R119+AA119) -> 110
A120: 15:15:00 | B120: 88 | C120: 9 | D120: 1 | E120: 0 | F120: 0 | G120: 2 | H120: 5 | I120: 105 | K120: 0 | L120: 0 | M120: 0 | N120: 0 | O120: 0 | P120: 0 | Q120: 0 | R120: 0 | T120: 31 | U120: 7 | V120: 1 | W120: 0 | X120: 1 | Y120: 8 | Z120: 4 | AA120: 52 | AC120: =SUM(I120+R120+AA120) -> 157
A121: 15:30:00 | B121: 93 | C121: 10 | D121: 1 | E121: 0 | F121: 1 | G121: 7 | H121: 4 | I121: 116 | K121: 0 | L121: 0 | M121: 0 | N121: 0 | O121: 0 | P121: 0 | Q121: 0 | R121: 0 | T121: 22 | U121: 6 | V121: 0 | W121: 0 | X121: 0 | Y121: 3 | Z121: 5 | AA121: 36 | AC121: =SUM(I121+R121+AA121) -> 152
A122: 15:45:00 | B122: 77 | C122: 12 | D122: 1 | E122: 0 | F122: 1 | G122: 3 | H122: 4 | I122: 98 | K122: 0 | L122: 0 | M122: 0 | N122: 0 | O122: 0 | P122: 0 | Q122: 0 | R122: 0 | T122: 31 | U122: 1 | V122: 0 | W122: 0 | X122: 0 | Y122: 2 | Z122: 2 | AA122: 36 | AC122: =SUM(I122+R122+AA122) -> 134
A123: 1 Hr | B123: =SUM(B119:B122) -> 320 | C123: 39 | D123: 4 | E123: 0 | F123: 2 | G123: 17 | H123: 13 | I123: 395 | K123: =SUM(K119:K122) -> 0 | L123: 0 | M123: 0 | N123: 0 | O123: 0 | P123: 0 | Q123: 0 | R123: 0 | T123: =SUM(T119:T122) -> 109 | U123: 17 | V123: 1 | W123: 0 | X123: 1 | Y123: 17 | Z123: 13 | AA123: 158 | AC123: =SUM(AC119:AC122) -> 553
A124: 16:00:00 | B124: 75 | C124: 12 | D124: 0 | E124: 0 | F124: 0 | G124: 1 | H124: 8 | I124: =SUM(B124:H124) -> 96 | K124: 0 | L124: 0 | M124: 0 | N124: 0 | O124: 0 | P124: 0 | Q124: 0 | R124: =SUM(K124:Q124) -> 0 | T124: 29 | U124: 4 | V124: 0 | W124: 0 | X124: 0 | Y124: 4 | Z124: 5 | AA124: =SUM(T124:Z124) -> 42 | AC124: =SUM(I124+R124+AA124) -> 138
A125: 16:15:00 | B125: 67 | C125: 6 | D125: 0 | E125: 0 | F125: 0 | G125: 2 | H125: 4 | I125: 79 | K125: 0 | L125: 0 | M125: 0 | N125: 0 | O125: 0 | P125: 0 | Q125: 0 | R125: 0 | T125: 34 | U125: 3 | V125: 0 | W125: 0 | X125: 0 | Y125: 3 | Z125: 2 | AA125: 42 | AC125: =SUM(I125+R125+AA125) -> 121
A126: 16:30:00 | B126: 86 | C126: 11 | D126: 0 | E126: 0 | F126: 0 | G126: 3 | H126: 3 | I126: 103 | K126: 1 | L126: 0 | M126: 0 | N126: 0 | O126: 0 | P126: 0 | Q126: 0 | R126: 1 | T126: 26 | U126: 5 | V126: 0 | W126: 0 | X126: 0 | Y126: 1 | Z126: 7 | AA126: 39 | AC126: =SUM(I126+R126+AA126) -> 143
A127: 16:45:00 | B127: 80 | C127: 10 | D127: 0 | E127: 0 | F127: 0 | G127: 1 | H127: 4 | I127: 95 | K127: 2 | L127: 0 | M127: 0 | N127: 0 | O127: 0 | P127: 0 | Q127: 0 | R127: 2 | T127: 37 | U127: 8 | V127: 0 | W127: 0 | X127: 0 | Y127: 4 | Z127: 1 | AA127: 50 | AC127: =SUM(I127+R127+AA127) -> 147
A128: 1 Hr | B128: =SUM(B124:B127) -> 308 | C128: 39 | D128: 0 | E128: 0 | F128: 0 | G128: 7 | H128: 19 | I128: 373 | K128: =SUM(K124:K127) -> 3 | L128: 0 | M128: 0 | N128: 0 | O128: 0 | P128: 0 | Q128: 0 | R128: 3 | T128: =SUM(T124:T127) -> 126 | U128: 20 | V128: 0 | W128: 0 | X128: 0 | Y128: 12 | Z128: 15 | AA128: 173 | AC128: =SUM(AC124:AC127) -> 549
A129: 17:00:00 | B129: 90 | C129: 8 | D129: 0 | E129: 0 | F129: 0 | G129: 7 | H129: 6 | I129: =SUM(B129:H129) -> 111 | K129: 0 | L129: 0 | M129: 0 | N129: 0 | O129: 0 | P129: 0 | Q129: 0 | R129: =SUM(K129:Q129) -> 0 | T129: 33 | U129: 6 | V129: 0 | W129: 0 | X129: 0 | Y129: 2 | Z129: 4 | AA129: =SUM(T129:Z129) -> 45 | AC129: =SUM(I129+R129+AA129) -> 156
A130: 17:15:00 | B130: 94 | C130: 10 | D130: 0 | E130: 0 | F130: 0 | G130: 8 | H130: 7 | I130: 119 | K130: 1 | L130: 0 | M130: 0 | N130: 0 | O130: 0 | P130: 0 | Q130: 0 | R130: 1 | T130: 29 | U130: 2 | V130: 0 | W130: 0 | X130: 0 | Y130: 1 | Z130: 4 | AA130: 36 | AC130: =SUM(I130+R130+AA130) -> 156
A131: 17:30:00 | B131: 83 | C131: 8 | D131: 0 | E131: 0 | F131: 1 | G131: 6 | H131: 5 | I131: 103 | K131: 0 | L131: 0 | M131: 0 | N131: 0 | O131: 0 | P131: 0 | Q131: 0 | R131: 0 | T131: 31 | U131: 8 | V131: 0 | W131: 0 | X131: 0 | Y131: 5 | Z131: 6 | AA131: 50 | AC131: =SUM(I131+R131+AA131) -> 153
A132: 17:45:00 | B132: 95 | C132: 5 | D132: 1 | E132: 0 | F132: 0 | G132: 2 | H132: 10 | I132: 113 | K132: 3 | L132: 0 | M132: 0 | N132: 0 | O132: 0 | P132: 0 | Q132: 0 | R132: 3 | T132: 26 | U132: 12 | V132: 0 | W132: 0 | X132: 0 | Y132: 4 | Z132: 7 | AA132: 49 | AC132: =SUM(I132+R132+AA132) -> 165
A133: 1 Hr | B133: =SUM(B129:B132) -> 362 | C133: 31 | D133: 1 | E133: 0 | F133: 1 | G133: 23 | H133: 28 | I133: 446 | K133: =SUM(K129:K132) -> 4 | L133: 0 | M133: 0 | N133: 0 | O133: 0 | P133: 0 | Q133: 0 | R133: 4 | T133: =SUM(T129:T132) -> 119 | U133: 28 | V133: 0 | W133: 0 | X133: 0 | Y133: 12 | Z133: 21 | AA133: 180 | AC133: =SUM(AC129:AC132) -> 630
A134: 18:00:00 | B134: 97 | C134: 11 | D134: 0 | E134: 0 | F134: 0 | G134: 5 | H134: 10 | I134: =SUM(B134:H134) -> 123 | K134: 0 | L134: 0 | M134: 0 | N134: 0 | O134: 0 | P134: 0 | Q134: 0 | R134: =SUM(K134:Q134) -> 0 | T134: 34 | U134: 0 | V134: 0 | W134: 0 | X134: 0 | Y134: 6 | Z134: 5 | AA134: =SUM(T134:Z134) -> 45 | AC134: =SUM(I134+R134+AA134) -> 168
A135: 18:15:00 | B135: 97 | C135: 7 | D135: 1 | E135: 0 | F135: 0 | G135: 11 | H135: 7 | I135: 123 | K135: 1 | L135: 0 | M135: 0 | N135: 0 | O135: 0 | P135: 0 | Q135: 0 | R135: 1 | T135: 33 | U135: 4 | V135: 0 | W135: 0 | X135: 0 | Y135: 5 | Z135: 4 | AA135: 46 | AC135: =SUM(I135+R135+AA135) -> 170
A136: 18:30:00 | B136: 69 | C136: 7 | D136: 0 | E136: 0 | F136: 0 | G136: 8 | H136: 7 | I136: 91 | K136: 0 | L136: 0 | M136: 0 | N136: 0 | O136: 0 | P136: 0 | Q136: 0 | R136: 0 | T136: 24 | U136: 1 | V136: 0 | W136: 0 | X136: 0 | Y136: 4 | Z136: 4 | AA136: 33 | AC136: =SUM(I136+R136+AA136) -> 124
A137: 18:45:00 | B137: 72 | C137: 4 | D137: 0 | E137: 0 | F137: 0 | G137: 11 | H137: 4 | I137: 91 | K137: 0 | L137: 0 | M137: 0 | N137: 0 | O137: 0 | P137: 0 | Q137: 0 | R137: 0 | T137: 22 | U137: 3 | V137: 0 | W137: 0 | X137: 0 | Y137: 5 | Z137: 1 | AA137: 31 | AC137: =SUM(I137+R137+AA137) -> 122
A138: 1 Hr | B138: =SUM(B134:B137) -> 335 | C138: 29 | D138: 1 | E138: 0 | F138: 0 | G138: 35 | H138: 28 | I138: 428 | K138: =SUM(K134:K137) -> 1 | L138: 0 | M138: 0 | N138: 0 | O138: 0 | P138: 0 | Q138: 0 | R138: 1 | T138: =SUM(T134:T137) -> 113 | U138: 8 | V138: 0 | W138: 0 | X138: 0 | Y138: 20 | Z138: 14 | AA138: 155 | AC138: =SUM(AC134:AC137) -> 584
A140: Total | B140: =SUM(B138+B133+B128+B123+B118+B113+B108+B103+B98+B93+B88+B83) -> 3563 | C140: 683 | D140: 80 | E140: 5 | F140: 7 | G140: 168 | H140: 187 | I140: 4693 | K140: =SUM(K138+K133+K128+K123+K118+K113+K108+K103+K98+K93+K88+K83) -> 14 | L140: 1 | M140: 0 | N140: 0 | O140: 0 | P140: 1 | Q140: 1 | R140: 17 | T140: =SUM(T138+T133+T128+T123+T118+T113+T108+T103+T98+T93+T88+T83) -> 1256 | U140: 296 | V140: 35 | W140: 2 | X140: 5 | Y140: 146 | Z140: 145 | AA140: 1885 | AC140: =SUM(AC138+AC133+AC128+AC123+AC118+AC113+AC108+AC103+AC98+AC93+AC88+AC83) -> 6595
A142: Origin : | B142: Arm C | C142: Bollo Lane
B143: Destination : | D143: Arm A | E143: Acton Lane (NE) | I143: Total | K143: Destination : | M143: Arm B | N143: Acton Lane (S) | R143: Total | T143: Destination : | V143: Arm C | W143: Bollo Lane | AA143: Total | AC143: Arm Totals
B144: =$B$10 -> Car | C144: =$C$10 -> LGV | D144: =$D$10 -> OGV1 | E144: =$E$10 -> OGV2 | F144: =$F$10 -> PSV | G144: =$G$10 -> MC | H144: =$H$10 -> PC | K144: =$B$10 -> Car | L144: =$C$10 -> LGV | M144: =$D$10 -> OGV1 | N144: =$E$10 -> OGV2 | O144: =$F$10 -> PSV | P144: =$G$10 -> MC | Q144: =$H$10 -> PC | T144: =$B$10 -> Car | U144: =$C$10 -> LGV | V144: =$D$10 -> OGV1 | W144: =$E$10 -> OGV2 | X144: =$F$10 -> PSV | Y144: =$G$10 -> MC | Z144: =$H$10 -> PC
A146: 07:00:00 | B146: 4 | C146: 6 | D146: 1 | E146: 0 | F146: 2 | G146: 0 | H146: 0 | I146: =SUM(B146:H146) -> 13 | K146: 20 | L146: 11 | M146: 3 | N146: 0 | O146: 0 | P146: 0 | Q146: 3 | R146: =SUM(K146:Q146) -> 37 | T146: 0 | U146: 0 | V146: 0 | W146: 0 | X146: 0 | Y146: 0 | Z146: 0 | AA146: =SUM(T146:Z146) -> 0 | AC146: =SUM(I146+R146+AA146) -> 50
A147: 07:15:00 | B147: 6 | C147: 1 | D147: 1 | E147: 0 | F147: 0 | G147: 1 | H147: 0 | I147: 9 | K147: 36 | L147: 10 | M147: 1 | N147: 0 | O147: 0 | P147: 0 | Q147: 1 | R147: 48 | T147: 0 | U147: 0 | V147: 0 | W147: 0 | X147: 0 | Y147: 0 | Z147: 0 | AA147: 0 | AC147: =SUM(I147+R147+AA147) -> 57
A148: 07:30:00 | B148: 11 | C148: 5 | D148: 0 | E148: 0 | F148: 0 | G148: 0 | H148: 3 | I148: 19 | K148: 52 | L148: 14 | M148: 4 | N148: 0 | O148: 0 | P148: 3 | Q148: 4 | R148: 77 | T148: 0 | U148: 0 | V148: 0 | W148: 0 | X148: 0 | Y148: 0 | Z148: 0 | AA148: 0 | AC148: =SUM(I148+R148+AA148) -> 96
A149: 07:45:00 | B149: 13 | C149: 5 | D149: 0 | E149: 0 | F149: 0 | G149: 0 | H149: 2 | I149: 20 | K149: 46 | L149: 15 | M149: 0 | N149: 0 | O149: 0 | P149: 2 | Q149: 2 | R149: 65 | T149: 0 | U149: 0 | V149: 0 | W149: 0 | X149: 0 | Y149: 0 | Z149: 0 | AA149: 0 | AC149: =SUM(I149+R149+AA149) -> 85
A150: 1 Hr | B150: =SUM(B146:B149) -> 34 | C150: 17 | D150: 2 | E150: 0 | F150: 2 | G150: 1 | H150: 5 | I150: 61 | K150: =SUM(K146:K149) -> 154 | L150: 50 | M150: 8 | N150: 0 | O150: 0 | P150: 5 | Q150: 10 | R150: 227 | T150: =SUM(T146:T149) -> 0 | U150: 0 | V150: 0 | W150: 0 | X150: 0 | Y150: 0 | Z150: 0 | AA150: 0 | AC150: =SUM(AC146:AC149) -> 288
A151: 08:00:00 | B151: 6 | C151: 5 | D151: 0 | E151: 0 | F151: 0 | G151: 0 | H151: 2 | I151: =SUM(B151:H151) -> 13 | K151: 41 | L151: 12 | M151: 0 | N151: 0 | O151: 0 | P151: 1 | Q151: 7 | R151: =SUM(K151:Q151) -> 61 | T151: 0 | U151: 1 | V151: 0 | W151: 0 | X151: 0 | Y151: 0 | Z151: 0 | AA151: =SUM(T151:Z151) -> 1 | AC151: =SUM(I151+R151+AA151) -> 75
A152: 08:15:00 | B152: 8 | C152: 2 | D152: 0 | E152: 0 | F152: 0 | G152: 1 | H152: 0 | I152: 11 | K152: 46 | L152: 5 | M152: 3 | N152: 0 | O152: 0 | P152: 1 | Q152: 5 | R152: 60 | T152: 0 | U152: 0 | V152: 0 | W152: 0 | X152: 0 | Y152: 0 | Z152: 0 | AA152: 0 | AC152: =SUM(I152+R152+AA152) -> 71
A153: 08:30:00 | B153: 7 | C153: 1 | D153: 0 | E153: 0 | F153: 0 | G153: 0 | H153: 3 | I153: 11 | K153: 55 | L153: 8 | M153: 1 | N153: 0 | O153: 0 | P153: 1 | Q153: 7 | R153: 72 | T153: 0 | U153: 0 | V153: 0 | W153: 0 | X153: 0 | Y153: 0 | Z153: 0 | AA153: 0 | AC153: =SUM(I153+R153+AA153) -> 83
A154: 08:45:00 | B154: 10 | C154: 4 | D154: 0 | E154: 0 | F154: 0 | G154: 1 | H154: 0 | I154: 15 | K154: 40 | L154: 10 | M154: 1 | N154: 0 | O154: 0 | P154: 1 | Q154: 2 | R154: 54 | T154: 0 | U154: 0 | V154: 0 | W154: 0 | X154: 0 | Y154: 0 | Z154: 0 | AA154: 0 | AC154: =SUM(I154+R154+AA154) -> 69
A155: 1 Hr | B155: =SUM(B151:B154) -> 31 | C155: 12 | D155: 0 | E155: 0 | F155: 0 | G155: 2 | H155: 5 | I155: 50 | K155: =SUM(K151:K154) -> 182 | L155: 35 | M155: 5 | N155: 0 | O155: 0 | P155: 4 | Q155: 21 | R155: 247 | T155: =SUM(T151:T154) -> 0 | U155: 1 | V155: 0 | W155: 0 | X155: 0 | Y155: 0 | Z155: 0 | AA155: 1 | AC155: =SUM(AC151:AC154) -> 298
A156: 09:00:00 | B156: 10 | C156: 1 | D156: 1 | E156: 0 | F156: 0 | G156: 1 | H156: 1 | I156: =SUM(B156:H156) -> 14 | K156: 35 | L156: 13 | M156: 2 | N156: 0 | O156: 0 | P156: 5 | Q156: 1 | R156: =SUM(K156:Q156) -> 56 | T156: 0 | U156: 0 | V156: 0 | W156: 0 | X156: 0 | Y156: 0 | Z156: 0 | AA156: =SUM(T156:Z156) -> 0 | AC156: =SUM(I156+R156+AA156) -> 70
A157: 09:15:00 | B157: 17 | C157: 1 | D157: 0 | E157: 0 | F157: 0 | G157: 0 | H157: 0 | I157: 18 | K157: 31 | L157: 9 | M157: 2 | N157: 1 | O157: 0 | P157: 4 | Q157: 2 | R157: 49 | T157: 0 | U157: 0 | V157: 0 | W157: 0 | X157: 0 | Y157: 0 | Z157: 0 | AA157: 0 | AC157: =SUM(I157+R157+AA157) -> 67
A158: 09:30:00 | B158: 9 | C158: 4 | D158: 0 | E158: 0 | F158: 0 | G158: 1 | H158: 0 | I158: 14 | K158: 23 | L158: 9 | M158: 0 | N158: 0 | O158: 0 | P158: 5 | Q158: 1 | R158: 38 | T158: 0 | U158: 0 | V158: 0 | W158: 0 | X158: 0 | Y158: 0 | Z158: 0 | AA158: 0 | AC158: =SUM(I158+R158+AA158) -> 52
A159: 09:45:00 | B159: 9 | C159: 4 | D159: 0 | E159: 0 | F159: 0 | G159: 2 | H159: 1 | I159: 16 | K159: 22 | L159: 9 | M159: 1 | N159: 0 | O159: 0 | P159: 2 | Q159: 4 | R159: 38 | T159: 0 | U159: 0 | V159: 0 | W159: 0 | X159: 0 | Y159: 0 | Z159: 0 | AA159: 0 | AC159: =SUM(I159+R159+AA159) -> 54
A160: 1 Hr | B160: =SUM(B156:B159) -> 45 | C160: 10 | D160: 1 | E160: 0 | F160: 0 | G160: 4 | H160: 2 | I160: 62 | K160: =SUM(K156:K159) -> 111 | L160: 40 | M160: 5 | N160: 1 | O160: 0 | P160: 16 | Q160: 8 | R160: 181 | T160: =SUM(T156:T159) -> 0 | U160: 0 | V160: 0 | W160: 0 | X160: 0 | Y160: 0 | Z160: 0 | AA160: 0 | AC160: =SUM(AC156:AC159) -> 243
A161: 10:00:00 | B161: 11 | C161: 5 | D161: 0 | E161: 0 | F161: 0 | G161: 1 | H161: 0 | I161: =SUM(B161:H161) -> 17 | K161: 22 | L161: 9 | M161: 1 | N161: 0 | O161: 0 | P161: 4 | Q161: 1 | R161: =SUM(K161:Q161) -> 37 | T161: 0 | U161: 0 | V161: 0 | W161: 0 | X161: 0 | Y161: 0 | Z161: 0 | AA161: =SUM(T161:Z161) -> 0 | AC161: =SUM(I161+R161+AA161) -> 54
A162: 10:15:00 | B162: 12 | C162: 2 | D162: 0 | E162: 0 | F162: 0 | G162: 0 | H162: 0 | I162: 14 | K162: 19 | L162: 9 | M162: 1 | N162: 0 | O162: 0 | P162: 5 | Q162: 0 | R162: 34 | T162: 0 | U162: 0 | V162: 0 | W162: 0 | X162: 0 | Y162: 0 | Z162: 0 | AA162: 0 | AC162: =SUM(I162+R162+AA162) -> 48
A163: 10:30:00 | B163: 8 | C163: 3 | D163: 1 | E163: 0 | F163: 0 | G163: 1 | H163: 0 | I163: 13 | K163: 29 | L163: 16 | M163: 4 | N163: 0 | O163: 0 | P163: 2 | Q163: 0 | R163: 51 | T163: 0 | U163: 0 | V163: 0 | W163: 0 | X163: 0 | Y163: 0 | Z163: 0 | AA163: 0 | AC163: =SUM(I163+R163+AA163) -> 64
A164: 10:45:00 | B164: 12 | C164: 1 | D164: 0 | E164: 0 | F164: 0 | G164: 1 | H164: 0 | I164: 14 | K164: 23 | L164: 3 | M164: 0 | N164: 0 | O164: 0 | P164: 1 | Q164: 2 | R164: 29 | T164: 0 | U164: 0 | V164: 0 | W164: 0 | X164: 0 | Y164: 0 | Z164: 0 | AA164: 0 | AC164: =SUM(I164+R164+AA164) -> 43
A165: 1 Hr | B165: =SUM(B161:B164) -> 43 | C165: 11 | D165: 1 | E165: 0 | F165: 0 | G165: 3 | H165: 0 | I165: 58 | K165: =SUM(K161:K164) -> 93 | L165: 37 | M165: 6 | N165: 0 | O165: 0 | P165: 12 | Q165: 3 | R165: 151 | T165: =SUM(T161:T164) -> 0 | U165: 0 | V165: 0 | W165: 0 | X165: 0 | Y165: 0 | Z165: 0 | AA165: 0 | AC165: =SUM(AC161:AC164) -> 209
A166: 11:00:00 | B166: 14 | C166: 3 | D166: 1 | E166: 0 | F166: 0 | G166: 1 | H166: 0 | I166: =SUM(B166:H166) -> 19 | K166: 26 | L166: 8 | M166: 2 | N166: 0 | O166: 1 | P166: 1 | Q166: 0 | R166: =SUM(K166:Q166) -> 38 | T166: 0 | U166: 0 | V166: 0 | W166: 0 | X166: 0 | Y166: 0 | Z166: 0 | AA166: =SUM(T166:Z166) -> 0 | AC166: =SUM(I166+R166+AA166) -> 57
A167: 11:15:00 | B167: 5 | C167: 2 | D167: 0 | E167: 0 | F167: 0 | G167: 2 | H167: 1 | I167: 10 | K167: 22 | L167: 11 | M167: 0 | N167: 0 | O167: 0 | P167: 3 | Q167: 1 | R167: 37 | T167: 0 | U167: 0 | V167: 0 | W167: 0 | X167: 0 | Y167: 0 | Z167: 0 | AA167: 0 | AC167: =SUM(I167+R167+AA167) -> 47
A168: 11:30:00 | B168: 5 | C168: 2 | D168: 0 | E168: 0 | F168: 0 | G168: 1 | H168: 0 | I168: 8 | K168: 27 | L168: 8 | M168: 2 | N168: 0 | O168: 0 | P168: 3 | Q168: 2 | R168: 42 | T168: 1 | U168: 0 | V168: 0 | W168: 0 | X168: 0 | Y168: 0 | Z168: 0 | AA168: 1 | AC168: =SUM(I168+R168+AA168) -> 51
A169: 11:45:00 | B169: 7 | C169: 4 | D169: 0 | E169: 0 | F169: 0 | G169: 0 | H169: 1 | I169: 12 | K169: 22 | L169: 7 | M169: 0 | N169: 0 | O169: 0 | P169: 1 | Q169: 1 | R169: 31 | T169: 0 | U169: 0 | V169: 0 | W169: 0 | X169: 0 | Y169: 0 | Z169: 0 | AA169: 0 | AC169: =SUM(I169+R169+AA169) -> 43
A170: 1 Hr | B170: =SUM(B166:B169) -> 31 | C170: 11 | D170: 1 | E170: 0 | F170: 0 | G170: 4 | H170: 2 | I170: 49 | K170: =SUM(K166:K169) -> 97 | L170: 34 | M170: 4 | N170: 0 | O170: 1 | P170: 8 | Q170: 4 | R170: 148 | T170: =SUM(T166:T169) -> 1 | U170: 0 | V170: 0 | W170: 0 | X170: 0 | Y170: 0 | Z170: 0 | AA170: 1 | AC170: =SUM(AC166:AC169) -> 198
A171: 12:00:00 | B171: 12 | C171: 1 | D171: 0 | E171: 0 | F171: 0 | G171: 3 | H171: 0 | I171: =SUM(B171:H171) -> 16 | K171: 31 | L171: 5 | M171: 0 | N171: 0 | O171: 0 | P171: 4 | Q171: 3 | R171: =SUM(K171:Q171) -> 43 | T171: 0 | U171: 0 | V171: 0 | W171: 0 | X171: 0 | Y171: 0 | Z171: 0 | AA171: =SUM(T171:Z171) -> 0 | AC171: =SUM(I171+R171+AA171) -> 59
A172: 12:15:00 | B172: 9 | C172: 2 | D172: 0 | E172: 0 | F172: 0 | G172: 0 | H172: 0 | I172: 11 | K172: 34 | L172: 7 | M172: 4 | N172: 0 | O172: 0 | P172: 4 | Q172: 3 | R172: 52 | T172: 0 | U172: 0 | V172: 0 | W172: 0 | X172: 0 | Y172: 0 | Z172: 0 | AA172: 0 | AC172: =SUM(I172+R172+AA172) -> 63
A173: 12:30:00 | B173: 8 | C173: 2 | D173: 1 | E173: 0 | F173: 0 | G173: 4 | H173: 0 | I173: 15 | K173: 62 | L173: 26 | M173: 4 | N173: 0 | O173: 0 | P173: 3 | Q173: 5 | R173: 100 | T173: 0 | U173: 0 | V173: 0 | W173: 0 | X173: 0 | Y173: 0 | Z173: 0 | AA173: 0 | AC173: =SUM(I173+R173+AA173) -> 115
A174: 12:45:00 | B174: 10 | C174: 1 | D174: 0 | E174: 0 | F174: 0 | G174: 2 | H174: 0 | I174: 13 | K174: 40 | L174: 9 | M174: 2 | N174: 0 | O174: 1 | P174: 8 | Q174: 4 | R174: 64 | T174: 0 | U174: 0 | V174: 0 | W174: 0 | X174: 0 | Y174: 0 | Z174: 0 | AA174: 0 | AC174: =SUM(I174+R174+AA174) -> 77
A175: 1 Hr | B175: =SUM(B171:B174) -> 39 | C175: 6 | D175: 1 | E175: 0 | F175: 0 | G175: 9 | H175: 0 | I175: 55 | K175: =SUM(K171:K174) -> 167 | L175: 47 | M175: 10 | N175: 0 | O175: 1 | P175: 19 | Q175: 15 | R175: 259 | T175: =SUM(T171:T174) -> 0 | U175: 0 | V175: 0 | W175: 0 | X175: 0 | Y175: 0 | Z175: 0 | AA175: 0 | AC175: =SUM(AC171:AC174) -> 314
A176: 13:00:00 | B176: 21 | C176: 3 | D176: 2 | E176: 0 | F176: 0 | G176: 1 | H176: 0 | I176: =SUM(B176:H176) -> 27 | K176: 26 | L176: 11 | M176: 1 | N176: 0 | O176: 0 | P176: 8 | Q176: 1 | R176: =SUM(K176:Q176) -> 47 | T176: 0 | U176: 0 | V176: 0 | W176: 0 | X176: 0 | Y176: 0 | Z176: 0 | AA176: =SUM(T176:Z176) -> 0 | AC176: =SUM(I176+R176+AA176) -> 74
A177: 13:15:00 | B177: 5 | C177: 4 | D177: 0 | E177: 0 | F177: 0 | G177: 1 | H177: 0 | I177: 10 | K177: 29 | L177: 7 | M177: 0 | N177: 0 | O177: 0 | P177: 2 | Q177: 3 | R177: 41 | T177: 0 | U177: 0 | V177: 0 | W177: 0 | X177: 0 | Y177: 0 | Z177: 0 | AA177: 0 | AC177: =SUM(I177+R177+AA177) -> 51
A178: 13:30:00 | B178: 9 | C178: 1 | D178: 0 | E178: 0 | F178: 0 | G178: 2 | H178: 0 | I178: 12 | K178: 29 | L178: 5 | M178: 2 | N178: 0 | O178: 0 | P178: 4 | Q178: 1 | R178: 41 | T178: 0 | U178: 0 | V178: 0 | W178: 0 | X178: 0 | Y178: 0 | Z178: 0 | AA178: 0 | AC178: =SUM(I178+R178+AA178) -> 53
A179: 13:45:00 | B179: 4 | C179: 1 | D179: 0 | E179: 0 | F179: 0 | G179: 0 | H179: 0 | I179: 5 | K179: 16 | L179: 3 | M179: 0 | N179: 0 | O179: 0 | P179: 3 | Q179: 1 | R179: 23 | T179: 0 | U179: 0 | V179: 0 | W179: 0 | X179: 0 | Y179: 0 | Z179: 0 | AA179: 0 | AC179: =SUM(I179+R179+AA179) -> 28
A180: 1 Hr | B180: =SUM(B176:B179) -> 39 | C180: 9 | D180: 2 | E180: 0 | F180: 0 | G180: 4 | H180: 0 | I180: 54 | K180: =SUM(K176:K179) -> 100 | L180: 26 | M180: 3 | N180: 0 | O180: 0 | P180: 17 | Q180: 6 | R180: 152 | T180: =SUM(T176:T179) -> 0 | U180: 0 | V180: 0 | W180: 0 | X180: 0 | Y180: 0 | Z180: 0 | AA180: 0 | AC180: =SUM(AC176:AC179) -> 206
A181: 14:00:00 | B181: 17 | C181: 3 | D181: 0 | E181: 0 | F181: 0 | G181: 4 | H181: 1 | I181: =SUM(B181:H181) -> 25 | K181: 34 | L181: 5 | M181: 3 | N181: 0 | O181: 0 | P181: 3 | Q181: 2 | R181: =SUM(K181:Q181) -> 47 | T181: 0 | U181: 0 | V181: 0 | W181: 0 | X181: 0 | Y181: 0 | Z181: 0 | AA181: =SUM(T181:Z181) -> 0 | AC181: =SUM(I181+R181+AA181) -> 72
A182: 14:15:00 | B182: 4 | C182: 1 | D182: 0 | E182: 0 | F182: 0 | G182: 1 | H182: 2 | I182: 8 | K182: 22 | L182: 5 | M182: 0 | N182: 0 | O182: 0 | P182: 6 | Q182: 3 | R182: 36 | T182: 0 | U182: 0 | V182: 0 | W182: 0 | X182: 0 | Y182: 0 | Z182: 0 | AA182: 0 | AC182: =SUM(I182+R182+AA182) -> 44
A183: 14:30:00 | B183: 17 | C183: 1 | D183: 0 | E183: 0 | F183: 0 | G183: 3 | H183: 0 | I183: 21 | K183: 40 | L183: 5 | M183: 3 | N183: 0 | O183: 0 | P183: 3 | Q183: 2 | R183: 53 | T183: 0 | U183: 0 | V183: 0 | W183: 0 | X183: 0 | Y183: 0 | Z183: 0 | AA183: 0 | AC183: =SUM(I183+R183+AA183) -> 74
A184: 14:45:00 | B184: 7 | C184: 1 | D184: 0 | E184: 0 | F184: 0 | G184: 2 | H184: 1 | I184: 11 | K184: 45 | L184: 5 | M184: 0 | N184: 0 | O184: 0 | P184: 4 | Q184: 3 | R184: 57 | T184: 0 | U184: 0 | V184: 0 | W184: 0 | X184: 0 | Y184: 0 | Z184: 0 | AA184: 0 | AC184: =SUM(I184+R184+AA184) -> 68
A185: 1 Hr | B185: =SUM(B181:B184) -> 45 | C185: 6 | D185: 0 | E185: 0 | F185: 0 | G185: 10 | H185: 4 | I185: 65 | K185: =SUM(K181:K184) -> 141 | L185: 20 | M185: 6 | N185: 0 | O185: 0 | P185: 16 | Q185: 10 | R185: 193 | T185: =SUM(T181:T184) -> 0 | U185: 0 | V185: 0 | W185: 0 | X185: 0 | Y185: 0 | Z185: 0 | AA185: 0 | AC185: =SUM(AC181:AC184) -> 258
A186: 15:00:00 | B186: 7 | C186: 0 | D186: 2 | E186: 0 | F186: 0 | G186: 1 | H186: 0 | I186: =SUM(B186:H186) -> 10 | K186: 40 | L186: 9 | M186: 1 | N186: 0 | O186: 0 | P186: 8 | Q186: 2 | R186: =SUM(K186:Q186) -> 60 | T186: 0 | U186: 0 | V186: 0 | W186: 0 | X186: 0 | Y186: 0 | Z186: 0 | AA186: =SUM(T186:Z186) -> 0 | AC186: =SUM(I186+R186+AA186) -> 70
A187: 15:15:00 | B187: 4 | C187: 3 | D187: 0 | E187: 0 | F187: 0 | G187: 0 | H187: 0 | I187: 7 | K187: 32 | L187: 6 | M187: 3 | N187: 0 | O187: 0 | P187: 3 | Q187: 5 | R187: 49 | T187: 0 | U187: 0 | V187: 0 | W187: 0 | X187: 0 | Y187: 0 | Z187: 0 | AA187: 0 | AC187: =SUM(I187+R187+AA187) -> 56
A188: 15:30:00 | B188: 6 | C188: 2 | D188: 0 | E188: 0 | F188: 0 | G188: 1 | H188: 4 | I188: 13 | K188: 22 | L188: 6 | M188: 1 | N188: 0 | O188: 1 | P188: 2 | Q188: 3 | R188: 35 | T188: 0 | U188: 0 | V188: 0 | W188: 0 | X188: 0 | Y188: 0 | Z188: 0 | AA188: 0 | AC188: =SUM(I188+R188+AA188) -> 48
A189: 15:45:00 | B189: 8 | C189: 2 | D189: 0 | E189: 0 | F189: 0 | G189: 2 | H189: 0 | I189: 12 | K189: 38 | L189: 12 | M189: 0 | N189: 0 | O189: 0 | P189: 1 | Q189: 1 | R189: 52 | T189: 0 | U189: 0 | V189: 0 | W189: 0 | X189: 0 | Y189: 0 | Z189: 0 | AA189: 0 | AC189: =SUM(I189+R189+AA189) -> 64
A190: 1 Hr | B190: =SUM(B186:B189) -> 25 | C190: 7 | D190: 2 | E190: 0 | F190: 0 | G190: 4 | H190: 4 | I190: 42 | K190: =SUM(K186:K189) -> 132 | L190: 33 | M190: 5 | N190: 0 | O190: 1 | P190: 14 | Q190: 11 | R190: 196 | T190: =SUM(T186:T189) -> 0 | U190: 0 | V190: 0 | W190: 0 | X190: 0 | Y190: 0 | Z190: 0 | AA190: 0 | AC190: =SUM(AC186:AC189) -> 238
A191: 16:00:00 | B191: 6 | C191: 2 | D191: 0 | E191: 0 | F191: 0 | G191: 1 | H191: 0 | I191: =SUM(B191:H191) -> 9 | K191: 26 | L191: 2 | M191: 0 | N191: 0 | O191: 0 | P191: 2 | Q191: 3 | R191: =SUM(K191:Q191) -> 33 | T191: 0 | U191: 0 | V191: 0 | W191: 0 | X191: 0 | Y191: 0 | Z191: 0 | AA191: =SUM(T191:Z191) -> 0 | AC191: =SUM(I191+R191+AA191) -> 42
A192: 16:15:00 | B192: 8 | C192: 1 | D192: 0 | E192: 0 | F192: 0 | G192: 0 | H192: 0 | I192: 9 | K192: 38 | L192: 8 | M192: 0 | N192: 0 | O192: 0 | P192: 3 | Q192: 0 | R192: 49 | T192: 0 | U192: 0 | V192: 0 | W192: 0 | X192: 0 | Y192: 0 | Z192: 0 | AA192: 0 | AC192: =SUM(I192+R192+AA192) -> 58
A193: 16:30:00 | B193: 10 | C193: 0 | D193: 0 | E193: 0 | F193: 0 | G193: 2 | H193: 0 | I193: 12 | K193: 43 | L193: 10 | M193: 0 | N193: 0 | O193: 0 | P193: 4 | Q193: 3 | R193: 60 | T193: 0 | U193: 0 | V193: 0 | W193: 0 | X193: 0 | Y193: 0 | Z193: 0 | AA193: 0 | AC193: =SUM(I193+R193+AA193) -> 72
A194: 16:45:00 | B194: 6 | C194: 0 | D194: 0 | E194: 0 | F194: 0 | G194: 4 | H194: 0 | I194: 10 | K194: 41 | L194: 6 | M194: 0 | N194: 0 | O194: 0 | P194: 2 | Q194: 2 | R194: 51 | T194: 0 | U194: 0 | V194: 0 | W194: 0 | X194: 0 | Y194: 0 | Z194: 0 | AA194: 0 | AC194: =SUM(I194+R194+AA194) -> 61
A195: 1 Hr | B195: =SUM(B191:B194) -> 30 | C195: 3 | D195: 0 | E195: 0 | F195: 0 | G195: 7 | H195: 0 | I195: 40 | K195: =SUM(K191:K194) -> 148 | L195: 26 | M195: 0 | N195: 0 | O195: 0 | P195: 11 | Q195: 8 | R195: 193 | T195: =SUM(T191:T194) -> 0 | U195: 0 | V195: 0 | W195: 0 | X195: 0 | Y195: 0 | Z195: 0 | AA195: 0 | AC195: =SUM(AC191:AC194) -> 233
A196: 17:00:00 | B196: 8 | C196: 0 | D196: 0 | E196: 0 | F196: 0 | G196: 1 | H196: 0 | I196: =SUM(B196:H196) -> 9 | K196: 47 | L196: 8 | M196: 0 | N196: 0 | O196: 0 | P196: 5 | Q196: 3 | R196: =SUM(K196:Q196) -> 63 | T196: 0 | U196: 0 | V196: 0 | W196: 0 | X196: 0 | Y196: 0 | Z196: 0 | AA196: =SUM(T196:Z196) -> 0 | AC196: =SUM(I196+R196+AA196) -> 72
A197: 17:15:00 | B197: 7 | C197: 0 | D197: 0 | E197: 0 | F197: 0 | G197: 2 | H197: 0 | I197: 9 | K197: 58 | L197: 8 | M197: 0 | N197: 0 | O197: 0 | P197: 5 | Q197: 2 | R197: 73 | T197: 0 | U197: 0 | V197: 0 | W197: 0 | X197: 0 | Y197: 0 | Z197: 0 | AA197: 0 | AC197: =SUM(I197+R197+AA197) -> 82
A198: 17:30:00 | B198: 7 | C198: 2 | D198: 0 | E198: 0 | F198: 0 | G198: 1 | H198: 0 | I198: 10 | K198: 55 | L198: 11 | M198: 0 | N198: 0 | O198: 0 | P198: 2 | Q198: 3 | R198: 71 | T198: 0 | U198: 0 | V198: 0 | W198: 0 | X198: 0 | Y198: 0 | Z198: 0 | AA198: 0 | AC198: =SUM(I198+R198+AA198) -> 81
A199: 17:45:00 | B199: 4 | C199: 0 | D199: 0 | E199: 0 | F199: 0 | G199: 1 | H199: 1 | I199: 6 | K199: 50 | L199: 9 | M199: 0 | N199: 0 | O199: 0 | P199: 2 | Q199: 4 | R199: 65 | T199: 0 | U199: 0 | V199: 0 | W199: 0 | X199: 0 | Y199: 0 | Z199: 0 | AA199: 0 | AC199: =SUM(I199+R199+AA199) -> 71
A200: 1 Hr | B200: =SUM(B196:B199) -> 26 | C200: 2 | D200: 0 | E200: 0 | F200: 0 | G200: 5 | H200: 1 | I200: 34 | K200: =SUM(K196:K199) -> 210 | L200: 36 | M200: 0 | N200: 0 | O200: 0 | P200: 14 | Q200: 12 | R200: 272 | T200: =SUM(T196:T199) -> 0 | U200: 0 | V200: 0 | W200: 0 | X200: 0 | Y200: 0 | Z200: 0 | AA200: 0 | AC200: =SUM(AC196:AC199) -> 306
A201: 18:00:00 | B201: 9 | C201: 3 | D201: 0 | E201: 0 | F201: 1 | G201: 2 | H201: 1 | I201: =SUM(B201:H201) -> 16 | K201: 72 | L201: 4 | M201: 0 | N201: 0 | O201: 0 | P201: 5 | Q201: 5 | R201: =SUM(K201:Q201) -> 86 | T201: 0 | U201: 0 | V201: 0 | W201: 0 | X201: 0 | Y201: 0 | Z201: 0 | AA201: =SUM(T201:Z201) -> 0 | AC201: =SUM(I201+R201+AA201) -> 102
A202: 18:15:00 | B202: 13 | C202: 1 | D202: 0 | E202: 0 | F202: 0 | G202: 3 | H202: 3 | I202: 20 | K202: 47 | L202: 7 | M202: 0 | N202: 0 | O202: 0 | P202: 3 | Q202: 4 | R202: 61 | T202: 0 | U202: 0 | V202: 0 | W202: 0 | X202: 0 | Y202: 0 | Z202: 0 | AA202: 0 | AC202: =SUM(I202+R202+AA202) -> 81
A203: 18:30:00 | B203: 13 | C203: 3 | D203: 0 | E203: 0 | F203: 0 | G203: 2 | H203: 2 | I203: 20 | K203: 70 | L203: 5 | M203: 0 | N203: 0 | O203: 0 | P203: 8 | Q203: 3 | R203: 86 | T203: 0 | U203: 0 | V203: 0 | W203: 0 | X203: 0 | Y203: 0 | Z203: 0 | AA203: 0 | AC203: =SUM(I203+R203+AA203) -> 106
A204: 18:45:00 | B204: 8 | C204: 1 | D204: 0 | E204: 0 | F204: 0 | G204: 1 | H204: 0 | I204: 10 | K204: 36 | L204: 6 | M204: 1 | N204: 0 | O204: 0 | P204: 6 | Q204: 4 | R204: 53 | T204: 0 | U204: 0 | V204: 0 | W204: 0 | X204: 0 | Y204: 0 | Z204: 0 | AA204: 0 | AC204: =SUM(I204+R204+AA204) -> 63
A205: 1 Hr | B205: =SUM(B201:B204) -> 43 | C205: 8 | D205: 0 | E205: 0 | F205: 1 | G205: 8 | H205: 6 | I205: 66 | K205: =SUM(K201:K204) -> 225 | L205: 22 | M205: 1 | N205: 0 | O205: 0 | P205: 22 | Q205: 16 | R205: 286 | T205: =SUM(T201:T204) -> 0 | U205: 0 | V205: 0 | W205: 0 | X205: 0 | Y205: 0 | Z205: 0 | AA205: 0 | AC205: =SUM(AC201:AC204) -> 352
A207: Total | B207: =SUM(B205+B200+B195+B190+B185+B180+B175+B170+B165+B160+B155+B150) -> 431 | C207: 102 | D207: 10 | E207: 0 | F207: 3 | G207: 61 | H207: 29 | I207: 636 | K207: =SUM(K205+K200+K195+K190+K185+K180+K175+K170+K165+K160+K155+K150) -> 1760 | L207: 406 | M207: 53 | N207: 1 | O207: 3 | P207: 158 | Q207: 124 | R207: 2505 | T207: =SUM(T205+T200+T195+T190+T185+T180+T175+T170+T165+T160+T155+T150) -> 1 | U207: 1 | V207: 0 | W207: 0 | X207: 0 | Y207: 0 | Z207: 0 | AA207: 2 | AC207: =SUM(AC205+AC200+AC195+AC190+AC185+AC180+AC175+AC170+AC165+AC160+AC155+AC150) -> 3143
A209: ORIGIN SUMMARY
B210: Origin : | D210: Arm A | E210: Acton Lane (NE) | I210: Total | K210: Origin : | M210: Arm B | N210: Acton Lane (S) | R210: Total | T210: Origin : | V210: Arm C | W210: Bollo Lane | AA210: Total | AC210: Origin Totals
B211: =$B$10 -> Car | C211: =$C$10 -> LGV | D211: =$D$10 -> OGV1 | E211: =$E$10 -> OGV2 | F211: =$F$10 -> PSV | G211: =$G$10 -> MC | H211: =$H$10 -> PC | K211: =$B$10 -> Car | L211: =$C$10 -> LGV | M211: =$D$10 -> OGV1 | N211: =$E$10 -> OGV2 | O211: =$F$10 -> PSV | P211: =$G$10 -> MC | Q211: =$H$10 -> PC | T211: =$B$10 -> Car | U211: =$C$10 -> LGV | V211: =$D$10 -> OGV1 | W211: =$E$10 -> OGV2 | X211: =$F$10 -> PSV | Y211: =$G$10 -> MC | Z211: =$H$10 -> PC
A213: 07:00:00 | B213: =SUM(B12+K12+T12) -> 60 | C213: 6 | D213: 1 | E213: 0 | F213: 1 | G213: 1 | H213: 6 | I213: =SUM(B213:H213) -> 75 | K213: =SUM(B79+K79+T79) -> 79 | L213: 27 | M213: 4 | N213: 0 | O213: 1 | P213: 3 | Q213: 5 | R213: =SUM(K213:Q213) -> 119 | T213: =SUM(B146+K146+T146) -> 24 | U213: 17 | V213: 4 | W213: 0 | X213: 2 | Y213: 0 | Z213: 3 | AA213: =SUM(T213:Z213) -> 50 | AC213: =SUM(I213+R213+AA213) -> 244
... 124 more rows

Sheet Site 26
AC1: ='Project Details'!F9&" "&'Project Details'!F10 -> 4780-LON Chiswick & Turnham Green area
AC2: Junction Turning Count
Z3: ='Project Details'!F14 -> 2021-04-29
AC5: Site 26 - South Parade (E) / Fisher's Lane / South Parade (W)
A8: Origin : | B8: Arm A | C8: South Parade (E)
B9: Destination : | D9: Arm A | E9: South Parade (E) | I9: Total | K9: Destination : | M9: Arm B | N9: Fisher's Lane | R9: Total | T9: Destination : | V9: Arm C | W9: South Parade (W) | AA9: Total | AC9: Arm Totals
B10: Car | C10: LGV | D10: OGV1 | E10: OGV2 | F10: PSV | G10: MC | H10: PC | K10: =$B$10 -> Car | L10: =$C$10 -> LGV | M10: =$D$10 -> OGV1 | N10: =$E$10 -> OGV2 | O10: =$F$10 -> PSV | P10: =$G$10 -> MC | Q10: =$H$10 -> PC | T10: =$B$10 -> Car | U10: =$C$10 -> LGV | V10: =$D$10 -> OGV1 | W10: =$E$10 -> OGV2 | X10: =$F$10 -> PSV | Y10: =$G$10 -> MC | Z10: =$H$10 -> PC
A12: 07:00:00 | B12: 0 | C12: 0 | D12: 0 | E12: 0 | F12: 0 | G12: 0 | H12: 0 | I12: =SUM(B12:H12) -> 0 | K12: 2 | L12: 0 | M12: 0 | N12: 0 | O12: 1 | P12: 0 | Q12: 0 | R12: =SUM(K12:Q12) -> 3 | T12: 37 | U12: 2 | V12: 2 | W12: 0 | X12: 5 | Y12: 0 | Z12: 0 | AA12: =SUM(T12:Z12) -> 46 | AC12: =SUM(I12+R12+AA12) -> 49
A13: 07:15:00 | B13: 1 | C13: 0 | D13: 0 | E13: 0 | F13: 0 | G13: 0 | H13: 0 | I13: 1 | K13: 3 | L13: 0 | M13: 0 | N13: 0 | O13: 2 | P13: 0 | Q13: 2 | R13: 7 | T13: 32 | U13: 2 | V13: 0 | W13: 0 | X13: 2 | Y13: 1 | Z13: 1 | AA13: 38 | AC13: =SUM(I13+R13+AA13) -> 46
A14: 07:30:00 | B14: 0 | C14: 0 | D14: 0 | E14: 0 | F14: 0 | G14: 0 | H14: 0 | I14: 0 | K14: 1 | L14: 0 | M14: 0 | N14: 0 | O14: 2 | P14: 0 | Q14: 1 | R14: 4 | T14: 49 | U14: 3 | V14: 1 | W14: 0 | X14: 5 | Y14: 2 | Z14: 1 | AA14: 61 | AC14: =SUM(I14+R14+AA14) -> 65
A15: 07:45:00 | B15: 0 | C15: 0 | D15: 0 | E15: 0 | F15: 0 | G15: 0 | H15: 0 | I15: 0 | K15: 1 | L15: 0 | M15: 0 | N15: 0 | O15: 2 | P15: 0 | Q15: 2 | R15: 5 | T15: 62 | U15: 4 | V15: 0 | W15: 0 | X15: 7 | Y15: 1 | Z15: 1 | AA15: 75 | AC15: =SUM(I15+R15+AA15) -> 80
A16: 1 Hr | B16: =SUM(B12:B15) -> 1 | C16: 0 | D16: 0 | E16: 0 | F16: 0 | G16: 0 | H16: 0 | I16: 1 | K16: =SUM(K12:K15) -> 7 | L16: 0 | M16: 0 | N16: 0 | O16: 7 | P16: 0 | Q16: 5 | R16: 19 | T16: =SUM(T12:T15) -> 180 | U16: 11 | V16: 3 | W16: 0 | X16: 19 | Y16: 4 | Z16: 3 | AA16: 220 | AC16: =SUM(AC12:AC15) -> 240
A17: 08:00:00 | B17: 0 | C17: 0 | D17: 0 | E17: 0 | F17: 0 | G17: 0 | H17: 0 | I17: =SUM(B17:H17) -> 0 | K17: 1 | L17: 0 | M17: 0 | N17: 0 | O17: 2 | P17: 0 | Q17: 0 | R17: =SUM(K17:Q17) -> 3 | T17: 65 | U17: 8 | V17: 0 | W17: 0 | X17: 2 | Y17: 2 | Z17: 1 | AA17: =SUM(T17:Z17) -> 78 | AC17: =SUM(I17+R17+AA17) -> 81
A18: 08:15:00 | B18: 0 | C18: 0 | D18: 0 | E18: 0 | F18: 0 | G18: 0 | H18: 0 | I18: 0 | K18: 0 | L18: 0 | M18: 0 | N18: 0 | O18: 1 | P18: 0 | Q18: 0 | R18: 1 | T18: 63 | U18: 6 | V18: 0 | W18: 0 | X18: 3 | Y18: 4 | Z18: 3 | AA18: 79 | AC18: =SUM(I18+R18+AA18) -> 80
A19: 08:30:00 | B19: 0 | C19: 0 | D19: 0 | E19: 0 | F19: 0 | G19: 0 | H19: 0 | I19: 0 | K19: 0 | L19: 0 | M19: 0 | N19: 0 | O19: 1 | P19: 0 | Q19: 0 | R19: 1 | T19: 61 | U19: 11 | V19: 1 | W19: 0 | X19: 3 | Y19: 0 | Z19: 4 | AA19: 80 | AC19: =SUM(I19+R19+AA19) -> 81
A20: 08:45:00 | B20: 0 | C20: 0 | D20: 0 | E20: 0 | F20: 0 | G20: 0 | H20: 0 | I20: 0 | K20: 1 | L20: 0 | M20: 0 | N20: 0 | O20: 1 | P20: 0 | Q20: 5 | R20: 7 | T20: 62 | U20: 4 | V20: 3 | W20: 0 | X20: 4 | Y20: 2 | Z20: 2 | AA20: 77 | AC20: =SUM(I20+R20+AA20) -> 84
A21: 1 Hr | B21: =SUM(B17:B20) -> 0 | C21: 0 | D21: 0 | E21: 0 | F21: 0 | G21: 0 | H21: 0 | I21: 0 | K21: =SUM(K17:K20) -> 2 | L21: 0 | M21: 0 | N21: 0 | O21: 5 | P21: 0 | Q21: 5 | R21: 12 | T21: =SUM(T17:T20) -> 251 | U21: 29 | V21: 4 | W21: 0 | X21: 12 | Y21: 8 | Z21: 10 | AA21: 314 | AC21: =SUM(AC17:AC20) -> 326
A22: 09:00:00 | B22: 0 | C22: 0 | D22: 0 | E22: 0 | F22: 0 | G22: 0 | H22: 0 | I22: =SUM(B22:H22) -> 0 | K22: 0 | L22: 0 | M22: 0 | N22: 0 | O22: 1 | P22: 0 | Q22: 3 | R22: =SUM(K22:Q22) -> 4 | T22: 79 | U22: 9 | V22: 1 | W22: 0 | X22: 2 | Y22: 0 | Z22: 3 | AA22: =SUM(T22:Z22) -> 94 | AC22: =SUM(I22+R22+AA22) -> 98
A23: 09:15:00 | B23: 0 | C23: 0 | D23: 0 | E23: 0 | F23: 0 | G23: 0 | H23: 0 | I23: 0 | K23: 0 | L23: 0 | M23: 0 | N23: 0 | O23: 1 | P23: 0 | Q23: 0 | R23: 1 | T23: 55 | U23: 6 | V23: 0 | W23: 0 | X23: 3 | Y23: 4 | Z23: 0 | AA23: 68 | AC23: =SUM(I23+R23+AA23) -> 69
A24: 09:30:00 | B24: 0 | C24: 0 | D24: 0 | E24: 0 | F24: 0 | G24: 0 | H24: 0 | I24: 0 | K24: 0 | L24: 0 | M24: 0 | N24: 0 | O24: 1 | P24: 0 | Q24: 1 | R24: 2 | T24: 46 | U24: 9 | V24: 1 | W24: 0 | X24: 2 | Y24: 3 | Z24: 2 | AA24: 63 | AC24: =SUM(I24+R24+AA24) -> 65
A25: 09:45:00 | B25: 0 | C25: 1 | D25: 0 | E25: 0 | F25: 0 | G25: 0 | H25: 0 | I25: 1 | K25: 0 | L25: 0 | M25: 0 | N25: 0 | O25: 1 | P25: 0 | Q25: 2 | R25: 3 | T25: 55 | U25: 12 | V25: 1 | W25: 0 | X25: 3 | Y25: 3 | Z25: 2 | AA25: 76 | AC25: =SUM(I25+R25+AA25) -> 80
A26: 1 Hr | B26: =SUM(B22:B25) -> 0 | C26: 1 | D26: 0 | E26: 0 | F26: 0 | G26: 0 | H26: 0 | I26: 1 | K26: =SUM(K22:K25) -> 0 | L26: 0 | M26: 0 | N26: 0 | O26: 4 | P26: 0 | Q26: 6 | R26: 10 | T26: =SUM(T22:T25) -> 235 | U26: 36 | V26: 3 | W26: 0 | X26: 10 | Y26: 10 | Z26: 7 | AA26: 301 | AC26: =SUM(AC22:AC25) -> 312
A27: 10:00:00 | B27: 0 | C27: 0 | D27: 0 | E27: 0 | F27: 0 | G27: 0 | H27: 0 | I27: =SUM(B27:H27) -> 0 | K27: 2 | L27: 0 | M27: 0 | N27: 0 | O27: 1 | P27: 0 | Q27: 1 | R27: =SUM(K27:Q27) -> 4 | T27: 51 | U27: 17 | V27: 1 | W27: 0 | X27: 4 | Y27: 3 | Z27: 0 | AA27: =SUM(T27:Z27) -> 76 | AC27: =SUM(I27+R27+AA27) -> 80
A28: 10:15:00 | B28: 0 | C28: 0 | D28: 0 | E28: 0 | F28: 0 | G28: 0 | H28: 0 | I28: 0 | K28: 0 | L28: 0 | M28: 0 | N28: 0 | O28: 1 | P28: 0 | Q28: 0 | R28: 1 | T28: 57 | U28: 10 | V28: 0 | W28: 0 | X28: 2 | Y28: 1 | Z28: 1 | AA28: 71 | AC28: =SUM(I28+R28+AA28) -> 72
A29: 10:30:00 | B29: 0 | C29: 0 | D29: 0 | E29: 0 | F29: 0 | G29: 0 | H29: 0 | I29: 0 | K29: 0 | L29: 0 | M29: 0 | N29: 0 | O29: 1 | P29: 0 | Q29: 2 | R29: 3 | T29: 42 | U29: 13 | V29: 0 | W29: 0 | X29: 4 | Y29: 4 | Z29: 4 | AA29: 67 | AC29: =SUM(I29+R29+AA29) -> 70
A30: 10:45:00 | B30: 0 | C30: 0 | D30: 0 | E30: 0 | F30: 0 | G30: 0 | H30: 0 | I30: 0 | K30: 0 | L30: 0 | M30: 0 | N30: 0 | O30: 1 | P30: 0 | Q30: 3 | R30: 4 | T30: 46 | U30: 13 | V30: 1 | W30: 0 | X30: 2 | Y30: 3 | Z30: 6 | AA30: 71 | AC30: =SUM(I30+R30+AA30) -> 75
A31: 1 Hr | B31: =SUM(B27:B30) -> 0 | C31: 0 | D31: 0 | E31: 0 | F31: 0 | G31: 0 | H31: 0 | I31: 0 | K31: =SUM(K27:K30) -> 2 | L31: 0 | M31: 0 | N31: 0 | O31: 4 | P31: 0 | Q31: 6 | R31: 12 | T31: =SUM(T27:T30) -> 196 | U31: 53 | V31: 2 | W31: 0 | X31: 12 | Y31: 11 | Z31: 11 | AA31: 285 | AC31: =SUM(AC27:AC30) -> 297
A32: 11:00:00 | B32: 0 | C32: 0 | D32: 0 | E32: 0 | F32: 0 | G32: 0 | H32: 0 | I32: =SUM(B32:H32) -> 0 | K32: 0 | L32: 0 | M32: 0 | N32: 0 | O32: 1 | P32: 0 | Q32: 0 | R32: =SUM(K32:Q32) -> 1 | T32: 53 | U32: 19 | V32: 3 | W32: 0 | X32: 5 | Y32: 8 | Z32: 2 | AA32: =SUM(T32:Z32) -> 90 | AC32: =SUM(I32+R32+AA32) -> 91
A33: 11:15:00 | B33: 1 | C33: 0 | D33: 0 | E33: 0 | F33: 0 | G33: 0 | H33: 0 | I33: 1 | K33: 1 | L33: 0 | M33: 0 | N33: 0 | O33: 1 | P33: 0 | Q33: 3 | R33: 5 | T33: 54 | U33: 12 | V33: 0 | W33: 0 | X33: 3 | Y33: 7 | Z33: 4 | AA33: 80 | AC33: =SUM(I33+R33+AA33) -> 86
A34: 11:30:00 | B34: 0 | C34: 0 | D34: 0 | E34: 0 | F34: 0 | G34: 0 | H34: 0 | I34: 0 | K34: 0 | L34: 0 | M34: 0 | N34: 0 | O34: 1 | P34: 0 | Q34: 0 | R34: 1 | T34: 58 | U34: 15 | V34: 0 | W34: 0 | X34: 2 | Y34: 8 | Z34: 0 | AA34: 83 | AC34: =SUM(I34+R34+AA34) -> 84
A35: 11:45:00 | B35: 0 | C35: 0 | D35: 0 | E35: 0 | F35: 0 | G35: 0 | H35: 0 | I35: 0 | K35: 0 | L35: 0 | M35: 0 | N35: 0 | O35: 1 | P35: 1 | Q35: 2 | R35: 4 | T35: 65 | U35: 14 | V35: 4 | W35: 0 | X35: 2 | Y35: 7 | Z35: 2 | AA35: 94 | AC35: =SUM(I35+R35+AA35) -> 98
A36: 1 Hr | B36: =SUM(B32:B35) -> 1 | C36: 0 | D36: 0 | E36: 0 | F36: 0 | G36: 0 | H36: 0 | I36: 1 | K36: =SUM(K32:K35) -> 1 | L36: 0 | M36: 0 | N36: 0 | O36: 4 | P36: 1 | Q36: 5 | R36: 11 | T36: =SUM(T32:T35) -> 230 | U36: 60 | V36: 7 | W36: 0 | X36: 12 | Y36: 30 | Z36: 8 | AA36: 347 | AC36: =SUM(AC32:AC35) -> 359
A37: 12:00:00 | B37: 0 | C37: 0 | D37: 0 | E37: 0 | F37: 0 | G37: 0 | H37: 0 | I37: =SUM(B37:H37) -> 0 | K37: 2 | L37: 0 | M37: 0 | N37: 0 | O37: 1 | P37: 0 | Q37: 0 | R37: =SUM(K37:Q37) -> 3 | T37: 48 | U37: 15 | V37: 1 | W37: 0 | X37: 3 | Y37: 7 | Z37: 2 | AA37: =SUM(T37:Z37) -> 76 | AC37: =SUM(I37+R37+AA37) -> 79
A38: 12:15:00 | B38: 0 | C38: 0 | D38: 0 | E38: 0 | F38: 0 | G38: 0 | H38: 0 | I38: 0 | K38: 6 | L38: 0 | M38: 0 | N38: 0 | O38: 1 | P38: 0 | Q38: 1 | R38: 8 | T38: 47 | U38: 21 | V38: 2 | W38: 0 | X38: 2 | Y38: 2 | Z38: 1 | AA38: 75 | AC38: =SUM(I38+R38+AA38) -> 83
A39: 12:30:00 | B39: 0 | C39: 0 | D39: 0 | E39: 0 | F39: 0 | G39: 0 | H39: 0 | I39: 0 | K39: 4 | L39: 0 | M39: 0 | N39: 0 | O39: 0 | P39: 0 | Q39: 1 | R39: 5 | T39: 59 | U39: 19 | V39: 2 | W39: 0 | X39: 4 | Y39: 7 | Z39: 4 | AA39: 95 | AC39: =SUM(I39+R39+AA39) -> 100
A40: 12:45:00 | B40: 0 | C40: 0 | D40: 0 | E40: 0 | F40: 0 | G40: 0 | H40: 0 | I40: 0 | K40: 4 | L40: 0 | M40: 0 | N40: 0 | O40: 2 | P40: 0 | Q40: 2 | R40: 8 | T40: 85 | U40: 7 | V40: 1 | W40: 0 | X40: 2 | Y40: 7 | Z40: 3 | AA40: 105 | AC40: =SUM(I40+R40+AA40) -> 113
A41: 1 Hr | B41: =SUM(B37:B40) -> 0 | C41: 0 | D41: 0 | E41: 0 | F41: 0 | G41: 0 | H41: 0 | I41: 0 | K41: =SUM(K37:K40) -> 16 | L41: 0 | M41: 0 | N41: 0 | O41: 4 | P41: 0 | Q41: 4 | R41: 24 | T41: =SUM(T37:T40) -> 239 | U41: 62 | V41: 6 | W41: 0 | X41: 11 | Y41: 23 | Z41: 10 | AA41: 351 | AC41: =SUM(AC37:AC40) -> 375
A42: 13:00:00 | B42: 1 | C42: 0 | D42: 0 | E42: 0 | F42: 0 | G42: 0 | H42: 0 | I42: =SUM(B42:H42) -> 1 | K42: 3 | L42: 1 | M42: 0 | N42: 0 | O42: 1 | P42: 0 | Q42: 0 | R42: =SUM(K42:Q42) -> 5 | T42: 64 | U42: 16 | V42: 2 | W42: 0 | X42: 2 | Y42: 7 | Z42: 1 | AA42: =SUM(T42:Z42) -> 92 | AC42: =SUM(I42+R42+AA42) -> 98
A43: 13:15:00 | B43: 0 | C43: 0 | D43: 0 | E43: 0 | F43: 0 | G43: 0 | H43: 0 | I43: 0 | K43: 2 | L43: 1 | M43: 0 | N43: 0 | O43: 1 | P43: 0 | Q43: 2 | R43: 6 | T43: 77 | U43: 25 | V43: 2 | W43: 0 | X43: 4 | Y43: 11 | Z43: 0 | AA43: 119 | AC43: =SUM(I43+R43+AA43) -> 125
A44: 13:30:00 | B44: 0 | C44: 0 | D44: 0 | E44: 0 | F44: 0 | G44: 0 | H44: 0 | I44: 0 | K44: 0 | L44: 0 | M44: 0 | N44: 0 | O44: 1 | P44: 0 | Q44: 0 | R44: 1 | T44: 68 | U44: 22 | V44: 1 | W44: 0 | X44: 3 | Y44: 11 | Z44: 3 | AA44: 108 | AC44: =SUM(I44+R44+AA44) -> 109
A45: 13:45:00 | B45: 0 | C45: 0 | D45: 0 | E45: 0 | F45: 0 | G45: 0 | H45: 0 | I45: 0 | K45: 2 | L45: 1 | M45: 0 | N45: 0 | O45: 1 | P45: 0 | Q45: 1 | R45: 5 | T45: 68 | U45: 14 | V45: 2 | W45: 1 | X45: 3 | Y45: 8 | Z45: 1 | AA45: 97 | AC45: =SUM(I45+R45+AA45) -> 102
A46: 1 Hr | B46: =SUM(B42:B45) -> 1 | C46: 0 | D46: 0 | E46: 0 | F46: 0 | G46: 0 | H46: 0 | I46: 1 | K46: =SUM(K42:K45) -> 7 | L46: 3 | M46: 0 | N46: 0 | O46: 4 | P46: 0 | Q46: 3 | R46: 17 | T46: =SUM(T42:T45) -> 277 | U46: 77 | V46: 7 | W46: 1 | X46: 12 | Y46: 37 | Z46: 5 | AA46: 416 | AC46: =SUM(AC42:AC45) -> 434
A47: 14:00:00 | B47: 0 | C47: 0 | D47: 0 | E47: 0 | F47: 0 | G47: 0 | H47: 0 | I47: =SUM(B47:H47) -> 0 | K47: 0 | L47: 0 | M47: 0 | N47: 0 | O47: 0 | P47: 1 | Q47: 2 | R47: =SUM(K47:Q47) -> 3 | T47: 73 | U47: 18 | V47: 3 | W47: 0 | X47: 3 | Y47: 12 | Z47: 3 | AA47: =SUM(T47:Z47) -> 112 | AC47: =SUM(I47+R47+AA47) -> 115
A48: 14:15:00 | B48: 1 | C48: 0 | D48: 0 | E48: 0 | F48: 0 | G48: 0 | H48: 0 | I48: 1 | K48: 3 | L48: 0 | M48: 0 | N48: 0 | O48: 1 | P48: 0 | Q48: 0 | R48: 4 | T48: 75 | U48: 10 | V48: 1 | W48: 0 | X48: 4 | Y48: 8 | Z48: 2 | AA48: 100 | AC48: =SUM(I48+R48+AA48) -> 105
A49: 14:30:00 | B49: 0 | C49: 0 | D49: 0 | E49: 0 | F49: 0 | G49: 0 | H49: 0 | I49: 0 | K49: 2 | L49: 0 | M49: 0 | N49: 0 | O49: 1 | P49: 0 | Q49: 1 | R49: 4 | T49: 63 | U49: 23 | V49: 2 | W49: 0 | X49: 3 | Y49: 5 | Z49: 0 | AA49: 96 | AC49: =SUM(I49+R49+AA49) -> 100
A50: 14:45:00 | B50: 0 | C50: 0 | D50: 0 | E50: 0 | F50: 0 | G50: 0 | H50: 0 | I50: 0 | K50: 3 | L50: 0 | M50: 0 | N50: 0 | O50: 1 | P50: 0 | Q50: 1 | R50: 5 | T50: 97 | U50: 18 | V50: 4 | W50: 0 | X50: 4 | Y50: 7 | Z50: 0 | AA50: 130 | AC50: =SUM(I50+R50+AA50) -> 135
A51: 1 Hr | B51: =SUM(B47:B50) -> 1 | C51: 0 | D51: 0 | E51: 0 | F51: 0 | G51: 0 | H51: 0 | I51: 1 | K51: =SUM(K47:K50) -> 8 | L51: 0 | M51: 0 | N51: 0 | O51: 3 | P51: 1 | Q51: 4 | R51: 16 | T51: =SUM(T47:T50) -> 308 | U51: 69 | V51: 10 | W51: 0 | X51: 14 | Y51: 32 | Z51: 5 | AA51: 438 | AC51: =SUM(AC47:AC50) -> 455
A52: 15:00:00 | B52: 0 | C52: 0 | D52: 0 | E52: 0 | F52: 0 | G52: 0 | H52: 0 | I52: =SUM(B52:H52) -> 0 | K52: 4 | L52: 0 | M52: 0 | N52: 0 | O52: 1 | P52: 0 | Q52: 2 | R52: =SUM(K52:Q52) -> 7 | T52: 67 | U52: 22 | V52: 2 | W52: 1 | X52: 3 | Y52: 2 | Z52: 1 | AA52: =SUM(T52:Z52) -> 98 | AC52: =SUM(I52+R52+AA52) -> 105
A53: 15:15:00 | B53: 1 | C53: 0 | D53: 0 | E53: 0 | F53: 0 | G53: 0 | H53: 0 | I53: 1 | K53: 3 | L53: 0 | M53: 0 | N53: 0 | O53: 1 | P53: 0 | Q53: 1 | R53: 5 | T53: 63 | U53: 14 | V53: 0 | W53: 0 | X53: 0 | Y53: 4 | Z53: 3 | AA53: 84 | AC53: =SUM(I53+R53+AA53) -> 90
A54: 15:30:00 | B54: 0 | C54: 0 | D54: 0 | E54: 0 | F54: 0 | G54: 0 | H54: 0 | I54: 0 | K54: 6 | L54: 1 | M54: 0 | N54: 0 | O54: 0 | P54: 1 | Q54: 6 | R54: 14 | T54: 91 | U54: 17 | V54: 2 | W54: 0 | X54: 5 | Y54: 3 | Z54: 4 | AA54: 122 | AC54: =SUM(I54+R54+AA54) -> 136
A55: 15:45:00 | B55: 0 | C55: 0 | D55: 0 | E55: 0 | F55: 0 | G55: 0 | H55: 0 | I55: 0 | K55: 5 | L55: 1 | M55: 0 | N55: 0 | O55: 1 | P55: 0 | Q55: 1 | R55: 8 | T55: 85 | U55: 20 | V55: 2 | W55: 0 | X55: 0 | Y55: 7 | Z55: 1 | AA55: 115 | AC55: =SUM(I55+R55+AA55) -> 123
A56: 1 Hr | B56: =SUM(B52:B55) -> 1 | C56: 0 | D56: 0 | E56: 0 | F56: 0 | G56: 0 | H56: 0 | I56: 1 | K56: =SUM(K52:K55) -> 18 | L56: 2 | M56: 0 | N56: 0 | O56: 3 | P56: 1 | Q56: 10 | R56: 34 | T56: =SUM(T52:T55) -> 306 | U56: 73 | V56: 6 | W56: 1 | X56: 8 | Y56: 16 | Z56: 9 | AA56: 419 | AC56: =SUM(AC52:AC55) -> 454
A57: 16:00:00 | B57: 0 | C57: 0 | D57: 0 | E57: 0 | F57: 0 | G57: 0 | H57: 0 | I57: =SUM(B57:H57) -> 0 | K57: 4 | L57: 1 | M57: 0 | N57: 0 | O57: 1 | P57: 0 | Q57: 5 | R57: =SUM(K57:Q57) -> 11 | T57: 93 | U57: 24 | V57: 3 | W57: 0 | X57: 0 | Y57: 6 | Z57: 3 | AA57: =SUM(T57:Z57) -> 129 | AC57: =SUM(I57+R57+AA57) -> 140
A58: 16:15:00 | B58: 0 | C58: 0 | D58: 0 | E58: 0 | F58: 0 | G58: 0 | H58: 0 | I58: 0 | K58: 2 | L58: 0 | M58: 0 | N58: 0 | O58: 1 | P58: 0 | Q58: 3 | R58: 6 | T58: 84 | U58: 16 | V58: 1 | W58: 0 | X58: 3 | Y58: 1 | Z58: 2 | AA58: 107 | AC58: =SUM(I58+R58+AA58) -> 113
A59: 16:30:00 | B59: 0 | C59: 0 | D59: 0 | E59: 0 | F59: 0 | G59: 0 | H59: 0 | I59: 0 | K59: 3 | L59: 0 | M59: 0 | N59: 0 | O59: 1 | P59: 0 | Q59: 0 | R59: 4 | T59: 111 | U59: 25 | V59: 4 | W59: 0 | X59: 2 | Y59: 6 | Z59: 7 | AA59: 155 | AC59: =SUM(I59+R59+AA59) -> 159
A60: 16:45:00 | B60: 0 | C60: 0 | D60: 0 | E60: 0 | F60: 0 | G60: 0 | H60: 0 | I60: 0 | K60: 4 | L60: 0 | M60: 0 | N60: 0 | O60: 1 | P60: 0 | Q60: 3 | R60: 8 | T60: 79 | U60: 20 | V60: 1 | W60: 0 | X60: 5 | Y60: 6 | Z60: 2 | AA60: 113 | AC60: =SUM(I60+R60+AA60) -> 121
A61: 1 Hr | B61: =SUM(B57:B60) -> 0 | C61: 0 | D61: 0 | E61: 0 | F61: 0 | G61: 0 | H61: 0 | I61: 0 | K61: =SUM(K57:K60) -> 13 | L61: 1 | M61: 0 | N61: 0 | O61: 4 | P61: 0 | Q61: 11 | R61: 29 | T61: =SUM(T57:T60) -> 367 | U61: 85 | V61: 9 | W61: 0 | X61: 10 | Y61: 19 | Z61: 14 | AA61: 504 | AC61: =SUM(AC57:AC60) -> 533
A62: 17:00:00 | B62: 0 | C62: 0 | D62: 0 | E62: 0 | F62: 0 | G62: 0 | H62: 0 | I62: =SUM(B62:H62) -> 0 | K62: 4 | L62: 1 | M62: 0 | N62: 0 | O62: 0 | P62: 0 | Q62: 1 | R62: =SUM(K62:Q62) -> 6 | T62: 93 | U62: 14 | V62: 0 | W62: 0 | X62: 3 | Y62: 4 | Z62: 2 | AA62: =SUM(T62:Z62) -> 116 | AC62: =SUM(I62+R62+AA62) -> 122
A63: 17:15:00 | B63: 0 | C63: 0 | D63: 0 | E63: 0 | F63: 0 | G63: 0 | H63: 0 | I63: 0 | K63: 5 | L63: 0 | M63: 0 | N63: 0 | O63: 1 | P63: 0 | Q63: 0 | R63: 6 | T63: 107 | U63: 20 | V63: 0 | W63: 0 | X63: 2 | Y63: 8 | Z63: 11 | AA63: 148 | AC63: =SUM(I63+R63+AA63) -> 154
A64: 17:30:00 | B64: 0 | C64: 0 | D64: 0 | E64: 0 | F64: 0 | G64: 0 | H64: 0 | I64: 0 | K64: 1 | L64: 1 | M64: 0 | N64: 0 | O64: 1 | P64: 1 | Q64: 1 | R64: 5 | T64: 96 | U64: 12 | V64: 1 | W64: 0 | X64: 3 | Y64: 5 | Z64: 4 | AA64: 121 | AC64: =SUM(I64+R64+AA64) -> 126
A65: 17:45:00 | B65: 0 | C65: 0 | D65: 0 | E65: 0 | F65: 0 | G65: 0 | H65: 0 | I65: 0 | K65: 6 | L65: 0 | M65: 0 | N65: 0 | O65: 1 | P65: 0 | Q65: 2 | R65: 9 | T65: 92 | U65: 18 | V65: 0 | W65: 0 | X65: 3 | Y65: 11 | Z65: 3 | AA65: 127 | AC65: =SUM(I65+R65+AA65) -> 136
A66: 1 Hr | B66: =SUM(B62:B65) -> 0 | C66: 0 | D66: 0 | E66: 0 | F66: 0 | G66: 0 | H66: 0 | I66: 0 | K66: =SUM(K62:K65) -> 16 | L66: 2 | M66: 0 | N66: 0 | O66: 3 | P66: 1 | Q66: 4 | R66: 26 | T66: =SUM(T62:T65) -> 388 | U66: 64 | V66: 1 | W66: 0 | X66: 11 | Y66: 28 | Z66: 20 | AA66: 512 | AC66: =SUM(AC62:AC65) -> 538
A67: 18:00:00 | B67: 5 | C67: 0 | D67: 0 | E67: 0 | F67: 0 | G67: 0 | H67: 0 | I67: =SUM(B67:H67) -> 5 | K67: 9 | L67: 0 | M67: 0 | N67: 0 | O67: 2 | P67: 1 | Q67: 3 | R67: =SUM(K67:Q67) -> 15 | T67: 74 | U67: 10 | V67: 1 | W67: 0 | X67: 5 | Y67: 5 | Z67: 2 | AA67: =SUM(T67:Z67) -> 97 | AC67: =SUM(I67+R67+AA67) -> 117
A68: 18:15:00 | B68: 0 | C68: 0 | D68: 0 | E68: 0 | F68: 0 | G68: 0 | H68: 0 | I68: 0 | K68: 5 | L68: 0 | M68: 0 | N68: 0 | O68: 1 | P68: 0 | Q68: 3 | R68: 9 | T68: 66 | U68: 5 | V68: 0 | W68: 0 | X68: 4 | Y68: 8 | Z68: 6 | AA68: 89 | AC68: =SUM(I68+R68+AA68) -> 98
A69: 18:30:00 | B69: 0 | C69: 0 | D69: 0 | E69: 0 | F69: 0 | G69: 0 | H69: 0 | I69: 0 | K69: 2 | L69: 0 | M69: 0 | N69: 0 | O69: 1 | P69: 0 | Q69: 1 | R69: 4 | T69: 104 | U69: 7 | V69: 1 | W69: 0 | X69: 3 | Y69: 8 | Z69: 3 | AA69: 126 | AC69: =SUM(I69+R69+AA69) -> 130
A70: 18:45:00 | B70: 0 | C70: 0 | D70: 0 | E70: 0 | F70: 0 | G70: 0 | H70: 0 | I70: 0 | K70: 4 | L70: 0 | M70: 0 | N70: 0 | O70: 1 | P70: 0 | Q70: 4 | R70: 9 | T70: 116 | U70: 9 | V70: 0 | W70: 0 | X70: 3 | Y70: 15 | Z70: 3 | AA70: 146 | AC70: =SUM(I70+R70+AA70) -> 155
A71: 1 Hr | B71: =SUM(B67:B70) -> 5 | C71: 0 | D71: 0 | E71: 0 | F71: 0 | G71: 0 | H71: 0 | I71: 5 | K71: =SUM(K67:K70) -> 20 | L71: 0 | M71: 0 | N71: 0 | O71: 5 | P71: 1 | Q71: 11 | R71: 37 | T71: =SUM(T67:T70) -> 360 | U71: 31 | V71: 2 | W71: 0 | X71: 15 | Y71: 36 | Z71: 14 | AA71: 458 | AC71: =SUM(AC67:AC70) -> 500
A73: Total | B73: =SUM(B71+B66+B61+B56+B51+B46+B41+B36+B31+B26+B21+B16) -> 10 | C73: 1 | D73: 0 | E73: 0 | F73: 0 | G73: 0 | H73: 0 | I73: 11 | K73: =SUM(K71+K66+K61+K56+K51+K46+K41+K36+K31+K26+K21+K16) -> 110 | L73: 8 | M73: 0 | N73: 0 | O73: 50 | P73: 5 | Q73: 74 | R73: 247 | T73: =SUM(T71+T66+T61+T56+T51+T46+T41+T36+T31+T26+T21+T16) -> 3337 | U73: 650 | V73: 60 | W73: 2 | X73: 146 | Y73: 254 | Z73: 116 | AA73: 4565 | AC73: =SUM(AC71+AC66+AC61+AC56+AC51+AC46+AC41+AC36+AC31+AC26+AC21+AC16) -> 4823
A75: Origin : | B75: Arm B | C75: Fisher's Lane
B76: Destination : | D76: Arm A | E76: South Parade (E) | I76: Total | K76: Destination : | M76: Arm B | N76: Fisher's Lane | R76: Total | T76: Destination : | V76: Arm C | W76: South Parade (W) | AA76: Total | AC76: Arm Totals
B77: =$B$10 -> Car | C77: =$C$10 -> LGV | D77: =$D$10 -> OGV1 | E77: =$E$10 -> OGV2 | F77: =$F$10 -> PSV | G77: =$G$10 -> MC | H77: =$H$10 -> PC | K77: =$B$10 -> Car | L77: =$C$10 -> LGV | M77: =$D$10 -> OGV1 | N77: =$E$10 -> OGV2 | O77: =$F$10 -> PSV | P77: =$G$10 -> MC | Q77: =$H$10 -> PC | T77: =$B$10 -> Car | U77: =$C$10 -> LGV | V77: =$D$10 -> OGV1 | W77: =$E$10 -> OGV2 | X77: =$F$10 -> PSV | Y77: =$G$10 -> MC | Z77: =$H$10 -> PC
A79: 07:00:00 | B79: 0 | C79: 0 | D79: 0 | E79: 0 | F79: 1 | G79: 0 | H79: 2 | I79: =SUM(B79:H79) -> 3 | K79: 0 | L79: 0 | M79: 0 | N79: 0 | O79: 0 | P79: 0 | Q79: 0 | R79: =SUM(K79:Q79) -> 0 | T79: 1 | U79: 0 | V79: 0 | W79: 0 | X79: 0 | Y79: 0 | Z79: 0 | AA79: =SUM(T79:Z79) -> 1 | AC79: =SUM(I79+R79+AA79) -> 4
A80: 07:15:00 | B80: 1 | C80: 0 | D80: 0 | E80: 0 | F80: 1 | G80: 0 | H80: 0 | I80: 2 | K80: 0 | L80: 0 | M80: 0 | N80: 0 | O80: 0 | P80: 0 | Q80: 0 | R80: 0 | T80: 0 | U80: 0 | V80: 0 | W80: 0 | X80: 0 | Y80: 0 | Z80: 1 | AA80: 1 | AC80: =SUM(I80+R80+AA80) -> 3
A81: 07:30:00 | B81: 0 | C81: 0 | D81: 0 | E81: 0 | F81: 2 | G81: 0 | H81: 2 | I81: 4 | K81: 0 | L81: 0 | M81: 0 | N81: 0 | O81: 0 | P81: 0 | Q81: 0 | R81: 0 | T81: 0 | U81: 0 | V81: 0 | W81: 0 | X81: 0 | Y81: 0 | Z81: 1 | AA81: 1 | AC81: =SUM(I81+R81+AA81) -> 5
A82: 07:45:00 | B82: 2 | C82: 0 | D82: 0 | E82: 0 | F82: 1 | G82: 0 | H82: 3 | I82: 6 | K82: 0 | L82: 0 | M82: 0 | N82: 0 | O82: 0 | P82: 0 | Q82: 0 | R82: 0 | T82: 1 | U82: 0 | V82: 0 | W82: 0 | X82: 0 | Y82: 0 | Z82: 1 | AA82: 2 | AC82: =SUM(I82+R82+AA82) -> 8
A83: 1 Hr | B83: =SUM(B79:B82) -> 3 | C83: 0 | D83: 0 | E83: 0 | F83: 5 | G83: 0 | H83: 7 | I83: 15 | K83: =SUM(K79:K82) -> 0 | L83: 0 | M83: 0 | N83: 0 | O83: 0 | P83: 0 | Q83: 0 | R83: 0 | T83: =SUM(T79:T82) -> 2 | U83: 0 | V83: 0 | W83: 0 | X83: 0 | Y83: 0 | Z83: 3 | AA83: 5 | AC83: =SUM(AC79:AC82) -> 20
A84: 08:00:00 | B84: 1 | C84: 0 | D84: 0 | E84: 0 | F84: 1 | G84: 0 | H84: 2 | I84: =SUM(B84:H84) -> 4 | K84: 0 | L84: 0 | M84: 0 | N84: 0 | O84: 0 | P84: 0 | Q84: 0 | R84: =SUM(K84:Q84) -> 0 | T84: 1 | U84: 0 | V84: 0 | W84: 0 | X84: 0 | Y84: 0 | Z84: 2 | AA84: =SUM(T84:Z84) -> 3 | AC84: =SUM(I84+R84+AA84) -> 7
A85: 08:15:00 | B85: 1 | C85: 0 | D85: 0 | E85: 0 | F85: 1 | G85: 0 | H85: 1 | I85: 3 | K85: 0 | L85: 0 | M85: 0 | N85: 0 | O85: 0 | P85: 0 | Q85: 0 | R85: 0 | T85: 0 | U85: 1 | V85: 0 | W85: 0 | X85: 0 | Y85: 0 | Z85: 1 | AA85: 2 | AC85: =SUM(I85+R85+AA85) -> 5
A86: 08:30:00 | B86: 0 | C86: 0 | D86: 0 | E86: 0 | F86: 1 | G86: 0 | H86: 4 | I86: 5 | K86: 0 | L86: 0 | M86: 0 | N86: 0 | O86: 0 | P86: 0 | Q86: 0 | R86: 0 | T86: 0 | U86: 1 | V86: 0 | W86: 0 | X86: 0 | Y86: 0 | Z86: 2 | AA86: 3 | AC86: =SUM(I86+R86+AA86) -> 8
A87: 08:45:00 | B87: 0 | C87: 0 | D87: 0 | E87: 0 | F87: 1 | G87: 0 | H87: 8 | I87: 9 | K87: 0 | L87: 0 | M87: 0 | N87: 0 | O87: 0 | P87: 0 | Q87: 0 | R87: 0 | T87: 1 | U87: 1 | V87: 0 | W87: 0 | X87: 0 | Y87: 0 | Z87: 3 | AA87: 5 | AC87: =SUM(I87+R87+AA87) -> 14
A88: 1 Hr | B88: =SUM(B84:B87) -> 2 | C88: 0 | D88: 0 | E88: 0 | F88: 4 | G88: 0 | H88: 15 | I88: 21 | K88: =SUM(K84:K87) -> 0 | L88: 0 | M88: 0 | N88: 0 | O88: 0 | P88: 0 | Q88: 0 | R88: 0 | T88: =SUM(T84:T87) -> 2 | U88: 3 | V88: 0 | W88: 0 | X88: 0 | Y88: 0 | Z88: 8 | AA88: 13 | AC88: =SUM(AC84:AC87) -> 34
A89: 09:00:00 | B89: 2 | C89: 0 | D89: 0 | E89: 0 | F89: 0 | G89: 0 | H89: 1 | I89: =SUM(B89:H89) -> 3 | K89: 0 | L89: 0 | M89: 0 | N89: 0 | O89: 0 | P89: 0 | Q89: 0 | R89: =SUM(K89:Q89) -> 0 | T89: 0 | U89: 0 | V89: 0 | W89: 0 | X89: 0 | Y89: 0 | Z89: 6 | AA89: =SUM(T89:Z89) -> 6 | AC89: =SUM(I89+R89+AA89) -> 9
A90: 09:15:00 | B90: 0 | C90: 1 | D90: 0 | E90: 0 | F90: 1 | G90: 1 | H90: 0 | I90: 3 | K90: 0 | L90: 0 | M90: 0 | N90: 0 | O90: 0 | P90: 0 | Q90: 0 | R90: 0 | T90: 2 | U90: 0 | V90: 0 | W90: 0 | X90: 0 | Y90: 0 | Z90: 5 | AA90: 7 | AC90: =SUM(I90+R90+AA90) -> 10
A91: 09:30:00 | B91: 0 | C91: 0 | D91: 0 | E91: 0 | F91: 1 | G91: 1 | H91: 0 | I91: 2 | K91: 0 | L91: 0 | M91: 0 | N91: 0 | O91: 0 | P91: 0 | Q91: 0 | R91: 0 | T91: 2 | U91: 0 | V91: 0 | W91: 0 | X91: 0 | Y91: 0 | Z91: 5 | AA91: 7 | AC91: =SUM(I91+R91+AA91) -> 9
A92: 09:45:00 | B92: 2 | C92: 0 | D92: 0 | E92: 0 | F92: 1 | G92: 0 | H92: 0 | I92: 3 | K92: 0 | L92: 0 | M92: 0 | N92: 0 | O92: 0 | P92: 0 | Q92: 0 | R92: 0 | T92: 0 | U92: 0 | V92: 0 | W92: 0 | X92: 0 | Y92: 0 | Z92: 1 | AA92: 1 | AC92: =SUM(I92+R92+AA92) -> 4
A93: 1 Hr | B93: =SUM(B89:B92) -> 4 | C93: 1 | D93: 0 | E93: 0 | F93: 3 | G93: 2 | H93: 1 | I93: 11 | K93: =SUM(K89:K92) -> 0 | L93: 0 | M93: 0 | N93: 0 | O93: 0 | P93: 0 | Q93: 0 | R93: 0 | T93: =SUM(T89:T92) -> 4 | U93: 0 | V93: 0 | W93: 0 | X93: 0 | Y93: 0 | Z93: 17 | AA93: 21 | AC93: =SUM(AC89:AC92) -> 32
A94: 10:00:00 | B94: 0 | C94: 0 | D94: 0 | E94: 0 | F94: 1 | G94: 0 | H94: 0 | I94: =SUM(B94:H94) -> 1 | K94: 0 | L94: 0 | M94: 0 | N94: 0 | O94: 0 | P94: 0 | Q94: 0 | R94: =SUM(K94:Q94) -> 0 | T94: 0 | U94: 0 | V94: 0 | W94: 0 | X94: 0 | Y94: 0 | Z94: 1 | AA94: =SUM(T94:Z94) -> 1 | AC94: =SUM(I94+R94+AA94) -> 2
A95: 10:15:00 | B95: 3 | C95: 0 | D95: 0 | E95: 0 | F95: 1 | G95: 0 | H95: 1 | I95: 5 | K95: 0 | L95: 0 | M95: 0 | N95: 0 | O95: 0 | P95: 0 | Q95: 0 | R95: 0 | T95: 2 | U95: 0 | V95: 0 | W95: 0 | X95: 0 | Y95: 0 | Z95: 3 | AA95: 5 | AC95: =SUM(I95+R95+AA95) -> 10
A96: 10:30:00 | B96: 1 | C96: 0 | D96: 0 | E96: 0 | F96: 1 | G96: 0 | H96: 0 | I96: 2 | K96: 0 | L96: 0 | M96: 0 | N96: 0 | O96: 0 | P96: 0 | Q96: 0 | R96: 0 | T96: 2 | U96: 0 | V96: 0 | W96: 0 | X96: 0 | Y96: 0 | Z96: 2 | AA96: 4 | AC96: =SUM(I96+R96+AA96) -> 6
A97: 10:45:00 | B97: 1 | C97: 1 | D97: 0 | E97: 0 | F97: 1 | G97: 0 | H97: 0 | I97: 3 | K97: 0 | L97: 0 | M97: 0 | N97: 0 | O97: 0 | P97: 0 | Q97: 0 | R97: 0 | T97: 3 | U97: 0 | V97: 0 | W97: 0 | X97: 0 | Y97: 0 | Z97: 3 | AA97: 6 | AC97: =SUM(I97+R97+AA97) -> 9
A98: 1 Hr | B98: =SUM(B94:B97) -> 5 | C98: 1 | D98: 0 | E98: 0 | F98: 4 | G98: 0 | H98: 1 | I98: 11 | K98: =SUM(K94:K97) -> 0 | L98: 0 | M98: 0 | N98: 0 | O98: 0 | P98: 0 | Q98: 0 | R98: 0 | T98: =SUM(T94:T97) -> 7 | U98: 0 | V98: 0 | W98: 0 | X98: 0 | Y98: 0 | Z98: 9 | AA98: 16 | AC98: =SUM(AC94:AC97) -> 27
A99: 11:00:00 | B99: 3 | C99: 1 | D99: 0 | E99: 0 | F99: 1 | G99: 0 | H99: 2 | I99: =SUM(B99:H99) -> 7 | K99: 0 | L99: 0 | M99: 0 | N99: 0 | O99: 0 | P99: 0 | Q99: 0 | R99: =SUM(K99:Q99) -> 0 | T99: 1 | U99: 1 | V99: 0 | W99: 0 | X99: 0 | Y99: 0 | Z99: 3 | AA99: =SUM(T99:Z99) -> 5 | AC99: =SUM(I99+R99+AA99) -> 12
A100: 11:15:00 | B100: 0 | C100: 1 | D100: 0 | E100: 0 | F100: 1 | G100: 0 | H100: 0 | I100: 2 | K100: 0 | L100: 0 | M100: 0 | N100: 0 | O100: 0 | P100: 0 | Q100: 0 | R100: 0 | T100: 1 | U100: 0 | V100: 0 | W100: 0 | X100: 0 | Y100: 0 | Z100: 2 | AA100: 3 | AC100: =SUM(I100+R100+AA100) -> 5
A101: 11:30:00 | B101: 3 | C101: 0 | D101: 0 | E101: 0 | F101: 1 | G101: 0 | H101: 0 | I101: 4 | K101: 0 | L101: 0 | M101: 0 | N101: 0 | O101: 0 | P101: 0 | Q101: 0 | R101: 0 | T101: 0 | U101: 0 | V101: 0 | W101: 0 | X101: 0 | Y101: 0 | Z101: 1 | AA101: 1 | AC101: =SUM(I101+R101+AA101) -> 5
A102: 11:45:00 | B102: 1 | C102: 0 | D102: 0 | E102: 0 | F102: 1 | G102: 0 | H102: 2 | I102: 4 | K102: 0 | L102: 0 | M102: 0 | N102: 0 | O102: 0 | P102: 0 | Q102: 0 | R102: 0 | T102: 1 | U102: 1 | V102: 0 | W102: 0 | X102: 0 | Y102: 0 | Z102: 3 | AA102: 5 | AC102: =SUM(I102+R102+AA102) -> 9
A103: 1 Hr | B103: =SUM(B99:B102) -> 7 | C103: 2 | D103: 0 | E103: 0 | F103: 4 | G103: 0 | H103: 4 | I103: 17 | K103: =SUM(K99:K102) -> 0 | L103: 0 | M103: 0 | N103: 0 | O103: 0 | P103: 0 | Q103: 0 | R103: 0 | T103: =SUM(T99:T102) -> 3 | U103: 2 | V103: 0 | W103: 0 | X103: 0 | Y103: 0 | Z103: 9 | AA103: 14 | AC103: =SUM(AC99:AC102) -> 31
A104: 12:00:00 | B104: 1 | C104: 0 | D104: 0 | E104: 0 | F104: 1 | G104: 1 | H104: 2 | I104: =SUM(B104:H104) -> 5 | K104: 0 | L104: 0 | M104: 0 | N104: 0 | O104: 0 | P104: 0 | Q104: 0 | R104: =SUM(K104:Q104) -> 0 | T104: 1 | U104: 1 | V104: 0 | W104: 0 | X104: 0 | Y104: 0 | Z104: 1 | AA104: =SUM(T104:Z104) -> 3 | AC104: =SUM(I104+R104+AA104) -> 8
A105: 12:15:00 | B105: 0 | C105: 0 | D105: 0 | E105: 0 | F105: 1 | G105: 0 | H105: 1 | I105: 2 | K105: 0 | L105: 0 | M105: 0 | N105: 0 | O105: 0 | P105: 0 | Q105: 0 | R105: 0 | T105: 2 | U105: 0 | V105: 0 | W105: 0 | X105: 0 | Y105: 0 | Z105: 3 | AA105: 5 | AC105: =SUM(I105+R105+AA105) -> 7
A106: 12:30:00 | B106: 1 | C106: 1 | D106: 0 | E106: 0 | F106: 1 | G106: 0 | H106: 4 | I106: 7 | K106: 0 | L106: 0 | M106: 0 | N106: 0 | O106: 0 | P106: 0 | Q106: 0 | R106: 0 | T106: 2 | U106: 2 | V106: 0 | W106: 0 | X106: 0 | Y106: 0 | Z106: 1 | AA106: 5 | AC106: =SUM(I106+R106+AA106) -> 12
A107: 12:45:00 | B107: 3 | C107: 0 | D107: 0 | E107: 0 | F107: 1 | G107: 0 | H107: 1 | I107: 5 | K107: 0 | L107: 0 | M107: 0 | N107: 0 | O107: 0 | P107: 0 | Q107: 0 | R107: 0 | T107: 1 | U107: 2 | V107: 0 | W107: 0 | X107: 0 | Y107: 0 | Z107: 3 | AA107: 6 | AC107: =SUM(I107+R107+AA107) -> 11
A108: 1 Hr | B108: =SUM(B104:B107) -> 5 | C108: 1 | D108: 0 | E108: 0 | F108: 4 | G108: 1 | H108: 8 | I108: 19 | K108: =SUM(K104:K107) -> 0 | L108: 0 | M108: 0 | N108: 0 | O108: 0 | P108: 0 | Q108: 0 | R108: 0 | T108: =SUM(T104:T107) -> 6 | U108: 5 | V108: 0 | W108: 0 | X108: 0 | Y108: 0 | Z108: 8 | AA108: 19 | AC108: =SUM(AC104:AC107) -> 38
A109: 13:00:00 | B109: 0 | C109: 0 | D109: 0 | E109: 0 | F109: 1 | G109: 1 | H109: 0 | I109: =SUM(B109:H109) -> 2 | K109: 0 | L109: 0 | M109: 0 | N109: 0 | O109: 0 | P109: 0 | Q109: 0 | R109: =SUM(K109:Q109) -> 0 | T109: 2 | U109: 0 | V109: 0 | W109: 0 | X109: 0 | Y109: 1 | Z109: 3 | AA109: =SUM(T109:Z109) -> 6 | AC109: =SUM(I109+R109+AA109) -> 8
A110: 13:15:00 | B110: 1 | C110: 0 | D110: 0 | E110: 0 | F110: 1 | G110: 1 | H110: 4 | I110: 7 | K110: 0 | L110: 0 | M110: 0 | N110: 0 | O110: 0 | P110: 0 | Q110: 0 | R110: 0 | T110: 0 | U110: 0 | V110: 0 | W110: 0 | X110: 0 | Y110: 0 | Z110: 5 | AA110: 5 | AC110: =SUM(I110+R110+AA110) -> 12
A111: 13:30:00 | B111: 1 | C111: 0 | D111: 0 | E111: 0 | F111: 1 | G111: 1 | H111: 2 | I111: 5 | K111: 0 | L111: 0 | M111: 0 | N111: 0 | O111: 0 | P111: 0 | Q111: 0 | R111: 0 | T111: 2 | U111: 0 | V111: 0 | W111: 0 | X111: 0 | Y111: 0 | Z111: 5 | AA111: 7 | AC111: =SUM(I111+R111+AA111) -> 12
A112: 13:45:00 | B112: 3 | C112: 0 | D112: 0 | E112: 0 | F112: 1 | G112: 0 | H112: 0 | I112: 4 | K112: 0 | L112: 0 | M112: 0 | N112: 0 | O112: 0 | P112: 0 | Q112: 0 | R112: 0 | T112: 3 | U112: 0 | V112: 0 | W112: 0 | X112: 0 | Y112: 1 | Z112: 2 | AA112: 6 | AC112: =SUM(I112+R112+AA112) -> 10
A113: 1 Hr | B113: =SUM(B109:B112) -> 5 | C113: 0 | D113: 0 | E113: 0 | F113: 4 | G113: 3 | H113: 6 | I113: 18 | K113: =SUM(K109:K112) -> 0 | L113: 0 | M113: 0 | N113: 0 | O113: 0 | P113: 0 | Q113: 0 | R113: 0 | T113: =SUM(T109:T112) -> 7 | U113: 0 | V113: 0 | W113: 0 | X113: 0 | Y113: 2 | Z113: 15 | AA113: 24 | AC113: =SUM(AC109:AC112) -> 42
A114: 14:00:00 | B114: 1 | C114: 0 | D114: 0 | E114: 0 | F114: 1 | G114: 1 | H114: 2 | I114: =SUM(B114:H114) -> 5 | K114: 0 | L114: 0 | M114: 0 | N114: 0 | O114: 0 | P114: 0 | Q114: 0 | R114: =SUM(K114:Q114) -> 0 | T114: 2 | U114: 0 | V114: 0 | W114: 0 | X114: 0 | Y114: 1 | Z114: 7 | AA114: =SUM(T114:Z114) -> 10 | AC114: =SUM(I114+R114+AA114) -> 15
A115: 14:15:00 | B115: 2 | C115: 0 | D115: 0 | E115: 0 | F115: 1 | G115: 0 | H115: 2 | I115: 5 | K115: 0 | L115: 0 | M115: 0 | N115: 0 | O115: 0 | P115: 0 | Q115: 0 | R115: 0 | T115: 1 | U115: 0 | V115: 0 | W115: 0 | X115: 0 | Y115: 1 | Z115: 2 | AA115: 4 | AC115: =SUM(I115+R115+AA115) -> 9
A116: 14:30:00 | B116: 0 | C116: 0 | D116: 0 | E116: 0 | F116: 1 | G116: 0 | H116: 2 | I116: 3 | K116: 0 | L116: 0 | M116: 0 | N116: 0 | O116: 0 | P116: 0 | Q116: 0 | R116: 0 | T116: 3 | U116: 0 | V116: 0 | W116: 0 | X116: 0 | Y116: 1 | Z116: 2 | AA116: 6 | AC116: =SUM(I116+R116+AA116) -> 9
A117: 14:45:00 | B117: 3 | C117: 0 | D117: 0 | E117: 0 | F117: 0 | G117: 0 | H117: 1 | I117: 4 | K117: 0 | L117: 0 | M117: 0 | N117: 0 | O117: 0 | P117: 0 | Q117: 0 | R117: 0 | T117: 1 | U117: 0 | V117: 0 | W117: 0 | X117: 0 | Y117: 0 | Z117: 4 | AA117: 5 | AC117: =SUM(I117+R117+AA117) -> 9
A118: 1 Hr | B118: =SUM(B114:B117) -> 6 | C118: 0 | D118: 0 | E118: 0 | F118: 3 | G118: 1 | H118: 7 | I118: 17 | K118: =SUM(K114:K117) -> 0 | L118: 0 | M118: 0 | N118: 0 | O118: 0 | P118: 0 | Q118: 0 | R118: 0 | T118: =SUM(T114:T117) -> 7 | U118: 0 | V118: 0 | W118: 0 | X118: 0 | Y118: 3 | Z118: 15 | AA118: 25 | AC118: =SUM(AC114:AC117) -> 42
A119: 15:00:00 | B119: 0 | C119: 0 | D119: 0 | E119: 0 | F119: 2 | G119: 0 | H119: 2 | I119: =SUM(B119:H119) -> 4 | K119: 0 | L119: 1 | M119: 0 | N119: 0 | O119: 0 | P119: 0 | Q119: 0 | R119: =SUM(K119:Q119) -> 1 | T119: 2 | U119: 0 | V119: 0 | W119: 0 | X119: 0 | Y119: 0 | Z119: 1 | AA119: =SUM(T119:Z119) -> 3 | AC119: =SUM(I119+R119+AA119) -> 8
A120: 15:15:00 | B120: 2 | C120: 0 | D120: 0 | E120: 0 | F120: 1 | G120: 1 | H120: 1 | I120: 5 | K120: 0 | L120: 0 | M120: 0 | N120: 0 | O120: 0 | P120: 0 | Q120: 0 | R120: 0 | T120: 1 | U120: 0 | V120: 0 | W120: 0 | X120: 0 | Y120: 0 | Z120: 1 | AA120: 2 | AC120: =SUM(I120+R120+AA120) -> 7
A121: 15:30:00 | B121: 3 | C121: 0 | D121: 0 | E121: 0 | F121: 1 | G121: 0 | H121: 3 | I121: 7 | K121: 0 | L121: 0 | M121: 0 | N121: 0 | O121: 0 | P121: 0 | Q121: 0 | R121: 0 | T121: 0 | U121: 0 | V121: 0 | W121: 0 | X121: 0 | Y121: 2 | Z121: 6 | AA121: 8 | AC121: =SUM(I121+R121+AA121) -> 15
A122: 15:45:00 | B122: 0 | C122: 0 | D122: 0 | E122: 0 | F122: 1 | G122: 0 | H122: 4 | I122: 5 | K122: 0 | L122: 0 | M122: 0 | N122: 0 | O122: 0 | P122: 0 | Q122: 0 | R122: 0 | T122: 0 | U122: 0 | V122: 0 | W122: 0 | X122: 0 | Y122: 1 | Z122: 4 | AA122: 5 | AC122: =SUM(I122+R122+AA122) -> 10
A123: 1 Hr | B123: =SUM(B119:B122) -> 5 | C123: 0 | D123: 0 | E123: 0 | F123: 5 | G123: 1 | H123: 10 | I123: 21 | K123: =SUM(K119:K122) -> 0 | L123: 1 | M123: 0 | N123: 0 | O123: 0 | P123: 0 | Q123: 0 | R123: 1 | T123: =SUM(T119:T122) -> 3 | U123: 0 | V123: 0 | W123: 0 | X123: 0 | Y123: 3 | Z123: 12 | AA123: 18 | AC123: =SUM(AC119:AC122) -> 40
A124: 16:00:00 | B124: 1 | C124: 0 | D124: 0 | E124: 0 | F124: 1 | G124: 1 | H124: 3 | I124: =SUM(B124:H124) -> 6 | K124: 0 | L124: 0 | M124: 0 | N124: 0 | O124: 0 | P124: 0 | Q124: 0 | R124: =SUM(K124:Q124) -> 0 | T124: 1 | U124: 0 | V124: 0 | W124: 0 | X124: 0 | Y124: 0 | Z124: 1 | AA124: =SUM(T124:Z124) -> 2 | AC124: =SUM(I124+R124+AA124) -> 8
A125: 16:15:00 | B125: 0 | C125: 0 | D125: 0 | E125: 0 | F125: 1 | G125: 0 | H125: 1 | I125: 2 | K125: 0 | L125: 0 | M125: 0 | N125: 0 | O125: 0 | P125: 0 | Q125: 0 | R125: 0 | T125: 0 | U125: 0 | V125: 0 | W125: 0 | X125: 0 | Y125: 0 | Z125: 6 | AA125: 6 | AC125: =SUM(I125+R125+AA125) -> 8
A126: 16:30:00 | B126: 0 | C126: 0 | D126: 0 | E126: 0 | F126: 1 | G126: 0 | H126: 1 | I126: 2 | K126: 0 | L126: 0 | M126: 0 | N126: 0 | O126: 0 | P126: 0 | Q126: 0 | R126: 0 | T126: 2 | U126: 0 | V126: 0 | W126: 0 | X126: 0 | Y126: 1 | Z126: 6 | AA126: 9 | AC126: =SUM(I126+R126+AA126) -> 11
A127: 16:45:00 | B127: 1 | C127: 0 | D127: 0 | E127: 0 | F127: 1 | G127: 0 | H127: 8 | I127: 10 | K127: 0 | L127: 0 | M127: 0 | N127: 0 | O127: 0 | P127: 0 | Q127: 0 | R127: 0 | T127: 1 | U127: 0 | V127: 0 | W127: 0 | X127: 0 | Y127: 0 | Z127: 5 | AA127: 6 | AC127: =SUM(I127+R127+AA127) -> 16
A128: 1 Hr | B128: =SUM(B124:B127) -> 2 | C128: 0 | D128: 0 | E128: 0 | F128: 4 | G128: 1 | H128: 13 | I128: 20 | K128: =SUM(K124:K127) -> 0 | L128: 0 | M128: 0 | N128: 0 | O128: 0 | P128: 0 | Q128: 0 | R128: 0 | T128: =SUM(T124:T127) -> 4 | U128: 0 | V128: 0 | W128: 0 | X128: 0 | Y128: 1 | Z128: 18 | AA128: 23 | AC128: =SUM(AC124:AC127) -> 43
A129: 17:00:00 | B129: 1 | C129: 0 | D129: 0 | E129: 0 | F129: 0 | G129: 0 | H129: 3 | I129: =SUM(B129:H129) -> 4 | K129: 0 | L129: 0 | M129: 0 | N129: 0 | O129: 0 | P129: 0 | Q129: 0 | R129: =SUM(K129:Q129) -> 0 | T129: 2 | U129: 0 | V129: 0 | W129: 0 | X129: 1 | Y129: 0 | Z129: 11 | AA129: =SUM(T129:Z129) -> 14 | AC129: =SUM(I129+R129+AA129) -> 18
A130: 17:15:00 | B130: 1 | C130: 0 | D130: 0 | E130: 0 | F130: 1 | G130: 0 | H130: 0 | I130: 2 | K130: 0 | L130: 0 | M130: 0 | N130: 0 | O130: 0 | P130: 0 | Q130: 0 | R130: 0 | T130: 1 | U130: 1 | V130: 0 | W130: 0 | X130: 0 | Y130: 1 | Z130: 4 | AA130: 7 | AC130: =SUM(I130+R130+AA130) -> 9
A131: 17:30:00 | B131: 2 | C131: 0 | D131: 0 | E131: 0 | F131: 1 | G131: 0 | H131: 2 | I131: 5 | K131: 0 | L131: 0 | M131: 0 | N131: 0 | O131: 0 | P131: 0 | Q131: 0 | R131: 0 | T131: 2 | U131: 0 | V131: 0 | W131: 0 | X131: 0 | Y131: 0 | Z131: 4 | AA131: 6 | AC131: =SUM(I131+R131+AA131) -> 11
A132: 17:45:00 | B132: 1 | C132: 0 | D132: 0 | E132: 0 | F132: 1 | G132: 0 | H132: 1 | I132: 3 | K132: 0 | L132: 0 | M132: 0 | N132: 0 | O132: 0 | P132: 0 | Q132: 0 | R132: 0 | T132: 2 | U132: 0 | V132: 0 | W132: 0 | X132: 0 | Y132: 0 | Z132: 5 | AA132: 7 | AC132: =SUM(I132+R132+AA132) -> 10
A133: 1 Hr | B133: =SUM(B129:B132) -> 5 | C133: 0 | D133: 0 | E133: 0 | F133: 3 | G133: 0 | H133: 6 | I133: 14 | K133: =SUM(K129:K132) -> 0 | L133: 0 | M133: 0 | N133: 0 | O133: 0 | P133: 0 | Q133: 0 | R133: 0 | T133: =SUM(T129:T132) -> 7 | U133: 1 | V133: 0 | W133: 0 | X133: 1 | Y133: 1 | Z133: 24 | AA133: 34 | AC133: =SUM(AC129:AC132) -> 48
A134: 18:00:00 | B134: 3 | C134: 0 | D134: 0 | E134: 0 | F134: 1 | G134: 0 | H134: 1 | I134: =SUM(B134:H134) -> 5 | K134: 0 | L134: 0 | M134: 0 | N134: 0 | O134: 0 | P134: 0 | Q134: 0 | R134: =SUM(K134:Q134) -> 0 | T134: 0 | U134: 0 | V134: 0 | W134: 0 | X134: 0 | Y134: 1 | Z134: 4 | AA134: =SUM(T134:Z134) -> 5 | AC134: =SUM(I134+R134+AA134) -> 10
A135: 18:15:00 | B135: 2 | C135: 0 | D135: 0 | E135: 0 | F135: 1 | G135: 0 | H135: 1 | I135: 4 | K135: 0 | L135: 0 | M135: 0 | N135: 0 | O135: 0 | P135: 0 | Q135: 0 | R135: 0 | T135: 0 | U135: 0 | V135: 0 | W135: 0 | X135: 0 | Y135: 0 | Z135: 2 | AA135: 2 | AC135: =SUM(I135+R135+AA135) -> 6
A136: 18:30:00 | B136: 2 | C136: 1 | D136: 0 | E136: 0 | F136: 1 | G136: 0 | H136: 1 | I136: 5 | K136: 0 | L136: 0 | M136: 0 | N136: 0 | O136: 0 | P136: 0 | Q136: 0 | R136: 0 | T136: 0 | U136: 0 | V136: 0 | W136: 0 | X136: 0 | Y136: 0 | Z136: 3 | AA136: 3 | AC136: =SUM(I136+R136+AA136) -> 8
A137: 18:45:00 | B137: 3 | C137: 0 | D137: 0 | E137: 0 | F137: 1 | G137: 0 | H137: 5 | I137: 9 | K137: 0 | L137: 0 | M137: 0 | N137: 0 | O137: 0 | P137: 0 | Q137: 0 | R137: 0 | T137: 1 | U137: 0 | V137: 0 | W137: 0 | X137: 0 | Y137: 1 | Z137: 7 | AA137: 9 | AC137: =SUM(I137+R137+AA137) -> 18
A138: 1 Hr | B138: =SUM(B134:B137) -> 10 | C138: 1 | D138: 0 | E138: 0 | F138: 4 | G138: 0 | H138: 8 | I138: 23 | K138: =SUM(K134:K137) -> 0 | L138: 0 | M138: 0 | N138: 0 | O138: 0 | P138: 0 | Q138: 0 | R138: 0 | T138: =SUM(T134:T137) -> 1 | U138: 0 | V138: 0 | W138: 0 | X138: 0 | Y138: 2 | Z138: 16 | AA138: 19 | AC138: =SUM(AC134:AC137) -> 42
A140: Total | B140: =SUM(B138+B133+B128+B123+B118+B113+B108+B103+B98+B93+B88+B83) -> 59 | C140: 6 | D140: 0 | E140: 0 | F140: 47 | G140: 9 | H140: 86 | I140: 207 | K140: =SUM(K138+K133+K128+K123+K118+K113+K108+K103+K98+K93+K88+K83) -> 0 | L140: 1 | M140: 0 | N140: 0 | O140: 0 | P140: 0 | Q140: 0 | R140: 1 | T140: =SUM(T138+T133+T128+T123+T118+T113+T108+T103+T98+T93+T88+T83) -> 53 | U140: 11 | V140: 0 | W140: 0 | X140: 1 | Y140: 12 | Z140: 154 | AA140: 231 | AC140: =SUM(AC138+AC133+AC128+AC123+AC118+AC113+AC108+AC103+AC98+AC93+AC88+AC83) -> 439
A142: Origin : | B142: Arm C | C142: South Parade (W)
B143: Destination : | D143: Arm A | E143: South Parade (E) | I143: Total | K143: Destination : | M143: Arm B | N143: Fisher's Lane | R143: Total | T143: Destination : | V143: Arm C | W143: South Parade (W) | AA143: Total | AC143: Arm Totals
B144: =$B$10 -> Car | C144: =$C$10 -> LGV | D144: =$D$10 -> OGV1 | E144: =$E$10 -> OGV2 | F144: =$F$10 -> PSV | G144: =$G$10 -> MC | H144: =$H$10 -> PC | K144: =$B$10 -> Car | L144: =$C$10 -> LGV | M144: =$D$10 -> OGV1 | N144: =$E$10 -> OGV2 | O144: =$F$10 -> PSV | P144: =$G$10 -> MC | Q144: =$H$10 -> PC | T144: =$B$10 -> Car | U144: =$C$10 -> LGV | V144: =$D$10 -> OGV1 | W144: =$E$10 -> OGV2 | X144: =$F$10 -> PSV | Y144: =$G$10 -> MC | Z144: =$H$10 -> PC
A146: 07:00:00 | B146: 56 | C146: 17 | D146: 3 | E146: 0 | F146: 7 | G146: 1 | H146: 4 | I146: =SUM(B146:H146) -> 88 | K146: 0 | L146: 0 | M146: 0 | N146: 0 | O146: 0 | P146: 0 | Q146: 1 | R146: =SUM(K146:Q146) -> 1 | T146: 1 | U146: 0 | V146: 0 | W146: 0 | X146: 0 | Y146: 0 | Z146: 0 | AA146: =SUM(T146:Z146) -> 1 | AC146: =SUM(I146+R146+AA146) -> 90
A147: 07:15:00 | B147: 56 | C147: 29 | D147: 4 | E147: 0 | F147: 3 | G147: 2 | H147: 6 | I147: 100 | K147: 0 | L147: 0 | M147: 0 | N147: 0 | O147: 0 | P147: 0 | Q147: 1 | R147: 1 | T147: 0 | U147: 0 | V147: 0 | W147: 0 | X147: 0 | Y147: 0 | Z147: 0 | AA147: 0 | AC147: =SUM(I147+R147+AA147) -> 101
A148: 07:30:00 | B148: 54 | C148: 30 | D148: 3 | E148: 1 | F148: 4 | G148: 1 | H148: 10 | I148: 103 | K148: 0 | L148: 0 | M148: 0 | N148: 0 | O148: 0 | P148: 0 | Q148: 6 | R148: 6 | T148: 0 | U148: 0 | V148: 0 | W148: 0 | X148: 0 | Y148: 0 | Z148: 0 | AA148: 0 | AC148: =SUM(I148+R148+AA148) -> 109
A149: 07:45:00 | B149: 63 | C149: 16 | D149: 2 | E149: 1 | F149: 4 | G149: 1 | H149: 5 | I149: 92 | K149: 0 | L149: 0 | M149: 0 | N149: 0 | O149: 0 | P149: 0 | Q149: 8 | R149: 8 | T149: 0 | U149: 0 | V149: 0 | W149: 0 | X149: 0 | Y149: 0 | Z149: 0 | AA149: 0 | AC149: =SUM(I149+R149+AA149) -> 100
A150: 1 Hr | B150: =SUM(B146:B149) -> 229 | C150: 92 | D150: 12 | E150: 2 | F150: 18 | G150: 5 | H150: 25 | I150: 383 | K150: =SUM(K146:K149) -> 0 | L150: 0 | M150: 0 | N150: 0 | O150: 0 | P150: 0 | Q150: 16 | R150: 16 | T150: =SUM(T146:T149) -> 1 | U150: 0 | V150: 0 | W150: 0 | X150: 0 | Y150: 0 | Z150: 0 | AA150: 1 | AC150: =SUM(AC146:AC149) -> 400
A151: 08:00:00 | B151: 61 | C151: 16 | D151: 1 | E151: 0 | F151: 3 | G151: 3 | H151: 6 | I151: =SUM(B151:H151) -> 90 | K151: 0 | L151: 0 | M151: 0 | N151: 0 | O151: 0 | P151: 0 | Q151: 9 | R151: =SUM(K151:Q151) -> 9 | T151: 1 | U151: 0 | V151: 0 | W151: 0 | X151: 0 | Y151: 0 | Z151: 0 | AA151: =SUM(T151:Z151) -> 1 | AC151: =SUM(I151+R151+AA151) -> 100
A152: 08:15:00 | B152: 73 | C152: 19 | D152: 1 | E152: 0 | F152: 2 | G152: 4 | H152: 2 | I152: 101 | K152: 0 | L152: 1 | M152: 0 | N152: 0 | O152: 0 | P152: 0 | Q152: 5 | R152: 6 | T152: 0 | U152: 0 | V152: 0 | W152: 0 | X152: 0 | Y152: 0 | Z152: 0 | AA152: 0 | AC152: =SUM(I152+R152+AA152) -> 107
A153: 08:30:00 | B153: 82 | C153: 9 | D153: 0 | E153: 0 | F153: 2 | G153: 1 | H153: 7 | I153: 101 | K153: 1 | L153: 0 | M153: 0 | N153: 0 | O153: 0 | P153: 0 | Q153: 9 | R153: 10 | T153: 0 | U153: 0 | V153: 0 | W153: 0 | X153: 0 | Y153: 0 | Z153: 0 | AA153: 0 | AC153: =SUM(I153+R153+AA153) -> 111
A154: 08:45:00 | B154: 60 | C154: 18 | D154: 1 | E154: 1 | F154: 3 | G154: 1 | H154: 1 | I154: 85 | K154: 0 | L154: 1 | M154: 0 | N154: 0 | O154: 0 | P154: 0 | Q154: 1 | R154: 2 | T154: 1 | U154: 0 | V154: 0 | W154: 0 | X154: 0 | Y154: 0 | Z154: 0 | AA154: 1 | AC154: =SUM(I154+R154+AA154) -> 88
A155: 1 Hr | B155: =SUM(B151:B154) -> 276 | C155: 62 | D155: 3 | E155: 1 | F155: 10 | G155: 9 | H155: 16 | I155: 377 | K155: =SUM(K151:K154) -> 1 | L155: 2 | M155: 0 | N155: 0 | O155: 0 | P155: 0 | Q155: 24 | R155: 27 | T155: =SUM(T151:T154) -> 2 | U155: 0 | V155: 0 | W155: 0 | X155: 0 | Y155: 0 | Z155: 0 | AA155: 2 | AC155: =SUM(AC151:AC154) -> 406
A156: 09:00:00 | B156: 49 | C156: 9 | D156: 1 | E156: 0 | F156: 4 | G156: 1 | H156: 1 | I156: =SUM(B156:H156) -> 65 | K156: 2 | L156: 0 | M156: 0 | N156: 0 | O156: 0 | P156: 0 | Q156: 4 | R156: =SUM(K156:Q156) -> 6 | T156: 2 | U156: 0 | V156: 0 | W156: 0 | X156: 0 | Y156: 0 | Z156: 0 | AA156: =SUM(T156:Z156) -> 2 | AC156: =SUM(I156+R156+AA156) -> 73
A157: 09:15:00 | B157: 61 | C157: 8 | D157: 2 | E157: 0 | F157: 2 | G157: 3 | H157: 3 | I157: 79 | K157: 2 | L157: 0 | M157: 0 | N157: 0 | O157: 0 | P157: 0 | Q157: 7 | R157: 9 | T157: 0 | U157: 0 | V157: 0 | W157: 0 | X157: 0 | Y157: 0 | Z157: 0 | AA157: 0 | AC157: =SUM(I157+R157+AA157) -> 88
A158: 09:30:00 | B158: 64 | C158: 19 | D158: 1 | E158: 0 | F158: 3 | G158: 3 | H158: 4 | I158: 94 | K158: 0 | L158: 0 | M158: 0 | N158: 0 | O158: 0 | P158: 0 | Q158: 6 | R158: 6 | T158: 0 | U158: 0 | V158: 0 | W158: 0 | X158: 0 | Y158: 0 | Z158: 0 | AA158: 0 | AC158: =SUM(I158+R158+AA158) -> 100
A159: 09:45:00 | B159: 54 | C159: 23 | D159: 2 | E159: 0 | F159: 2 | G159: 6 | H159: 3 | I159: 90 | K159: 1 | L159: 0 | M159: 0 | N159: 0 | O159: 0 | P159: 0 | Q159: 1 | R159: 2 | T159: 0 | U159: 0 | V159: 0 | W159: 0 | X159: 0 | Y159: 0 | Z159: 0 | AA159: 0 | AC159: =SUM(I159+R159+AA159) -> 92
A160: 1 Hr | B160: =SUM(B156:B159) -> 228 | C160: 59 | D160: 6 | E160: 0 | F160: 11 | G160: 13 | H160: 11 | I160: 328 | K160: =SUM(K156:K159) -> 5 | L160: 0 | M160: 0 | N160: 0 | O160: 0 | P160: 0 | Q160: 18 | R160: 23 | T160: =SUM(T156:T159) -> 2 | U160: 0 | V160: 0 | W160: 0 | X160: 0 | Y160: 0 | Z160: 0 | AA160: 2 | AC160: =SUM(AC156:AC159) -> 353
A161: 10:00:00 | B161: 45 | C161: 15 | D161: 2 | E161: 0 | F161: 3 | G161: 3 | H161: 3 | I161: =SUM(B161:H161) -> 71 | K161: 1 | L161: 0 | M161: 0 | N161: 0 | O161: 0 | P161: 0 | Q161: 2 | R161: =SUM(K161:Q161) -> 3 | T161: 1 | U161: 0 | V161: 0 | W161: 0 | X161: 0 | Y161: 0 | Z161: 0 | AA161: =SUM(T161:Z161) -> 1 | AC161: =SUM(I161+R161+AA161) -> 75
A162: 10:15:00 | B162: 49 | C162: 13 | D162: 2 | E162: 0 | F162: 3 | G162: 5 | H162: 0 | I162: 72 | K162: 0 | L162: 0 | M162: 0 | N162: 0 | O162: 0 | P162: 0 | Q162: 5 | R162: 5 | T162: 0 | U162: 0 | V162: 0 | W162: 0 | X162: 0 | Y162: 0 | Z162: 0 | AA162: 0 | AC162: =SUM(I162+R162+AA162) -> 77
A163: 10:30:00 | B163: 57 | C163: 10 | D163: 2 | E163: 0 | F163: 2 | G163: 5 | H163: 1 | I163: 77 | K163: 2 | L163: 0 | M163: 0 | N163: 0 | O163: 0 | P163: 0 | Q163: 1 | R163: 3 | T163: 0 | U163: 0 | V163: 0 | W163: 0 | X163: 0 | Y163: 0 | Z163: 0 | AA163: 0 | AC163: =SUM(I163+R163+AA163) -> 80
A164: 10:45:00 | B164: 54 | C164: 14 | D164: 1 | E164: 0 | F164: 3 | G164: 4 | H164: 0 | I164: 76 | K164: 0 | L164: 1 | M164: 0 | N164: 0 | O164: 0 | P164: 0 | Q164: 1 | R164: 2 | T164: 0 | U164: 0 | V164: 0 | W164: 0 | X164: 0 | Y164: 0 | Z164: 0 | AA164: 0 | AC164: =SUM(I164+R164+AA164) -> 78
A165: 1 Hr | B165: =SUM(B161:B164) -> 205 | C165: 52 | D165: 7 | E165: 0 | F165: 11 | G165: 17 | H165: 4 | I165: 296 | K165: =SUM(K161:K164) -> 3 | L165: 1 | M165: 0 | N165: 0 | O165: 0 | P165: 0 | Q165: 9 | R165: 13 | T165: =SUM(T161:T164) -> 1 | U165: 0 | V165: 0 | W165: 0 | X165: 0 | Y165: 0 | Z165: 0 | AA165: 1 | AC165: =SUM(AC161:AC164) -> 310
A166: 11:00:00 | B166: 43 | C166: 12 | D166: 3 | E166: 0 | F166: 3 | G166: 2 | H166: 0 | I166: =SUM(B166:H166) -> 63 | K166: 0 | L166: 2 | M166: 0 | N166: 0 | O166: 0 | P166: 0 | Q166: 3 | R166: =SUM(K166:Q166) -> 5 | T166: 0 | U166: 0 | V166: 0 | W166: 0 | X166: 0 | Y166: 0 | Z166: 0 | AA166: =SUM(T166:Z166) -> 0 | AC166: =SUM(I166+R166+AA166) -> 68
A167: 11:15:00 | B167: 45 | C167: 12 | D167: 0 | E167: 0 | F167: 2 | G167: 6 | H167: 2 | I167: 67 | K167: 1 | L167: 0 | M167: 0 | N167: 0 | O167: 0 | P167: 0 | Q167: 2 | R167: 3 | T167: 0 | U167: 0 | V167: 0 | W167: 0 | X167: 0 | Y167: 0 | Z167: 0 | AA167: 0 | AC167: =SUM(I167+R167+AA167) -> 70
A168: 11:30:00 | B168: 40 | C168: 6 | D168: 1 | E168: 0 | F168: 2 | G168: 7 | H168: 1 | I168: 57 | K168: 0 | L168: 0 | M168: 0 | N168: 0 | O168: 0 | P168: 0 | Q168: 1 | R168: 1 | T168: 0 | U168: 0 | V168: 0 | W168: 0 | X168: 0 | Y168: 0 | Z168: 0 | AA168: 0 | AC168: =SUM(I168+R168+AA168) -> 58
A169: 11:45:00 | B169: 47 | C169: 12 | D169: 0 | E169: 0 | F169: 2 | G169: 5 | H169: 2 | I169: 68 | K169: 1 | L169: 0 | M169: 0 | N169: 0 | O169: 0 | P169: 0 | Q169: 5 | R169: 6 | T169: 0 | U169: 0 | V169: 0 | W169: 0 | X169: 0 | Y169: 0 | Z169: 0 | AA169: 0 | AC169: =SUM(I169+R169+AA169) -> 74
A170: 1 Hr | B170: =SUM(B166:B169) -> 175 | C170: 42 | D170: 4 | E170: 0 | F170: 9 | G170: 20 | H170: 5 | I170: 255 | K170: =SUM(K166:K169) -> 2 | L170: 2 | M170: 0 | N170: 0 | O170: 0 | P170: 0 | Q170: 11 | R170: 15 | T170: =SUM(T166:T169) -> 0 | U170: 0 | V170: 0 | W170: 0 | X170: 0 | Y170: 0 | Z170: 0 | AA170: 0 | AC170: =SUM(AC166:AC169) -> 270
A171: 12:00:00 | B171: 36 | C171: 8 | D171: 2 | E171: 0 | F171: 2 | G171: 4 | H171: 1 | I171: =SUM(B171:H171) -> 53 | K171: 1 | L171: 1 | M171: 0 | N171: 0 | O171: 0 | P171: 0 | Q171: 4 | R171: =SUM(K171:Q171) -> 6 | T171: 0 | U171: 0 | V171: 0 | W171: 0 | X171: 0 | Y171: 0 | Z171: 0 | AA171: =SUM(T171:Z171) -> 0 | AC171: =SUM(I171+R171+AA171) -> 59
A172: 12:15:00 | B172: 31 | C172: 15 | D172: 0 | E172: 0 | F172: 3 | G172: 4 | H172: 0 | I172: 53 | K172: 1 | L172: 0 | M172: 0 | N172: 0 | O172: 0 | P172: 0 | Q172: 3 | R172: 4 | T172: 1 | U172: 0 | V172: 0 | W172: 0 | X172: 0 | Y172: 0 | Z172: 0 | AA172: 1 | AC172: =SUM(I172+R172+AA172) -> 58
A173: 12:30:00 | B173: 46 | C173: 11 | D173: 0 | E173: 0 | F173: 2 | G173: 13 | H173: 1 | I173: 73 | K173: 3 | L173: 1 | M173: 0 | N173: 0 | O173: 0 | P173: 0 | Q173: 0 | R173: 4 | T173: 1 | U173: 0 | V173: 0 | W173: 0 | X173: 0 | Y173: 0 | Z173: 0 | AA173: 1 | AC173: =SUM(I173+R173+AA173) -> 78
A174: 12:45:00 | B174: 46 | C174: 8 | D174: 1 | E174: 0 | F174: 3 | G174: 5 | H174: 2 | I174: 65 | K174: 1 | L174: 0 | M174: 0 | N174: 0 | O174: 0 | P174: 0 | Q174: 6 | R174: 7 | T174: 0 | U174: 1 | V174: 0 | W174: 0 | X174: 0 | Y174: 0 | Z174: 0 | AA174: 1 | AC174: =SUM(I174+R174+AA174) -> 73
A175: 1 Hr | B175: =SUM(B171:B174) -> 159 | C175: 42 | D175: 3 | E175: 0 | F175: 10 | G175: 26 | H175: 4 | I175: 244 | K175: =SUM(K171:K174) -> 6 | L175: 2 | M175: 0 | N175: 0 | O175: 0 | P175: 0 | Q175: 13 | R175: 21 | T175: =SUM(T171:T174) -> 2 | U175: 1 | V175: 0 | W175: 0 | X175: 0 | Y175: 0 | Z175: 0 | AA175: 3 | AC175: =SUM(AC171:AC174) -> 268
A176: 13:00:00 | B176: 52 | C176: 14 | D176: 2 | E176: 0 | F176: 2 | G176: 6 | H176: 0 | I176: =SUM(B176:H176) -> 76 | K176: 1 | L176: 0 | M176: 0 | N176: 0 | O176: 0 | P176: 0 | Q176: 5 | R176: =SUM(K176:Q176) -> 6 | T176: 1 | U176: 0 | V176: 0 | W176: 0 | X176: 0 | Y176: 0 | Z176: 0 | AA176: =SUM(T176:Z176) -> 1 | AC176: =SUM(I176+R176+AA176) -> 83
A177: 13:15:00 | B177: 49 | C177: 7 | D177: 1 | E177: 0 | F177: 4 | G177: 5 | H177: 4 | I177: 70 | K177: 1 | L177: 0 | M177: 0 | N177: 0 | O177: 0 | P177: 0 | Q177: 1 | R177: 2 | T177: 1 | U177: 0 | V177: 0 | W177: 0 | X177: 0 | Y177: 0 | Z177: 0 | AA177: 1 | AC177: =SUM(I177+R177+AA177) -> 73
A178: 13:30:00 | B178: 34 | C178: 13 | D178: 0 | E178: 0 | F178: 2 | G178: 9 | H178: 1 | I178: 59 | K178: 1 | L178: 0 | M178: 0 | N178: 0 | O178: 0 | P178: 0 | Q178: 0 | R178: 1 | T178: 0 | U178: 0 | V178: 0 | W178: 0 | X178: 0 | Y178: 0 | Z178: 0 | AA178: 0 | AC178: =SUM(I178+R178+AA178) -> 60
A179: 13:45:00 | B179: 33 | C179: 12 | D179: 0 | E179: 0 | F179: 3 | G179: 4 | H179: 3 | I179: 55 | K179: 1 | L179: 0 | M179: 0 | N179: 0 | O179: 0 | P179: 0 | Q179: 2 | R179: 3 | T179: 0 | U179: 0 | V179: 0 | W179: 0 | X179: 0 | Y179: 0 | Z179: 0 | AA179: 0 | AC179: =SUM(I179+R179+AA179) -> 58
A180: 1 Hr | B180: =SUM(B176:B179) -> 168 | C180: 46 | D180: 3 | E180: 0 | F180: 11 | G180: 24 | H180: 8 | I180: 260 | K180: =SUM(K176:K179) -> 4 | L180: 0 | M180: 0 | N180: 0 | O180: 0 | P180: 0 | Q180: 8 | R180: 12 | T180: =SUM(T176:T179) -> 2 | U180: 0 | V180: 0 | W180: 0 | X180: 0 | Y180: 0 | Z180: 0 | AA180: 2 | AC180: =SUM(AC176:AC179) -> 274
A181: 14:00:00 | B181: 57 | C181: 11 | D181: 0 | E181: 1 | F181: 2 | G181: 5 | H181: 0 | I181: =SUM(B181:H181) -> 76 | K181: 0 | L181: 0 | M181: 0 | N181: 0 | O181: 0 | P181: 0 | Q181: 1 | R181: =SUM(K181:Q181) -> 1 | T181: 0 | U181: 0 | V181: 0 | W181: 0 | X181: 0 | Y181: 0 | Z181: 0 | AA181: =SUM(T181:Z181) -> 0 | AC181: =SUM(I181+R181+AA181) -> 77
A182: 14:15:00 | B182: 47 | C182: 11 | D182: 0 | E182: 0 | F182: 2 | G182: 6 | H182: 1 | I182: 67 | K182: 1 | L182: 0 | M182: 0 | N182: 0 | O182: 0 | P182: 0 | Q182: 2 | R182: 3 | T182: 0 | U182: 0 | V182: 0 | W182: 0 | X182: 0 | Y182: 0 | Z182: 0 | AA182: 0 | AC182: =SUM(I182+R182+AA182) -> 70
A183: 14:30:00 | B183: 58 | C183: 4 | D183: 3 | E183: 0 | F183: 4 | G183: 5 | H183: 2 | I183: 76 | K183: 1 | L183: 0 | M183: 0 | N183: 0 | O183: 0 | P183: 0 | Q183: 2 | R183: 3 | T183: 0 | U183: 0 | V183: 0 | W183: 0 | X183: 0 | Y183: 0 | Z183: 0 | AA183: 0 | AC183: =SUM(I183+R183+AA183) -> 79
A184: 14:45:00 | B184: 58 | C184: 6 | D184: 1 | E184: 0 | F184: 3 | G184: 7 | H184: 9 | I184: 84 | K184: 2 | L184: 0 | M184: 0 | N184: 0 | O184: 0 | P184: 0 | Q184: 2 | R184: 4 | T184: 0 | U184: 0 | V184: 0 | W184: 0 | X184: 0 | Y184: 0 | Z184: 0 | AA184: 0 | AC184: =SUM(I184+R184+AA184) -> 88
A185: 1 Hr | B185: =SUM(B181:B184) -> 220 | C185: 32 | D185: 4 | E185: 1 | F185: 11 | G185: 23 | H185: 12 | I185: 303 | K185: =SUM(K181:K184) -> 4 | L185: 0 | M185: 0 | N185: 0 | O185: 0 | P185: 0 | Q185: 7 | R185: 11 | T185: =SUM(T181:T184) -> 0 | U185: 0 | V185: 0 | W185: 0 | X185: 0 | Y185: 0 | Z185: 0 | AA185: 0 | AC185: =SUM(AC181:AC184) -> 314
A186: 15:00:00 | B186: 50 | C186: 8 | D186: 2 | E186: 0 | F186: 2 | G186: 5 | H186: 2 | I186: =SUM(B186:H186) -> 69 | K186: 2 | L186: 0 | M186: 0 | N186: 0 | O186: 0 | P186: 0 | Q186: 5 | R186: =SUM(K186:Q186) -> 7 | T186: 0 | U186: 1 | V186: 0 | W186: 0 | X186: 0 | Y186: 0 | Z186: 0 | AA186: =SUM(T186:Z186) -> 1 | AC186: =SUM(I186+R186+AA186) -> 77
A187: 15:15:00 | B187: 55 | C187: 9 | D187: 0 | E187: 0 | F187: 3 | G187: 3 | H187: 1 | I187: 71 | K187: 0 | L187: 0 | M187: 0 | N187: 0 | O187: 0 | P187: 0 | Q187: 1 | R187: 1 | T187: 1 | U187: 0 | V187: 0 | W187: 0 | X187: 0 | Y187: 0 | Z187: 0 | AA187: 1 | AC187: =SUM(I187+R187+AA187) -> 73
A188: 15:30:00 | B188: 51 | C188: 5 | D188: 0 | E188: 0 | F188: 2 | G188: 4 | H188: 3 | I188: 65 | K188: 2 | L188: 1 | M188: 0 | N188: 0 | O188: 0 | P188: 0 | Q188: 1 | R188: 4 | T188: 2 | U188: 0 | V188: 0 | W188: 0 | X188: 0 | Y188: 0 | Z188: 0 | AA188: 2 | AC188: =SUM(I188+R188+AA188) -> 71
A189: 15:45:00 | B189: 43 | C189: 4 | D189: 0 | E189: 0 | F189: 2 | G189: 6 | H189: 2 | I189: 57 | K189: 2 | L189: 0 | M189: 0 | N189: 0 | O189: 0 | P189: 0 | Q189: 5 | R189: 7 | T189: 1 | U189: 0 | V189: 0 | W189: 0 | X189: 0 | Y189: 0 | Z189: 0 | AA189: 1 | AC189: =SUM(I189+R189+AA189) -> 65
A190: 1 Hr | B190: =SUM(B186:B189) -> 199 | C190: 26 | D190: 2 | E190: 0 | F190: 9 | G190: 18 | H190: 8 | I190: 262 | K190: =SUM(K186:K189) -> 6 | L190: 1 | M190: 0 | N190: 0 | O190: 0 | P190: 0 | Q190: 12 | R190: 19 | T190: =SUM(T186:T189) -> 4 | U190: 1 | V190: 0 | W190: 0 | X190: 0 | Y190: 0 | Z190: 0 | AA190: 5 | AC190: =SUM(AC186:AC189) -> 286
A191: 16:00:00 | B191: 46 | C191: 9 | D191: 0 | E191: 0 | F191: 0 | G191: 5 | H191: 2 | I191: =SUM(B191:H191) -> 62 | K191: 0 | L191: 1 | M191: 0 | N191: 0 | O191: 0 | P191: 0 | Q191: 3 | R191: =SUM(K191:Q191) -> 4 | T191: 0 | U191: 0 | V191: 0 | W191: 0 | X191: 0 | Y191: 0 | Z191: 0 | AA191: =SUM(T191:Z191) -> 0 | AC191: =SUM(I191+R191+AA191) -> 66
A192: 16:15:00 | B192: 57 | C192: 2 | D192: 0 | E192: 0 | F192: 1 | G192: 2 | H192: 3 | I192: 65 | K192: 0 | L192: 1 | M192: 0 | N192: 0 | O192: 0 | P192: 0 | Q192: 3 | R192: 4 | T192: 0 | U192: 0 | V192: 0 | W192: 0 | X192: 0 | Y192: 0 | Z192: 0 | AA192: 0 | AC192: =SUM(I192+R192+AA192) -> 69
A193: 16:30:00 | B193: 64 | C193: 5 | D193: 0 | E193: 0 | F193: 2 | G193: 2 | H193: 1 | I193: 74 | K193: 2 | L193: 1 | M193: 0 | N193: 0 | O193: 0 | P193: 0 | Q193: 3 | R193: 6 | T193: 0 | U193: 0 | V193: 0 | W193: 0 | X193: 0 | Y193: 0 | Z193: 0 | AA193: 0 | AC193: =SUM(I193+R193+AA193) -> 80
A194: 16:45:00 | B194: 52 | C194: 5 | D194: 0 | E194: 0 | F194: 3 | G194: 5 | H194: 1 | I194: 66 | K194: 0 | L194: 0 | M194: 0 | N194: 0 | O194: 0 | P194: 0 | Q194: 1 | R194: 1 | T194: 0 | U194: 0 | V194: 0 | W194: 0 | X194: 0 | Y194: 0 | Z194: 0 | AA194: 0 | AC194: =SUM(I194+R194+AA194) -> 67
A195: 1 Hr | B195: =SUM(B191:B194) -> 219 | C195: 21 | D195: 0 | E195: 0 | F195: 6 | G195: 14 | H195: 7 | I195: 267 | K195: =SUM(K191:K194) -> 2 | L195: 3 | M195: 0 | N195: 0 | O195: 0 | P195: 0 | Q195: 10 | R195: 15 | T195: =SUM(T191:T194) -> 0 | U195: 0 | V195: 0 | W195: 0 | X195: 0 | Y195: 0 | Z195: 0 | AA195: 0 | AC195: =SUM(AC191:AC194) -> 282
A196: 17:00:00 | B196: 69 | C196: 7 | D196: 0 | E196: 0 | F196: 3 | G196: 6 | H196: 1 | I196: =SUM(B196:H196) -> 86 | K196: 0 | L196: 0 | M196: 0 | N196: 0 | O196: 0 | P196: 1 | Q196: 3 | R196: =SUM(K196:Q196) -> 4 | T196: 0 | U196: 0 | V196: 0 | W196: 0 | X196: 0 | Y196: 0 | Z196: 0 | AA196: =SUM(T196:Z196) -> 0 | AC196: =SUM(I196+R196+AA196) -> 90
A197: 17:15:00 | B197: 66 | C197: 3 | D197: 0 | E197: 0 | F197: 3 | G197: 7 | H197: 1 | I197: 80 | K197: 2 | L197: 0 | M197: 0 | N197: 0 | O197: 0 | P197: 0 | Q197: 8 | R197: 10 | T197: 2 | U197: 0 | V197: 0 | W197: 0 | X197: 0 | Y197: 0 | Z197: 0 | AA197: 2 | AC197: =SUM(I197+R197+AA197) -> 92
A198: 17:30:00 | B198: 68 | C198: 4 | D198: 0 | E198: 0 | F198: 2 | G198: 7 | H198: 3 | I198: 84 | K198: 2 | L198: 0 | M198: 0 | N198: 0 | O198: 0 | P198: 0 | Q198: 6 | R198: 8 | T198: 0 | U198: 0 | V198: 0 | W198: 0 | X198: 0 | Y198: 0 | Z198: 0 | AA198: 0 | AC198: =SUM(I198+R198+AA198) -> 92
A199: 17:45:00 | B199: 53 | C199: 5 | D199: 0 | E199: 0 | F199: 3 | G199: 7 | H199: 7 | I199: 75 | K199: 0 | L199: 0 | M199: 0 | N199: 0 | O199: 0 | P199: 0 | Q199: 8 | R199: 8 | T199: 0 | U199: 0 | V199: 0 | W199: 0 | X199: 0 | Y199: 0 | Z199: 0 | AA199: 0 | AC199: =SUM(I199+R199+AA199) -> 83
A200: 1 Hr | B200: =SUM(B196:B199) -> 256 | C200: 19 | D200: 0 | E200: 0 | F200: 11 | G200: 27 | H200: 12 | I200: 325 | K200: =SUM(K196:K199) -> 4 | L200: 0 | M200: 0 | N200: 0 | O200: 0 | P200: 1 | Q200: 25 | R200: 30 | T200: =SUM(T196:T199) -> 2 | U200: 0 | V200: 0 | W200: 0 | X200: 0 | Y200: 0 | Z200: 0 | AA200: 2 | AC200: =SUM(AC196:AC199) -> 357
A201: 18:00:00 | B201: 64 | C201: 7 | D201: 0 | E201: 0 | F201: 3 | G201: 7 | H201: 3 | I201: =SUM(B201:H201) -> 84 | K201: 5 | L201: 0 | M201: 0 | N201: 0 | O201: 0 | P201: 0 | Q201: 4 | R201: =SUM(K201:Q201) -> 9 | T201: 0 | U201: 0 | V201: 0 | W201: 0 | X201: 0 | Y201: 0 | Z201: 0 | AA201: =SUM(T201:Z201) -> 0 | AC201: =SUM(I201+R201+AA201) -> 93
A202: 18:15:00 | B202: 59 | C202: 5 | D202: 1 | E202: 0 | F202: 3 | G202: 7 | H202: 8 | I202: 83 | K202: 2 | L202: 0 | M202: 0 | N202: 0 | O202: 0 | P202: 0 | Q202: 7 | R202: 9 | T202: 0 | U202: 0 | V202: 0 | W202: 0 | X202: 0 | Y202: 0 | Z202: 0 | AA202: 0 | AC202: =SUM(I202+R202+AA202) -> 92
A203: 18:30:00 | B203: 52 | C203: 3 | D203: 0 | E203: 0 | F203: 2 | G203: 8 | H203: 3 | I203: 68 | K203: 1 | L203: 0 | M203: 0 | N203: 0 | O203: 0 | P203: 0 | Q203: 3 | R203: 4 | T203: 2 | U203: 0 | V203: 0 | W203: 0 | X203: 0 | Y203: 0 | Z203: 0 | AA203: 2 | AC203: =SUM(I203+R203+AA203) -> 74
A204: 18:45:00 | B204: 59 | C204: 3 | D204: 0 | E204: 0 | F204: 3 | G204: 13 | H204: 1 | I204: 79 | K204: 6 | L204: 0 | M204: 0 | N204: 0 | O204: 0 | P204: 0 | Q204: 4 | R204: 10 | T204: 0 | U204: 0 | V204: 0 | W204: 0 | X204: 0 | Y204: 0 | Z204: 0 | AA204: 0 | AC204: =SUM(I204+R204+AA204) -> 89
A205: 1 Hr | B205: =SUM(B201:B204) -> 234 | C205: 18 | D205: 1 | E205: 0 | F205: 11 | G205: 35 | H205: 15 | I205: 314 | K205: =SUM(K201:K204) -> 14 | L205: 0 | M205: 0 | N205: 0 | O205: 0 | P205: 0 | Q205: 18 | R205: 32 | T205: =SUM(T201:T204) -> 2 | U205: 0 | V205: 0 | W205: 0 | X205: 0 | Y205: 0 | Z205: 0 | AA205: 2 | AC205: =SUM(AC201:AC204) -> 348
A207: Total | B207: =SUM(B205+B200+B195+B190+B185+B180+B175+B170+B165+B160+B155+B150) -> 2568 | C207: 511 | D207: 45 | E207: 4 | F207: 128 | G207: 231 | H207: 127 | I207: 3614 | K207: =SUM(K205+K200+K195+K190+K185+K180+K175+K170+K165+K160+K155+K150) -> 51 | L207: 11 | M207: 0 | N207: 0 | O207: 0 | P207: 1 | Q207: 171 | R207: 234 | T207: =SUM(T205+T200+T195+T190+T185+T180+T175+T170+T165+T160+T155+T150) -> 18 | U207: 2 | V207: 0 | W207: 0 | X207: 0 | Y207: 0 | Z207: 0 | AA207: 20 | AC207: =SUM(AC205+AC200+AC195+AC190+AC185+AC180+AC175+AC170+AC165+AC160+AC155+AC150) -> 3868
A209: ORIGIN SUMMARY
B210: Origin : | D210: Arm A | E210: South Parade (E) | I210: Total | K210: Origin : | M210: Arm B | N210: Fisher's Lane | R210: Total | T210: Origin : | V210: Arm C | W210: South Parade (W) | AA210: Total | AC210: Origin Totals
B211: =$B$10 -> Car | C211: =$C$10 -> LGV | D211: =$D$10 -> OGV1 | E211: =$E$10 -> OGV2 | F211: =$F$10 -> PSV | G211: =$G$10 -> MC | H211: =$H$10 -> PC | K211: =$B$10 -> Car | L211: =$C$10 -> LGV | M211: =$D$10 -> OGV1 | N211: =$E$10 -> OGV2 | O211: =$F$10 -> PSV | P211: =$G$10 -> MC | Q211: =$H$10 -> PC | T211: =$B$10 -> Car | U211: =$C$10 -> LGV | V211: =$D$10 -> OGV1 | W211: =$E$10 -> OGV2 | X211: =$F$10 -> PSV | Y211: =$G$10 -> MC | Z211: =$H$10 -> PC
A213: 07:00:00 | B213: =SUM(B12+K12+T12) -> 39 | C213: 2 | D213: 2 | E213: 0 | F213: 6 | G213: 0 | H213: 0 | I213: =SUM(B213:H213) -> 49 | K213: =SUM(B79+K79+T79) -> 1 | L213: 0 | M213: 0 | N213: 0 | O213: 1 | P213: 0 | Q213: 2 | R213: =SUM(K213:Q213) -> 4 | T213: =SUM(B146+K146+T146) -> 57 | U213: 17 | V213: 3 | W213: 0 | X213: 7 | Y213: 1 | Z213: 5 | AA213: =SUM(T213:Z213) -> 90 | AC213: =SUM(I213+R213+AA213) -> 143
... 124 more rows
